ORGANISATION_NAME,SERVICE_RESPONSIBLE,SUPPLIER_NAME,SUPPLIER_CODE,PAYMENT_DATE,TRANSACTION_REF,NET_AMOUNT_BY_LINE_ITEM,IRRECOVERABLE_VAT,PURPOSE_OF_SPEND,PROCUREMENT_CATEGORY_NAME,TRANSACTION_TYPE,PAYMENT_TYPE,CARD_TRANS,INVOICE_DATE,FINANCIAL_YEAR,FINANCIAL_PERIOD,SUPPLIERS_INVOICE_REFERENCE,COST_CENTRE_CODE,COST_CENTRE_DESC,ACCOUNT_CODE,ACCOUNT_DESC
GUILDFORD BOROUGH COUNCIL,OPERATIONS TECHNICAL SERVICES,WHISTL UK LIMITED,68868,14-Jan-20,2098793,0.32,0,POSTAGE FROM FRANKING,POSTAL AND COURIER SERVICE PROVIDERS,Invoice,BACS,None,09-Dec-19,2019,10,AS19004334,G3547,ICT DEVELOPMENT,D5467,POSTAGE FROM FRANKING
GUILDFORD BOROUGH COUNCIL,TRANSPORTATION,WHISTL UK LIMITED,68868,16-Jan-20,2099575,0.91,0,POSTAGE FROM FRANKING,POSTAL AND COURIER SERVICE PROVIDERS,Invoice,BACS,None,16-Dec-19,2019,10,PS19005934,B5122,TRANSPORTATION INITIATIVES,D5467,POSTAGE FROM FRANKING
GUILDFORD BOROUGH COUNCIL,LEISURE SPORT DEVELOPMENT,WHISTL UK LIMITED,68868,16-Jan-20,2099572,1.05,0,POSTAGE FROM FRANKING,POSTAL AND COURIER SERVICE PROVIDERS,Invoice,BACS,None,16-Dec-19,2019,10,AS19004428,A7311,SPORTS DEVELOPMENT OFFICER,D5467,POSTAGE FROM FRANKING
GUILDFORD BOROUGH COUNCIL,ENVIRONMENTAL CONTROL,WHISTL UK LIMITED,68868,16-Jan-20,2099572,1.46,0,POSTAGE FROM FRANKING,POSTAL AND COURIER SERVICE PROVIDERS,Invoice,BACS,None,16-Dec-19,2019,10,AS19004428,C1113,ENVIRONMENTAL CONTROL,D5467,POSTAGE FROM FRANKING
GUILDFORD BOROUGH COUNCIL,TOWN CENTRE MANAGEMENT,WHISTL UK LIMITED,68868,16-Jan-20,2099572,0.49,0,POSTAGE FROM FRANKING,POSTAL AND COURIER SERVICE PROVIDERS,Invoice,BACS,None,16-Dec-19,2019,10,AS19004428,F5550,FARMERS MARKET,D5467,POSTAGE FROM FRANKING
GUILDFORD BOROUGH COUNCIL,INCOME COLLECTION,WHISTL UK LIMITED,68868,14-Jan-20,2098753,1.71,0,POSTAGE FROM FRANKING,POSTAL AND COURIER SERVICE PROVIDERS,Invoice,BACS,None,25-Nov-19,2019,10,AS19004152,M1121,INCOME COLLECTION (BHS),D5467,POSTAGE FROM FRANKING
GUILDFORD BOROUGH COUNCIL,SUPPORTED HOUSING MANAGEMENT,WHISTL UK LIMITED,68868,14-Jan-20,2098753,0.25,0,POSTAGE FROM FRANKING,POSTAL AND COURIER SERVICE PROVIDERS,Invoice,BACS,None,25-Nov-19,2019,10,AS19004152,M3690,SUPPORTED HSG-GENERAL (SHS),D5467,POSTAGE FROM FRANKING
GUILDFORD BOROUGH COUNCIL,OPERATIONAL SERVS OVERHEAD AC,WHISTL UK LIMITED,68868,14-Jan-20,2098800,14.83,0,POSTAGE FROM FRANKING,POSTAL AND COURIER SERVICE PROVIDERS,Invoice,BACS,None,23-Dec-19,2019,10,PS19006043,K1519,OPERATIONAL SERVS OVERHEAD AC,D5467,POSTAGE FROM FRANKING
GUILDFORD BOROUGH COUNCIL,PUBLIC RELATIONS,WHISTL UK LIMITED,68868,14-Jan-20,2098753,0.12,0,POSTAGE FROM FRANKING,POSTAL AND COURIER SERVICE PROVIDERS,Invoice,BACS,None,25-Nov-19,2019,10,AS19004152,F5551,PUBLIC RELATIONS & MARKETING,D5467,POSTAGE FROM FRANKING
GUILDFORD BOROUGH COUNCIL,ELECTORAL REGISTRATION,WHISTL UK LIMITED,68868,14-Jan-20,2098786,5.92,0,POSTAGE FROM FRANKING,POSTAL AND COURIER SERVICE PROVIDERS,Invoice,BACS,None,02-Dec-19,2019,10,PS19005721,F2512,INDIVID ELECTORAL REGISTRATION,D5467,POSTAGE FROM FRANKING
GUILDFORD BOROUGH COUNCIL,HOUSING BENEFITS,WHISTL UK LIMITED,68868,14-Jan-20,2098800,364.18,0,POSTAGE FROM FRANKING,POSTAL AND COURIER SERVICE PROVIDERS,Invoice,BACS,None,23-Dec-19,2019,10,PS19006043,C4511,HOUSING BENEFITS ADMIN.,D5467,POSTAGE FROM FRANKING
GUILDFORD BOROUGH COUNCIL,OPERATIONS TECHNICAL SERVICES,WHISTL UK LIMITED,68868,14-Jan-20,2098792,1.57,0,POSTAGE FROM FRANKING,POSTAL AND COURIER SERVICE PROVIDERS,Invoice,BACS,None,09-Dec-19,2019,10,PS19005824,G3547,ICT DEVELOPMENT,D5467,POSTAGE FROM FRANKING
GUILDFORD BOROUGH COUNCIL,WEBSITE,WHISTL UK LIMITED,68868,14-Jan-20,2098792,1.21,0,POSTAGE FROM FRANKING,POSTAL AND COURIER SERVICE PROVIDERS,Invoice,BACS,None,09-Dec-19,2019,10,PS19005824,F1141,INTERNET SITE ACCESS,D5467,POSTAGE FROM FRANKING
GUILDFORD BOROUGH COUNCIL,HR SERVICES,WHISTL UK LIMITED,68868,14-Jan-20,2098786,1.04,0,POSTAGE FROM FRANKING,POSTAL AND COURIER SERVICE PROVIDERS,Invoice,BACS,None,02-Dec-19,2019,10,PS19005721,G2555,HR SERVICES,D5467,POSTAGE FROM FRANKING
GUILDFORD BOROUGH COUNCIL,COUNCIL TAX,WHISTL UK LIMITED,68868,16-Jan-20,2099575,679.1,0,POSTAGE FROM FRANKING,POSTAL AND COURIER SERVICE PROVIDERS,Invoice,BACS,None,16-Dec-19,2019,10,PS19005934,F6141,COUNCIL TAX COLLECTN EXPENSES,D5467,POSTAGE FROM FRANKING
GUILDFORD BOROUGH COUNCIL,HOUSING BENEFITS,WHISTL UK LIMITED,68868,16-Jan-20,2099575,359.85,0,POSTAGE FROM FRANKING,POSTAL AND COURIER SERVICE PROVIDERS,Invoice,BACS,None,16-Dec-19,2019,10,PS19005934,C4511,HOUSING BENEFITS ADMIN.,D5467,POSTAGE FROM FRANKING
GUILDFORD BOROUGH COUNCIL,VOID PROPERTY MANAGEMENT,WHISTL UK LIMITED,68868,14-Jan-20,2098753,1.23,0,POSTAGE FROM FRANKING,POSTAL AND COURIER SERVICE PROVIDERS,Invoice,BACS,None,25-Nov-19,2019,10,AS19004152,M1141,VOID PROPERTY MGMT (SHS),D5467,POSTAGE FROM FRANKING
GUILDFORD BOROUGH COUNCIL,ELECTORAL REGISTRATION,WHISTL UK LIMITED,68868,14-Jan-20,2098791,0,0,POSTAGE FROM FRANKING,POSTAL AND COURIER SERVICE PROVIDERS,Invoice,BACS,None,02-Dec-19,2019,10,AS19004251,F2511,ELECTORAL REGISTRATION,D5467,POSTAGE FROM FRANKING
GUILDFORD BOROUGH COUNCIL,RESPONSIVE & PLANNED MAINTENAN,WHISTL UK LIMITED,68868,14-Jan-20,2098799,0,0,POSTAGE FROM FRANKING,POSTAL AND COURIER SERVICE PROVIDERS,Invoice,BACS,None,23-Dec-19,2019,10,AS19004516,M5111,REPAIRS-ADMIN (BHS),D5467,POSTAGE FROM FRANKING
GUILDFORD BOROUGH COUNCIL,DEBTORS,WHISTL UK LIMITED,68868,14-Jan-20,2098800,72.72,0,POSTAGE FROM FRANKING,POSTAL AND COURIER SERVICE PROVIDERS,Invoice,BACS,None,23-Dec-19,2019,10,PS19006043,G3555,DEBTORS,D5467,POSTAGE FROM FRANKING
GUILDFORD BOROUGH COUNCIL,AFFORDABLE HOUSING DEVELOPMENT,WHISTL UK LIMITED,68868,14-Jan-20,2098800,0.83,0,POSTAGE FROM FRANKING,POSTAL AND COURIER SERVICE PROVIDERS,Invoice,BACS,None,23-Dec-19,2019,10,PS19006043,C4111,AFFORDABLE HOUSING DEVELOPMENT,D5467,POSTAGE FROM FRANKING
GUILDFORD BOROUGH COUNCIL,HR SERVICES,WHISTL UK LIMITED,68868,14-Jan-20,2098800,1.15,0,POSTAGE FROM FRANKING,POSTAL AND COURIER SERVICE PROVIDERS,Invoice,BACS,None,23-Dec-19,2019,10,PS19006043,G2555,HR SERVICES,D5467,POSTAGE FROM FRANKING
GUILDFORD BOROUGH COUNCIL,BUSINESS RATES,WHISTL UK LIMITED,68868,14-Jan-20,2098800,3.71,0,POSTAGE FROM FRANKING,POSTAL AND COURIER SERVICE PROVIDERS,Invoice,BACS,None,23-Dec-19,2019,10,PS19006043,F6151,BUSINESS RATES COLLECTION EXPS,D5467,POSTAGE FROM FRANKING
GUILDFORD BOROUGH COUNCIL,INTERNAL AUDIT,WHISTL UK LIMITED,68868,14-Jan-20,2098800,0.5,0,POSTAGE FROM FRANKING,POSTAL AND COURIER SERVICE PROVIDERS,Invoice,BACS,None,23-Dec-19,2019,10,PS19006043,G3525,INTERNAL AUDIT,D5467,POSTAGE FROM FRANKING
GUILDFORD BOROUGH COUNCIL,TOURIST INFORMATION CENTRE,WHISTL UK LIMITED,68868,14-Jan-20,2098786,3.19,0,POSTAGE FROM FRANKING,POSTAL AND COURIER SERVICE PROVIDERS,Invoice,BACS,None,02-Dec-19,2019,10,PS19005721,F5541,TOURIST INFORMATION CENTRE,D5467,POSTAGE FROM FRANKING
GUILDFORD BOROUGH COUNCIL,ACCOUNTANCY,WHISTL UK LIMITED,68868,14-Jan-20,2098792,18.13,0,POSTAGE FROM FRANKING,POSTAL AND COURIER SERVICE PROVIDERS,Invoice,BACS,None,09-Dec-19,2019,10,PS19005824,G3565,ACCOUNTANCY SERVICES,D5467,POSTAGE FROM FRANKING
GUILDFORD BOROUGH COUNCIL,AFFORDABLE HOUSING DEVELOPMENT,WHISTL UK LIMITED,68868,14-Jan-20,2098786,0.75,0,POSTAGE FROM FRANKING,POSTAL AND COURIER SERVICE PROVIDERS,Invoice,BACS,None,02-Dec-19,2019,10,PS19005721,C4111,AFFORDABLE HOUSING DEVELOPMENT,D5467,POSTAGE FROM FRANKING
GUILDFORD BOROUGH COUNCIL,PRIVATE SECTOR HOUSING,WHISTL UK LIMITED,68868,14-Jan-20,2098791,5.71,0,POSTAGE FROM FRANKING,POSTAL AND COURIER SERVICE PROVIDERS,Invoice,BACS,None,02-Dec-19,2019,10,AS19004251,C5122,PRIVATE SECTOR HOUSING STANDAR,D5467,POSTAGE FROM FRANKING
GUILDFORD BOROUGH COUNCIL,GUILDHALL,WHISTL UK LIMITED,68868,14-Jan-20,2098799,0.02,0,POSTAGE FROM FRANKING,POSTAL AND COURIER SERVICE PROVIDERS,Invoice,BACS,None,23-Dec-19,2019,10,AS19004516,F3311,GUILDHALL,D5467,POSTAGE FROM FRANKING
GUILDFORD BOROUGH COUNCIL,LEISURE COMMUNITY CENTRES,WHISTL UK LIMITED,68868,14-Jan-20,2098799,0.81,0,POSTAGE FROM FRANKING,POSTAL AND COURIER SERVICE PROVIDERS,Invoice,BACS,None,23-Dec-19,2019,10,AS19004516,A8111,YOUTH & COMM CENTRES- ADMIN.,D5467,POSTAGE FROM FRANKING
GUILDFORD BOROUGH COUNCIL,PAYMENTS AND PURCHASING,WHISTL UK LIMITED,68868,14-Jan-20,2098799,4.94,0,POSTAGE FROM FRANKING,POSTAL AND COURIER SERVICE PROVIDERS,Invoice,BACS,None,23-Dec-19,2019,10,AS19004516,G3596,CREDITORS,D5467,POSTAGE FROM FRANKING
GUILDFORD BOROUGH COUNCIL,OFFICE SERVICES TEAM,WHISTL UK LIMITED,68868,14-Jan-20,2098799,0.6,0,POSTAGE FROM FRANKING,POSTAL AND COURIER SERVICE PROVIDERS,Invoice,BACS,None,23-Dec-19,2019,10,AS19004516,G4585,OFFICE SERVICES,D5467,POSTAGE FROM FRANKING
GUILDFORD BOROUGH COUNCIL,OFF STREET PARKING,WHISTL UK LIMITED,68868,14-Jan-20,2098786,38.2,0,POSTAGE FROM FRANKING,POSTAL AND COURIER SERVICE PROVIDERS,Invoice,BACS,None,02-Dec-19,2019,10,PS19005721,B2115,PARKING OFFICE ACCOMM COSTS,D5467,POSTAGE FROM FRANKING
GUILDFORD BOROUGH COUNCIL,OPERATIONAL SERVS OVERHEAD AC,WHISTL UK LIMITED,68868,14-Jan-20,2098753,11.77,0,POSTAGE FROM FRANKING,POSTAL AND COURIER SERVICE PROVIDERS,Invoice,BACS,None,25-Nov-19,2019,10,AS19004152,K1519,OPERATIONAL SERVS OVERHEAD AC,D5467,POSTAGE FROM FRANKING
GUILDFORD BOROUGH COUNCIL,TRANSPORTATION,WHISTL UK LIMITED,68868,14-Jan-20,2098800,0.48,0,POSTAGE FROM FRANKING,POSTAL AND COURIER SERVICE PROVIDERS,Invoice,BACS,None,23-Dec-19,2019,10,PS19006043,B5122,TRANSPORTATION INITIATIVES,D5467,POSTAGE FROM FRANKING
GUILDFORD BOROUGH COUNCIL,GUILDHALL,WHISTL UK LIMITED,68868,14-Jan-20,2098792,0.33,0,POSTAGE FROM FRANKING,POSTAL AND COURIER SERVICE PROVIDERS,Invoice,BACS,None,09-Dec-19,2019,10,PS19005824,F3311,GUILDHALL,D5467,POSTAGE FROM FRANKING
GUILDFORD BOROUGH COUNCIL,COUNCIL TAX,WHISTL UK LIMITED,68868,16-Jan-20,2099572,1.45,0,POSTAGE FROM FRANKING,POSTAL AND COURIER SERVICE PROVIDERS,Invoice,BACS,None,16-Dec-19,2019,10,AS19004428,F6141,COUNCIL TAX COLLECTN EXPENSES,D5467,POSTAGE FROM FRANKING
GUILDFORD BOROUGH COUNCIL,LAND CHARGES,WHISTL UK LIMITED,68868,14-Jan-20,2098793,0,0,POSTAGE FROM FRANKING,POSTAL AND COURIER SERVICE PROVIDERS,Invoice,BACS,None,09-Dec-19,2019,10,AS19004334,F4111,LOCAL LAND CHARGES,D5467,POSTAGE FROM FRANKING
GUILDFORD BOROUGH COUNCIL,BUSINESS & TOURISM,WHISTL UK LIMITED,68868,14-Jan-20,2098800,0.87,0,POSTAGE FROM FRANKING,POSTAL AND COURIER SERVICE PROVIDERS,Invoice,BACS,None,23-Dec-19,2019,10,PS19006043,F5547,BUSINESS,D5467,POSTAGE FROM FRANKING
GUILDFORD BOROUGH COUNCIL,LEISURE COMMUNITY CENTRES,WHISTL UK LIMITED,68868,14-Jan-20,2098800,1.08,0,POSTAGE FROM FRANKING,POSTAL AND COURIER SERVICE PROVIDERS,Invoice,BACS,None,23-Dec-19,2019,10,PS19006043,A8111,YOUTH & COMM CENTRES- ADMIN.,D5467,POSTAGE FROM FRANKING
GUILDFORD BOROUGH COUNCIL,LEISURE ART DEVELOPMENT,WHISTL UK LIMITED,68868,14-Jan-20,2098800,1.87,0,POSTAGE FROM FRANKING,POSTAL AND COURIER SERVICE PROVIDERS,Invoice,BACS,None,23-Dec-19,2019,10,PS19006043,A3511,ARTS DEVELOPMENT,D5467,POSTAGE FROM FRANKING
GUILDFORD BOROUGH COUNCIL,OFFICE SERVICES TEAM,WHISTL UK LIMITED,68868,14-Jan-20,2098800,0.83,0,POSTAGE FROM FRANKING,POSTAL AND COURIER SERVICE PROVIDERS,Invoice,BACS,None,23-Dec-19,2019,10,PS19006043,G4585,OFFICE SERVICES,D5467,POSTAGE FROM FRANKING
GUILDFORD BOROUGH COUNCIL,BUSINESS & TOURISM,WHISTL UK LIMITED,68868,14-Jan-20,2098793,1.73,0,POSTAGE FROM FRANKING,POSTAL AND COURIER SERVICE PROVIDERS,Invoice,BACS,None,09-Dec-19,2019,10,AS19004334,F5545,TOURISM,D5467,POSTAGE FROM FRANKING
GUILDFORD BOROUGH COUNCIL,BUSINESS & TOURISM,WHISTL UK LIMITED,68868,14-Jan-20,2098792,8.44,0,POSTAGE FROM FRANKING,POSTAL AND COURIER SERVICE PROVIDERS,Invoice,BACS,None,09-Dec-19,2019,10,PS19005824,F5545,TOURISM,D5467,POSTAGE FROM FRANKING
GUILDFORD BOROUGH COUNCIL,LEISURE SPORT DEVELOPMENT,WHISTL UK LIMITED,68868,14-Jan-20,2098792,4.48,0,POSTAGE FROM FRANKING,POSTAL AND COURIER SERVICE PROVIDERS,Invoice,BACS,None,09-Dec-19,2019,10,PS19005824,A7311,SPORTS DEVELOPMENT OFFICER,D5467,POSTAGE FROM FRANKING
GUILDFORD BOROUGH COUNCIL,OFF STREET PARKING,WHISTL UK LIMITED,68868,14-Jan-20,2098792,17.45,0,POSTAGE FROM FRANKING,POSTAL AND COURIER SERVICE PROVIDERS,Invoice,BACS,None,09-Dec-19,2019,10,PS19005824,B2115,PARKING OFFICE ACCOMM COSTS,D5467,POSTAGE FROM FRANKING
GUILDFORD BOROUGH COUNCIL,POLICY,WHISTL UK LIMITED,68868,14-Jan-20,2098792,5.85,0,POSTAGE FROM FRANKING,POSTAL AND COURIER SERVICE PROVIDERS,Invoice,BACS,None,09-Dec-19,2019,10,PS19005824,D5300,POLICY,D5467,POSTAGE FROM FRANKING
GUILDFORD BOROUGH COUNCIL,TENANT SELECTION,WHISTL UK LIMITED,68868,14-Jan-20,2098791,5.63,0,POSTAGE FROM FRANKING,POSTAL AND COURIER SERVICE PROVIDERS,Invoice,BACS,None,02-Dec-19,2019,10,AS19004251,M1131,"ADVICE,REGS,TENANT SELECT(SHS)",D5467,POSTAGE FROM FRANKING
GUILDFORD BOROUGH COUNCIL,HR SERVICES,WHISTL UK LIMITED,68868,14-Jan-20,2098791,0.68,0,POSTAGE FROM FRANKING,POSTAL AND COURIER SERVICE PROVIDERS,Invoice,BACS,None,02-Dec-19,2019,10,AS19004251,G2555,HR SERVICES,D5467,POSTAGE FROM FRANKING
GUILDFORD BOROUGH COUNCIL,WEBSITE,WHISTL UK LIMITED,68868,14-Jan-20,2098791,0.3,0,POSTAGE FROM FRANKING,POSTAL AND COURIER SERVICE PROVIDERS,Invoice,BACS,None,02-Dec-19,2019,10,AS19004251,F1141,INTERNET SITE ACCESS,D5467,POSTAGE FROM FRANKING
GUILDFORD BOROUGH COUNCIL,CLIMATE CHANGE,WHISTL UK LIMITED,68868,14-Jan-20,2098791,0.08,0,POSTAGE FROM FRANKING,POSTAL AND COURIER SERVICE PROVIDERS,Invoice,BACS,None,02-Dec-19,2019,10,AS19004251,B3911,CLIMATE CHANGE STRATEGY,D5467,POSTAGE FROM FRANKING
GUILDFORD BOROUGH COUNCIL,PAYMENTS AND PURCHASING,WHISTL UK LIMITED,68868,14-Jan-20,2098791,0.7,0,POSTAGE FROM FRANKING,POSTAL AND COURIER SERVICE PROVIDERS,Invoice,BACS,None,02-Dec-19,2019,10,AS19004251,G3598,PURCHASING,D5467,POSTAGE FROM FRANKING
GUILDFORD BOROUGH COUNCIL,BUSINESS IMPROVEMENT,WHISTL UK LIMITED,68868,14-Jan-20,2098800,0.5,0,POSTAGE FROM FRANKING,POSTAL AND COURIER SERVICE PROVIDERS,Invoice,BACS,None,23-Dec-19,2019,10,PS19006043,G3530,BUSINESS IMPROVEMENT,D5467,POSTAGE FROM FRANKING
GUILDFORD BOROUGH COUNCIL,DEVELOPMENT CONTROL,WHISTL UK LIMITED,68868,14-Jan-20,2098799,0,0,POSTAGE FROM FRANKING,POSTAL AND COURIER SERVICE PROVIDERS,Invoice,BACS,None,23-Dec-19,2019,10,AS19004516,D5100,DEVELOPMENT CONTROL - FEE EARN,D5467,POSTAGE FROM FRANKING
GUILDFORD BOROUGH COUNCIL,BUILDING CONTROL SUMMARY,WHISTL UK LIMITED,68868,14-Jan-20,2098800,21.32,0,POSTAGE FROM FRANKING,POSTAL AND COURIER SERVICE PROVIDERS,Invoice,BACS,None,23-Dec-19,2019,10,PS19006043,D5800,BUILDING CONTROL - NON FEE,D5467,POSTAGE FROM FRANKING
GUILDFORD BOROUGH COUNCIL,BUILDING CONTROL SUMMARY,WHISTL UK LIMITED,68868,14-Jan-20,2098753,0,0,POSTAGE FROM FRANKING,POSTAL AND COURIER SERVICE PROVIDERS,Invoice,BACS,None,25-Nov-19,2019,10,AS19004152,D5800,BUILDING CONTROL - NON FEE,D5467,POSTAGE FROM FRANKING
GUILDFORD BOROUGH COUNCIL,ENVIRONMENTAL CONTROL,WHISTL UK LIMITED,68868,14-Jan-20,2098753,1.01,0,POSTAGE FROM FRANKING,POSTAL AND COURIER SERVICE PROVIDERS,Invoice,BACS,None,25-Nov-19,2019,10,AS19004152,C1113,ENVIRONMENTAL CONTROL,D5467,POSTAGE FROM FRANKING
GUILDFORD BOROUGH COUNCIL,BUSINESS IMPROVEMENT,WHISTL UK LIMITED,68868,14-Jan-20,2098753,0.2,0,POSTAGE FROM FRANKING,POSTAL AND COURIER SERVICE PROVIDERS,Invoice,BACS,None,25-Nov-19,2019,10,AS19004152,G3530,BUSINESS IMPROVEMENT,D5467,POSTAGE FROM FRANKING
GUILDFORD BOROUGH COUNCIL,PUBLIC RELATIONS,WHISTL UK LIMITED,68868,14-Jan-20,2098799,0.23,0,POSTAGE FROM FRANKING,POSTAL AND COURIER SERVICE PROVIDERS,Invoice,BACS,None,23-Dec-19,2019,10,AS19004516,F5551,PUBLIC RELATIONS & MARKETING,D5467,POSTAGE FROM FRANKING
GUILDFORD BOROUGH COUNCIL,AFFORDABLE HOUSING DEVELOPMENT,WHISTL UK LIMITED,68868,14-Jan-20,2098799,0.62,0,POSTAGE FROM FRANKING,POSTAL AND COURIER SERVICE PROVIDERS,Invoice,BACS,None,23-Dec-19,2019,10,AS19004516,C4111,AFFORDABLE HOUSING DEVELOPMENT,D5467,POSTAGE FROM FRANKING
GUILDFORD BOROUGH COUNCIL,ENGINEERING AND TRANS SERVICES,WHISTL UK LIMITED,68868,14-Jan-20,2098793,0,0,POSTAGE FROM FRANKING,POSTAL AND COURIER SERVICE PROVIDERS,Invoice,BACS,None,09-Dec-19,2019,10,AS19004334,G5538,ENGINEERING AND TRANS SERVICES,D5467,POSTAGE FROM FRANKING
GUILDFORD BOROUGH COUNCIL,TENANT PARTICIPATION,WHISTL UK LIMITED,68868,14-Jan-20,2098799,0,0,POSTAGE FROM FRANKING,POSTAL AND COURIER SERVICE PROVIDERS,Invoice,BACS,None,23-Dec-19,2019,10,AS19004516,M1152,TENANT PARTICIPATION (BHS),D5467,POSTAGE FROM FRANKING
GUILDFORD BOROUGH COUNCIL,WEBSITE,WHISTL UK LIMITED,68868,16-Jan-20,2099572,0.28,0,POSTAGE FROM FRANKING,POSTAL AND COURIER SERVICE PROVIDERS,Invoice,BACS,None,16-Dec-19,2019,10,AS19004428,F1141,INTERNET SITE ACCESS,D5467,POSTAGE FROM FRANKING
GUILDFORD BOROUGH COUNCIL,BUSINESS & TOURISM,WHISTL UK LIMITED,68868,14-Jan-20,2098791,0.52,0,POSTAGE FROM FRANKING,POSTAL AND COURIER SERVICE PROVIDERS,Invoice,BACS,None,02-Dec-19,2019,10,AS19004251,F5547,BUSINESS,D5467,POSTAGE FROM FRANKING
GUILDFORD BOROUGH COUNCIL,FOOD AND SAFETY SERVICES,WHISTL UK LIMITED,68868,14-Jan-20,2098791,1.54,0,POSTAGE FROM FRANKING,POSTAL AND COURIER SERVICE PROVIDERS,Invoice,BACS,None,02-Dec-19,2019,10,AS19004251,C1111,FOOD AND SAFETY SERVICES,D5467,POSTAGE FROM FRANKING
GUILDFORD BOROUGH COUNCIL,VOID PROPERTY MANAGEMENT,WHISTL UK LIMITED,68868,14-Jan-20,2098791,1.88,0,POSTAGE FROM FRANKING,POSTAL AND COURIER SERVICE PROVIDERS,Invoice,BACS,None,02-Dec-19,2019,10,AS19004251,M1141,VOID PROPERTY MGMT (SHS),D5467,POSTAGE FROM FRANKING
GUILDFORD BOROUGH COUNCIL,TRANSPORTATION,WHISTL UK LIMITED,68868,14-Jan-20,2098791,0.01,0,POSTAGE FROM FRANKING,POSTAL AND COURIER SERVICE PROVIDERS,Invoice,BACS,None,02-Dec-19,2019,10,AS19004251,B5122,TRANSPORTATION INITIATIVES,D5467,POSTAGE FROM FRANKING
GUILDFORD BOROUGH COUNCIL,TENANT SELECTION,WHISTL UK LIMITED,68868,14-Jan-20,2098792,22.75,0,POSTAGE FROM FRANKING,POSTAL AND COURIER SERVICE PROVIDERS,Invoice,BACS,None,09-Dec-19,2019,10,PS19005824,M1131,"ADVICE,REGS,TENANT SELECT(SHS)",D5467,POSTAGE FROM FRANKING
GUILDFORD BOROUGH COUNCIL,LICENSING SERVICES,WHISTL UK LIMITED,68868,14-Jan-20,2098792,6.25,0,POSTAGE FROM FRANKING,POSTAL AND COURIER SERVICE PROVIDERS,Invoice,BACS,None,09-Dec-19,2019,10,PS19005824,H2100,LICENSING SERVICES,D5467,POSTAGE FROM FRANKING
GUILDFORD BOROUGH COUNCIL,ENVIRONMENTAL CONTROL,WHISTL UK LIMITED,68868,14-Jan-20,2098792,6.25,0,POSTAGE FROM FRANKING,POSTAL AND COURIER SERVICE PROVIDERS,Invoice,BACS,None,09-Dec-19,2019,10,PS19005824,C1113,ENVIRONMENTAL CONTROL,D5467,POSTAGE FROM FRANKING
GUILDFORD BOROUGH COUNCIL,VOID PROPERTY MANAGEMENT,WHISTL UK LIMITED,68868,14-Jan-20,2098799,2.37,0,POSTAGE FROM FRANKING,POSTAL AND COURIER SERVICE PROVIDERS,Invoice,BACS,None,23-Dec-19,2019,10,AS19004516,M1141,VOID PROPERTY MGMT (SHS),D5467,POSTAGE FROM FRANKING
GUILDFORD BOROUGH COUNCIL,TENANTS' SERVICES,WHISTL UK LIMITED,68868,16-Jan-20,2099575,55.65,0,POSTAGE FROM FRANKING,POSTAL AND COURIER SERVICE PROVIDERS,Invoice,BACS,None,16-Dec-19,2019,10,PS19005934,M1151,TENANTS SERVICES (BHS),D5467,POSTAGE FROM FRANKING
GUILDFORD BOROUGH COUNCIL,HR SERVICES,WHISTL UK LIMITED,68868,14-Jan-20,2098753,0.45,0,POSTAGE FROM FRANKING,POSTAL AND COURIER SERVICE PROVIDERS,Invoice,BACS,None,25-Nov-19,2019,10,AS19004152,G2555,HR SERVICES,D5467,POSTAGE FROM FRANKING
GUILDFORD BOROUGH COUNCIL,HOUSING BENEFITS,WHISTL UK LIMITED,68868,14-Jan-20,2098753,2.18,0,POSTAGE FROM FRANKING,POSTAL AND COURIER SERVICE PROVIDERS,Invoice,BACS,None,25-Nov-19,2019,10,AS19004152,C4511,HOUSING BENEFITS ADMIN.,D5467,POSTAGE FROM FRANKING
GUILDFORD BOROUGH COUNCIL,GUILDHALL,WHISTL UK LIMITED,68868,14-Jan-20,2098753,0.33,0,POSTAGE FROM FRANKING,POSTAL AND COURIER SERVICE PROVIDERS,Invoice,BACS,None,25-Nov-19,2019,10,AS19004152,F3311,GUILDHALL,D5467,POSTAGE FROM FRANKING
GUILDFORD BOROUGH COUNCIL,MANAGEMENT POLICY STRATEGY,WHISTL UK LIMITED,68868,16-Jan-20,2099572,0.17,0,POSTAGE FROM FRANKING,POSTAL AND COURIER SERVICE PROVIDERS,Invoice,BACS,None,16-Dec-19,2019,10,AS19004428,G3545,"ICT MANAGEMENT, POLICY & STRAT",D5467,POSTAGE FROM FRANKING
GUILDFORD BOROUGH COUNCIL,INTERNAL AUDIT,WHISTL UK LIMITED,68868,16-Jan-20,2099575,0.62,0,POSTAGE FROM FRANKING,POSTAL AND COURIER SERVICE PROVIDERS,Invoice,BACS,None,16-Dec-19,2019,10,PS19005934,G3525,INTERNAL AUDIT,D5467,POSTAGE FROM FRANKING
GUILDFORD BOROUGH COUNCIL,CLIMATE CHANGE,WHISTL UK LIMITED,68868,16-Jan-20,2099575,0.16,0,POSTAGE FROM FRANKING,POSTAL AND COURIER SERVICE PROVIDERS,Invoice,BACS,None,16-Dec-19,2019,10,PS19005934,B3911,CLIMATE CHANGE STRATEGY,D5467,POSTAGE FROM FRANKING
GUILDFORD BOROUGH COUNCIL,TENANTS' SERVICES,WHISTL UK LIMITED,68868,14-Jan-20,2098800,64.17,0,POSTAGE FROM FRANKING,POSTAL AND COURIER SERVICE PROVIDERS,Invoice,BACS,None,23-Dec-19,2019,10,PS19006043,M1151,TENANTS SERVICES (BHS),D5467,POSTAGE FROM FRANKING
GUILDFORD BOROUGH COUNCIL,LEISURE PLAY DEVELOPMENT,WHISTL UK LIMITED,68868,16-Jan-20,2099575,2.28,0,POSTAGE FROM FRANKING,POSTAL AND COURIER SERVICE PROVIDERS,Invoice,BACS,None,16-Dec-19,2019,10,PS19005934,A7211,PLAY DEVELOPMENT,D5467,POSTAGE FROM FRANKING
GUILDFORD BOROUGH COUNCIL,BUSINESS RATES,WHISTL UK LIMITED,68868,16-Jan-20,2099572,2.08,0,POSTAGE FROM FRANKING,POSTAL AND COURIER SERVICE PROVIDERS,Invoice,BACS,None,16-Dec-19,2019,10,AS19004428,F6151,BUSINESS RATES COLLECTION EXPS,D5467,POSTAGE FROM FRANKING
GUILDFORD BOROUGH COUNCIL,POLICY,WHISTL UK LIMITED,68868,16-Jan-20,2099575,26.49,0,POSTAGE FROM FRANKING,POSTAL AND COURIER SERVICE PROVIDERS,Invoice,BACS,None,16-Dec-19,2019,10,PS19005934,D5555,DESIGN AND CONSERVATION,D5467,POSTAGE FROM FRANKING
GUILDFORD BOROUGH COUNCIL,ELECTORAL REGISTRATION,WHISTL UK LIMITED,68868,16-Jan-20,2099575,0,0,POSTAGE FROM FRANKING,POSTAL AND COURIER SERVICE PROVIDERS,Invoice,BACS,None,16-Dec-19,2019,10,PS19005934,F2511,ELECTORAL REGISTRATION,D5467,POSTAGE FROM FRANKING
GUILDFORD BOROUGH COUNCIL,TENANT SELECTION,WHISTL UK LIMITED,68868,16-Jan-20,2099572,5.31,0,POSTAGE FROM FRANKING,POSTAL AND COURIER SERVICE PROVIDERS,Invoice,BACS,None,16-Dec-19,2019,10,AS19004428,M1131,"ADVICE,REGS,TENANT SELECT(SHS)",D5467,POSTAGE FROM FRANKING
GUILDFORD BOROUGH COUNCIL,POLICY,WHISTL UK LIMITED,68868,16-Jan-20,2099572,0,0,POSTAGE FROM FRANKING,POSTAL AND COURIER SERVICE PROVIDERS,Invoice,BACS,None,16-Dec-19,2019,10,AS19004428,D5300,POLICY,D5467,POSTAGE FROM FRANKING
GUILDFORD BOROUGH COUNCIL,OFFICE SERVICES TEAM,WHISTL UK LIMITED,68868,16-Jan-20,2099575,0.96,0,POSTAGE FROM FRANKING,POSTAL AND COURIER SERVICE PROVIDERS,Invoice,BACS,None,16-Dec-19,2019,10,PS19005934,G4585,OFFICE SERVICES,D5467,POSTAGE FROM FRANKING
GUILDFORD BOROUGH COUNCIL,CREMATORIUM,WHISTL UK LIMITED,68868,16-Jan-20,2099575,4.94,0,POSTAGE FROM FRANKING,POSTAL AND COURIER SERVICE PROVIDERS,Invoice,BACS,None,16-Dec-19,2019,10,PS19005934,A1500,GUILDFORD CREMATORIUM,D5467,POSTAGE FROM FRANKING
GUILDFORD BOROUGH COUNCIL,LICENSING SERVICES,WHISTL UK LIMITED,68868,16-Jan-20,2099575,3.17,0,POSTAGE FROM FRANKING,POSTAL AND COURIER SERVICE PROVIDERS,Invoice,BACS,None,16-Dec-19,2019,10,PS19005934,H2100,LICENSING SERVICES,D5467,POSTAGE FROM FRANKING
GUILDFORD BOROUGH COUNCIL,PRIVATE SECTOR HOUSING,WHISTL UK LIMITED,68868,14-Jan-20,2098753,3.74,0,POSTAGE FROM FRANKING,POSTAL AND COURIER SERVICE PROVIDERS,Invoice,BACS,None,25-Nov-19,2019,10,AS19004152,C5122,PRIVATE SECTOR HOUSING STANDAR,D5467,POSTAGE FROM FRANKING
GUILDFORD BOROUGH COUNCIL,DEVELOPMENT CONTROL,WHISTL UK LIMITED,68868,14-Jan-20,2098791,0,0,POSTAGE FROM FRANKING,POSTAL AND COURIER SERVICE PROVIDERS,Invoice,BACS,None,02-Dec-19,2019,10,AS19004251,D5100,DEVELOPMENT CONTROL - FEE EARN,D5467,POSTAGE FROM FRANKING
GUILDFORD BOROUGH COUNCIL,OPERATIONS TECHNICAL SERVICES,WHISTL UK LIMITED,68868,14-Jan-20,2098792,1.57,0,POSTAGE FROM FRANKING,POSTAL AND COURIER SERVICE PROVIDERS,Invoice,BACS,None,09-Dec-19,2019,10,PS19005824,G3546,ICT SERVICE DESK,D5467,POSTAGE FROM FRANKING
GUILDFORD BOROUGH COUNCIL,LEISURE GRANTS,WHISTL UK LIMITED,68868,14-Jan-20,2098792,3.24,0,POSTAGE FROM FRANKING,POSTAL AND COURIER SERVICE PROVIDERS,Invoice,BACS,None,09-Dec-19,2019,10,PS19005824,A4111,GRANTS ADMINISTRATION,D5467,POSTAGE FROM FRANKING
GUILDFORD BOROUGH COUNCIL,TAXI LICENSING,WHISTL UK LIMITED,68868,14-Jan-20,2098800,2.6,0,POSTAGE FROM FRANKING,POSTAL AND COURIER SERVICE PROVIDERS,Invoice,BACS,None,23-Dec-19,2019,10,PS19006043,H1108,HC & PC VEHICLES,D5467,POSTAGE FROM FRANKING
GUILDFORD BOROUGH COUNCIL,OPERATIONS TECHNICAL SERVICES,WHISTL UK LIMITED,68868,14-Jan-20,2098800,0.66,0,POSTAGE FROM FRANKING,POSTAL AND COURIER SERVICE PROVIDERS,Invoice,BACS,None,23-Dec-19,2019,10,PS19006043,G3546,ICT SERVICE DESK,D5467,POSTAGE FROM FRANKING
GUILDFORD BOROUGH COUNCIL,PRIVATE SECTOR HOUSING,WHISTL UK LIMITED,68868,14-Jan-20,2098800,9.63,0,POSTAGE FROM FRANKING,POSTAL AND COURIER SERVICE PROVIDERS,Invoice,BACS,None,23-Dec-19,2019,10,PS19006043,C5122,PRIVATE SECTOR HOUSING STANDAR,D5467,POSTAGE FROM FRANKING
GUILDFORD BOROUGH COUNCIL,LEISURE ART DEVELOPMENT,WHISTL UK LIMITED,68868,14-Jan-20,2098753,0.73,0,POSTAGE FROM FRANKING,POSTAL AND COURIER SERVICE PROVIDERS,Invoice,BACS,None,25-Nov-19,2019,10,AS19004152,A3511,ARTS DEVELOPMENT,D5467,POSTAGE FROM FRANKING
GUILDFORD BOROUGH COUNCIL,LICENSING SERVICES,WHISTL UK LIMITED,68868,14-Jan-20,2098793,1.28,0,POSTAGE FROM FRANKING,POSTAL AND COURIER SERVICE PROVIDERS,Invoice,BACS,None,09-Dec-19,2019,10,AS19004334,H2100,LICENSING SERVICES,D5467,POSTAGE FROM FRANKING
GUILDFORD BOROUGH COUNCIL,TENANTS' SERVICES,WHISTL UK LIMITED,68868,16-Jan-20,2099572,2.35,0,POSTAGE FROM FRANKING,POSTAL AND COURIER SERVICE PROVIDERS,Invoice,BACS,None,16-Dec-19,2019,10,AS19004428,M1151,TENANTS SERVICES (BHS),D5467,POSTAGE FROM FRANKING
GUILDFORD BOROUGH COUNCIL,BUSINESS & TOURISM,WHISTL UK LIMITED,68868,14-Jan-20,2098753,0.34,0,POSTAGE FROM FRANKING,POSTAL AND COURIER SERVICE PROVIDERS,Invoice,BACS,None,25-Nov-19,2019,10,AS19004152,F5547,BUSINESS,D5467,POSTAGE FROM FRANKING
GUILDFORD BOROUGH COUNCIL,OPERATIONS TECHNICAL SERVICES,WHISTL UK LIMITED,68868,14-Jan-20,2098753,0.25,0,POSTAGE FROM FRANKING,POSTAL AND COURIER SERVICE PROVIDERS,Invoice,BACS,None,25-Nov-19,2019,10,AS19004152,G3546,ICT SERVICE DESK,D5467,POSTAGE FROM FRANKING
GUILDFORD BOROUGH COUNCIL,CLIMATE CHANGE,WHISTL UK LIMITED,68868,14-Jan-20,2098753,0.31,0,POSTAGE FROM FRANKING,POSTAL AND COURIER SERVICE PROVIDERS,Invoice,BACS,None,25-Nov-19,2019,10,AS19004152,G4586,ENERGY SERVICES,D5467,POSTAGE FROM FRANKING
GUILDFORD BOROUGH COUNCIL,AFFORDABLE HOUSING DEVELOPMENT,WHISTL UK LIMITED,68868,14-Jan-20,2098753,0.32,0,POSTAGE FROM FRANKING,POSTAL AND COURIER SERVICE PROVIDERS,Invoice,BACS,None,25-Nov-19,2019,10,AS19004152,C4111,AFFORDABLE HOUSING DEVELOPMENT,D5467,POSTAGE FROM FRANKING
GUILDFORD BOROUGH COUNCIL,CREMATORIUM,WHISTL UK LIMITED,68868,14-Jan-20,2098753,2.07,0,POSTAGE FROM FRANKING,POSTAL AND COURIER SERVICE PROVIDERS,Invoice,BACS,None,25-Nov-19,2019,10,AS19004152,A1500,GUILDFORD CREMATORIUM,D5467,POSTAGE FROM FRANKING
GUILDFORD BOROUGH COUNCIL,CLIMATE CHANGE,WHISTL UK LIMITED,68868,16-Jan-20,2099572,0.45,0,POSTAGE FROM FRANKING,POSTAL AND COURIER SERVICE PROVIDERS,Invoice,BACS,None,16-Dec-19,2019,10,AS19004428,G4586,ENERGY SERVICES,D5467,POSTAGE FROM FRANKING
GUILDFORD BOROUGH COUNCIL,HOUSING SURVEYING SERVICES,WHISTL UK LIMITED,68868,16-Jan-20,2099575,14.43,0,POSTAGE FROM FRANKING,POSTAL AND COURIER SERVICE PROVIDERS,Invoice,BACS,None,16-Dec-19,2019,10,PS19005934,G6525,HOUSING SURVEYING SERVICES,D5467,POSTAGE FROM FRANKING
GUILDFORD BOROUGH COUNCIL,GUILDHALL,WHISTL UK LIMITED,68868,14-Jan-20,2098793,0,0,POSTAGE FROM FRANKING,POSTAL AND COURIER SERVICE PROVIDERS,Invoice,BACS,None,09-Dec-19,2019,10,AS19004334,F3311,GUILDHALL,D5467,POSTAGE FROM FRANKING
GUILDFORD BOROUGH COUNCIL,GUILDFORD HOUSE,WHISTL UK LIMITED,68868,16-Jan-20,2099572,0,0,POSTAGE FROM FRANKING,POSTAL AND COURIER SERVICE PROVIDERS,Invoice,BACS,None,16-Dec-19,2019,10,AS19004428,A4511,GUILDFORD HOUSE ADMINISTRATION,D5467,POSTAGE FROM FRANKING
GUILDFORD BOROUGH COUNCIL,LAND CHARGES,WHISTL UK LIMITED,68868,14-Jan-20,2098753,0,0,POSTAGE FROM FRANKING,POSTAL AND COURIER SERVICE PROVIDERS,Invoice,BACS,None,25-Nov-19,2019,10,AS19004152,F4111,LOCAL LAND CHARGES,D5467,POSTAGE FROM FRANKING
GUILDFORD BOROUGH COUNCIL,ELECTORAL REGISTRATION,WHISTL UK LIMITED,68868,14-Jan-20,2098753,0,0,POSTAGE FROM FRANKING,POSTAL AND COURIER SERVICE PROVIDERS,Invoice,BACS,None,25-Nov-19,2019,10,AS19004152,F2512,INDIVID ELECTORAL REGISTRATION,D5467,POSTAGE FROM FRANKING
GUILDFORD BOROUGH COUNCIL,BUILDING CONTROL SUMMARY,WHISTL UK LIMITED,68868,14-Jan-20,2098753,0,0,POSTAGE FROM FRANKING,POSTAL AND COURIER SERVICE PROVIDERS,Invoice,BACS,None,25-Nov-19,2019,10,AS19004152,D5700,BUILDING CONTROL - FEE,D5467,POSTAGE FROM FRANKING
GUILDFORD BOROUGH COUNCIL,MANAGEMENT POLICY STRATEGY,WHISTL UK LIMITED,68868,14-Jan-20,2098753,0.12,0,POSTAGE FROM FRANKING,POSTAL AND COURIER SERVICE PROVIDERS,Invoice,BACS,None,25-Nov-19,2019,10,AS19004152,G3545,"ICT MANAGEMENT, POLICY & STRAT",D5467,POSTAGE FROM FRANKING
GUILDFORD BOROUGH COUNCIL,LICENSING SERVICES,WHISTL UK LIMITED,68868,14-Jan-20,2098753,1.01,0,POSTAGE FROM FRANKING,POSTAL AND COURIER SERVICE PROVIDERS,Invoice,BACS,None,25-Nov-19,2019,10,AS19004152,H2100,LICENSING SERVICES,D5467,POSTAGE FROM FRANKING
GUILDFORD BOROUGH COUNCIL,TAXI LICENSING,WHISTL UK LIMITED,68868,16-Jan-20,2099572,1.46,0,POSTAGE FROM FRANKING,POSTAL AND COURIER SERVICE PROVIDERS,Invoice,BACS,None,16-Dec-19,2019,10,AS19004428,H1108,HC & PC VEHICLES,D5467,POSTAGE FROM FRANKING
GUILDFORD BOROUGH COUNCIL,PUBLIC RELATIONS,WHISTL UK LIMITED,68868,16-Jan-20,2099572,0.17,0,POSTAGE FROM FRANKING,POSTAL AND COURIER SERVICE PROVIDERS,Invoice,BACS,None,16-Dec-19,2019,10,AS19004428,F5551,PUBLIC RELATIONS & MARKETING,D5467,POSTAGE FROM FRANKING
GUILDFORD BOROUGH COUNCIL,BUILDING CONTROL SUMMARY,WHISTL UK LIMITED,68868,16-Jan-20,2099572,0,0,POSTAGE FROM FRANKING,POSTAL AND COURIER SERVICE PROVIDERS,Invoice,BACS,None,16-Dec-19,2019,10,AS19004428,D5800,BUILDING CONTROL - NON FEE,D5467,POSTAGE FROM FRANKING
GUILDFORD BOROUGH COUNCIL,OFFICE SERVICES TEAM,WHISTL UK LIMITED,68868,16-Jan-20,2099572,0.45,0,POSTAGE FROM FRANKING,POSTAL AND COURIER SERVICE PROVIDERS,Invoice,BACS,None,16-Dec-19,2019,10,AS19004428,G4545,REPROGRAPHICS UNIT,D5467,POSTAGE FROM FRANKING
GUILDFORD BOROUGH COUNCIL,BUSINESS & TOURISM,WHISTL UK LIMITED,68868,16-Jan-20,2099575,4.29,0,POSTAGE FROM FRANKING,POSTAL AND COURIER SERVICE PROVIDERS,Invoice,BACS,None,16-Dec-19,2019,10,PS19005934,F5545,TOURISM,D5467,POSTAGE FROM FRANKING
GUILDFORD BOROUGH COUNCIL,OFFICE SERVICES TEAM,WHISTL UK LIMITED,68868,16-Jan-20,2099575,0.98,0,POSTAGE FROM FRANKING,POSTAL AND COURIER SERVICE PROVIDERS,Invoice,BACS,None,16-Dec-19,2019,10,PS19005934,G4545,REPROGRAPHICS UNIT,D5467,POSTAGE FROM FRANKING
GUILDFORD BOROUGH COUNCIL,CLIMATE CHANGE,WHISTL UK LIMITED,68868,16-Jan-20,2099575,0.98,0,POSTAGE FROM FRANKING,POSTAL AND COURIER SERVICE PROVIDERS,Invoice,BACS,None,16-Dec-19,2019,10,PS19005934,G4586,ENERGY SERVICES,D5467,POSTAGE FROM FRANKING
GUILDFORD BOROUGH COUNCIL,AFFORDABLE HOUSING DEVELOPMENT,WHISTL UK LIMITED,68868,16-Jan-20,2099575,1.01,0,POSTAGE FROM FRANKING,POSTAL AND COURIER SERVICE PROVIDERS,Invoice,BACS,None,16-Dec-19,2019,10,PS19005934,C4111,AFFORDABLE HOUSING DEVELOPMENT,D5467,POSTAGE FROM FRANKING
GUILDFORD BOROUGH COUNCIL,RESPONSIVE & PLANNED MAINTENAN,WHISTL UK LIMITED,68868,16-Jan-20,2099575,51.53,0,POSTAGE FROM FRANKING,POSTAL AND COURIER SERVICE PROVIDERS,Invoice,BACS,None,16-Dec-19,2019,10,PS19005934,M5111,REPAIRS-ADMIN (BHS),D5467,POSTAGE FROM FRANKING
GUILDFORD BOROUGH COUNCIL,ELECTORAL REGISTRATION,WHISTL UK LIMITED,68868,16-Jan-20,2099575,0,0,POSTAGE FROM FRANKING,POSTAL AND COURIER SERVICE PROVIDERS,Invoice,BACS,None,16-Dec-19,2019,10,PS19005934,F2512,INDIVID ELECTORAL REGISTRATION,D5467,POSTAGE FROM FRANKING
GUILDFORD BOROUGH COUNCIL,OFFICE SERVICES TEAM,WHISTL UK LIMITED,68868,14-Jan-20,2098793,0.44,0,POSTAGE FROM FRANKING,POSTAL AND COURIER SERVICE PROVIDERS,Invoice,BACS,None,09-Dec-19,2019,10,AS19004334,G4585,OFFICE SERVICES,D5467,POSTAGE FROM FRANKING
GUILDFORD BOROUGH COUNCIL,DEBTORS,WHISTL UK LIMITED,68868,16-Jan-20,2099572,0,0,POSTAGE FROM FRANKING,POSTAL AND COURIER SERVICE PROVIDERS,Invoice,BACS,None,16-Dec-19,2019,10,AS19004428,G3555,DEBTORS,D5467,POSTAGE FROM FRANKING
GUILDFORD BOROUGH COUNCIL,GARAGE MANAGEMENT,WHISTL UK LIMITED,68868,14-Jan-20,2098753,0.31,0,POSTAGE FROM FRANKING,POSTAL AND COURIER SERVICE PROVIDERS,Invoice,BACS,None,25-Nov-19,2019,10,AS19004152,M1172,GARAGE MANAGEMENT (BHS),D5467,POSTAGE FROM FRANKING
GUILDFORD BOROUGH COUNCIL,ELECTORAL REGISTRATION,WHISTL UK LIMITED,68868,14-Jan-20,2098786,901.02,0,POSTAGE FROM FRANKING,POSTAL AND COURIER SERVICE PROVIDERS,Invoice,BACS,None,02-Dec-19,2019,10,PS19005721,F2511,ELECTORAL REGISTRATION,D5467,POSTAGE FROM FRANKING
GUILDFORD BOROUGH COUNCIL,DEBTORS,WHISTL UK LIMITED,68868,16-Jan-20,2099575,595.94,0,POSTAGE FROM FRANKING,POSTAL AND COURIER SERVICE PROVIDERS,Invoice,BACS,None,16-Dec-19,2019,10,PS19005934,G3555,DEBTORS,D5467,POSTAGE FROM FRANKING
GUILDFORD BOROUGH COUNCIL,PAYMENTS AND PURCHASING,WHISTL UK LIMITED,68868,16-Jan-20,2099575,1.44,0,POSTAGE FROM FRANKING,POSTAL AND COURIER SERVICE PROVIDERS,Invoice,BACS,None,16-Dec-19,2019,10,PS19005934,G3598,PURCHASING,D5467,POSTAGE FROM FRANKING
GUILDFORD BOROUGH COUNCIL,PARKS & COUNTRYSIDE,WHISTL UK LIMITED,68868,16-Jan-20,2099572,0,0,POSTAGE FROM FRANKING,POSTAL AND COURIER SERVICE PROVIDERS,Invoice,BACS,None,16-Dec-19,2019,10,AS19004428,A1900,PARKS MANAGEMENT AND ADMIN,D5467,POSTAGE FROM FRANKING
GUILDFORD BOROUGH COUNCIL,GUILDHALL,WHISTL UK LIMITED,68868,16-Jan-20,2099572,0,0,POSTAGE FROM FRANKING,POSTAL AND COURIER SERVICE PROVIDERS,Invoice,BACS,None,16-Dec-19,2019,10,AS19004428,F3311,GUILDHALL,D5467,POSTAGE FROM FRANKING
GUILDFORD BOROUGH COUNCIL,MUSEUM,WHISTL UK LIMITED,68868,16-Jan-20,2099572,0,0,POSTAGE FROM FRANKING,POSTAL AND COURIER SERVICE PROVIDERS,Invoice,BACS,None,16-Dec-19,2019,10,AS19004428,A5511,MUSEUM,D5467,POSTAGE FROM FRANKING
GUILDFORD BOROUGH COUNCIL,TRANSPORTATION,WHISTL UK LIMITED,68868,14-Jan-20,2098753,0.38,0,POSTAGE FROM FRANKING,POSTAL AND COURIER SERVICE PROVIDERS,Invoice,BACS,None,25-Nov-19,2019,10,AS19004152,B5122,TRANSPORTATION INITIATIVES,D5467,POSTAGE FROM FRANKING
GUILDFORD BOROUGH COUNCIL,ELECTORAL REGISTRATION,WHISTL UK LIMITED,68868,16-Jan-20,2099572,0,0,POSTAGE FROM FRANKING,POSTAL AND COURIER SERVICE PROVIDERS,Invoice,BACS,None,16-Dec-19,2019,10,AS19004428,F2512,INDIVID ELECTORAL REGISTRATION,D5467,POSTAGE FROM FRANKING
GUILDFORD BOROUGH COUNCIL,ENGINEERING AND TRANS SERVICES,WHISTL UK LIMITED,68868,16-Jan-20,2099575,1.91,0,POSTAGE FROM FRANKING,POSTAL AND COURIER SERVICE PROVIDERS,Invoice,BACS,None,16-Dec-19,2019,10,PS19005934,G5538,ENGINEERING AND TRANS SERVICES,D5467,POSTAGE FROM FRANKING
GUILDFORD BOROUGH COUNCIL,DEVELOPMENT CONTROL,WHISTL UK LIMITED,68868,16-Jan-20,2099575,132.43,0,POSTAGE FROM FRANKING,POSTAL AND COURIER SERVICE PROVIDERS,Invoice,BACS,None,16-Dec-19,2019,10,PS19005934,D5100,DEVELOPMENT CONTROL - FEE EARN,D5467,POSTAGE FROM FRANKING
GUILDFORD BOROUGH COUNCIL,WEBSITE,WHISTL UK LIMITED,68868,14-Jan-20,2098753,0.2,0,POSTAGE FROM FRANKING,POSTAL AND COURIER SERVICE PROVIDERS,Invoice,BACS,None,25-Nov-19,2019,10,AS19004152,F1141,INTERNET SITE ACCESS,D5467,POSTAGE FROM FRANKING
GUILDFORD BOROUGH COUNCIL,TOURIST INFORMATION CENTRE,WHISTL UK LIMITED,68868,14-Jan-20,2098753,1.37,0,POSTAGE FROM FRANKING,POSTAL AND COURIER SERVICE PROVIDERS,Invoice,BACS,None,25-Nov-19,2019,10,AS19004152,F5541,TOURIST INFORMATION CENTRE,D5467,POSTAGE FROM FRANKING
GUILDFORD BOROUGH COUNCIL,PUBLIC RELATIONS,WHISTL UK LIMITED,68868,16-Jan-20,2099575,0.37,0,POSTAGE FROM FRANKING,POSTAL AND COURIER SERVICE PROVIDERS,Invoice,BACS,None,16-Dec-19,2019,10,PS19005934,F5551,PUBLIC RELATIONS & MARKETING,D5467,POSTAGE FROM FRANKING
GUILDFORD BOROUGH COUNCIL,LEISURE ART DEVELOPMENT,WHISTL UK LIMITED,68868,16-Jan-20,2099575,2.28,0,POSTAGE FROM FRANKING,POSTAL AND COURIER SERVICE PROVIDERS,Invoice,BACS,None,16-Dec-19,2019,10,PS19005934,A3511,ARTS DEVELOPMENT,D5467,POSTAGE FROM FRANKING
GUILDFORD BOROUGH COUNCIL,TOURIST INFORMATION CENTRE,WHISTL UK LIMITED,68868,16-Jan-20,2099575,4.29,0,POSTAGE FROM FRANKING,POSTAL AND COURIER SERVICE PROVIDERS,Invoice,BACS,None,16-Dec-19,2019,10,PS19005934,F5541,TOURIST INFORMATION CENTRE,D5467,POSTAGE FROM FRANKING
GUILDFORD BOROUGH COUNCIL,SUPPORTED HOUSING MANAGEMENT,WHISTL UK LIMITED,68868,16-Jan-20,2099572,0.37,0,POSTAGE FROM FRANKING,POSTAL AND COURIER SERVICE PROVIDERS,Invoice,BACS,None,16-Dec-19,2019,10,AS19004428,M3690,SUPPORTED HSG-GENERAL (SHS),D5467,POSTAGE FROM FRANKING
GUILDFORD BOROUGH COUNCIL,OFF STREET PARKING,WHISTL UK LIMITED,68868,16-Jan-20,2099572,0,0,POSTAGE FROM FRANKING,POSTAL AND COURIER SERVICE PROVIDERS,Invoice,BACS,None,16-Dec-19,2019,10,AS19004428,B2115,PARKING OFFICE ACCOMM COSTS,D5467,POSTAGE FROM FRANKING
GUILDFORD BOROUGH COUNCIL,OPERATIONS TECHNICAL SERVICES,WHISTL UK LIMITED,68868,14-Jan-20,2098786,0.6,0,POSTAGE FROM FRANKING,POSTAL AND COURIER SERVICE PROVIDERS,Invoice,BACS,None,02-Dec-19,2019,10,PS19005721,G3547,ICT DEVELOPMENT,D5467,POSTAGE FROM FRANKING
GUILDFORD BOROUGH COUNCIL,SUPPORTED HOUSING MANAGEMENT,WHISTL UK LIMITED,68868,14-Jan-20,2098799,0.49,0,POSTAGE FROM FRANKING,POSTAL AND COURIER SERVICE PROVIDERS,Invoice,BACS,None,23-Dec-19,2019,10,AS19004516,M3690,SUPPORTED HSG-GENERAL (SHS),D5467,POSTAGE FROM FRANKING
GUILDFORD BOROUGH COUNCIL,TENANT SELECTION,WHISTL UK LIMITED,68868,14-Jan-20,2098799,7.09,0,POSTAGE FROM FRANKING,POSTAL AND COURIER SERVICE PROVIDERS,Invoice,BACS,None,23-Dec-19,2019,10,AS19004516,M1131,"ADVICE,REGS,TENANT SELECT(SHS)",D5467,POSTAGE FROM FRANKING
GUILDFORD BOROUGH COUNCIL,PARKS & COUNTRYSIDE,WHISTL UK LIMITED,68868,14-Jan-20,2098799,0.3,0,POSTAGE FROM FRANKING,POSTAL AND COURIER SERVICE PROVIDERS,Invoice,BACS,None,23-Dec-19,2019,10,AS19004516,A1900,PARKS MANAGEMENT AND ADMIN,D5467,POSTAGE FROM FRANKING
GUILDFORD BOROUGH COUNCIL,HOUSING BENEFITS,WHISTL UK LIMITED,68868,14-Jan-20,2098786,363.01,0,POSTAGE FROM FRANKING,POSTAL AND COURIER SERVICE PROVIDERS,Invoice,BACS,None,02-Dec-19,2019,10,PS19005721,C4511,HOUSING BENEFITS ADMIN.,D5467,POSTAGE FROM FRANKING
GUILDFORD BOROUGH COUNCIL,BUILDING CONTROL SUMMARY,WHISTL UK LIMITED,68868,14-Jan-20,2098786,32.13,0,POSTAGE FROM FRANKING,POSTAL AND COURIER SERVICE PROVIDERS,Invoice,BACS,None,02-Dec-19,2019,10,PS19005721,D5700,BUILDING CONTROL - FEE,D5467,POSTAGE FROM FRANKING
GUILDFORD BOROUGH COUNCIL,OFFICE SERVICES TEAM,WHISTL UK LIMITED,68868,14-Jan-20,2098786,0.77,0,POSTAGE FROM FRANKING,POSTAL AND COURIER SERVICE PROVIDERS,Invoice,BACS,None,02-Dec-19,2019,10,PS19005721,G4585,OFFICE SERVICES,D5467,POSTAGE FROM FRANKING
GUILDFORD BOROUGH COUNCIL,TENANT PARTICIPATION,WHISTL UK LIMITED,68868,16-Jan-20,2095768,2385.07,0,POSTAGE DIRECT USAGE,POSTAL AND COURIER SERVICE PROVIDERS,Invoice,BACS,None,06-Dec-19,2019,10,IN16PR19005860,M1152,TENANT PARTICIPATION (BHS),D5466,POSTAGE DIRECT USAGE
GUILDFORD BOROUGH COUNCIL,OPERATIONS TECHNICAL SERVICES,WHISTL UK LIMITED,68868,14-Jan-20,2098786,0.6,0,POSTAGE FROM FRANKING,POSTAL AND COURIER SERVICE PROVIDERS,Invoice,BACS,None,02-Dec-19,2019,10,PS19005721,G3546,ICT SERVICE DESK,D5467,POSTAGE FROM FRANKING
GUILDFORD BOROUGH COUNCIL,LICENSING SERVICES,WHISTL UK LIMITED,68868,14-Jan-20,2098791,1.54,0,POSTAGE FROM FRANKING,POSTAL AND COURIER SERVICE PROVIDERS,Invoice,BACS,None,02-Dec-19,2019,10,AS19004251,H2100,LICENSING SERVICES,D5467,POSTAGE FROM FRANKING
GUILDFORD BOROUGH COUNCIL,PAYMENTS AND PURCHASING,WHISTL UK LIMITED,68868,14-Jan-20,2098786,1.07,0,POSTAGE FROM FRANKING,POSTAL AND COURIER SERVICE PROVIDERS,Invoice,BACS,None,02-Dec-19,2019,10,PS19005721,G3598,PURCHASING,D5467,POSTAGE FROM FRANKING
GUILDFORD BOROUGH COUNCIL,DEBTORS,WHISTL UK LIMITED,68868,14-Jan-20,2098786,41.15,0,POSTAGE FROM FRANKING,POSTAL AND COURIER SERVICE PROVIDERS,Invoice,BACS,None,02-Dec-19,2019,10,PS19005721,G3555,DEBTORS,D5467,POSTAGE FROM FRANKING
GUILDFORD BOROUGH COUNCIL,DEVELOPMENT CONTROL,WHISTL UK LIMITED,68868,14-Jan-20,2098786,64.25,0,POSTAGE FROM FRANKING,POSTAL AND COURIER SERVICE PROVIDERS,Invoice,BACS,None,02-Dec-19,2019,10,PS19005721,D5100,DEVELOPMENT CONTROL - FEE EARN,D5467,POSTAGE FROM FRANKING
GUILDFORD BOROUGH COUNCIL,BUSINESS IMPROVEMENT,WHISTL UK LIMITED,68868,14-Jan-20,2098799,0.38,0,POSTAGE FROM FRANKING,POSTAL AND COURIER SERVICE PROVIDERS,Invoice,BACS,None,23-Dec-19,2019,10,AS19004516,G3530,BUSINESS IMPROVEMENT,D5467,POSTAGE FROM FRANKING
GUILDFORD BOROUGH COUNCIL,FOOD AND SAFETY SERVICES,WHISTL UK LIMITED,68868,14-Jan-20,2098799,1.95,0,POSTAGE FROM FRANKING,POSTAL AND COURIER SERVICE PROVIDERS,Invoice,BACS,None,23-Dec-19,2019,10,AS19004516,C1111,FOOD AND SAFETY SERVICES,D5467,POSTAGE FROM FRANKING
GUILDFORD BOROUGH COUNCIL,OPERATIONS TECHNICAL SERVICES,WHISTL UK LIMITED,68868,14-Jan-20,2098799,0.49,0,POSTAGE FROM FRANKING,POSTAL AND COURIER SERVICE PROVIDERS,Invoice,BACS,None,23-Dec-19,2019,10,AS19004516,G3546,ICT SERVICE DESK,D5467,POSTAGE FROM FRANKING
GUILDFORD BOROUGH COUNCIL,MANAGEMENT POLICY STRATEGY,WHISTL UK LIMITED,68868,14-Jan-20,2098786,0.27,0,POSTAGE FROM FRANKING,POSTAL AND COURIER SERVICE PROVIDERS,Invoice,BACS,None,02-Dec-19,2019,10,PS19005721,G3545,"ICT MANAGEMENT, POLICY & STRAT",D5467,POSTAGE FROM FRANKING
GUILDFORD BOROUGH COUNCIL,OPERATIONAL SERVS OVERHEAD AC,WHISTL UK LIMITED,68868,14-Jan-20,2098792,11.67,0,POSTAGE FROM FRANKING,POSTAL AND COURIER SERVICE PROVIDERS,Invoice,BACS,None,09-Dec-19,2019,10,PS19005824,K1519,OPERATIONAL SERVS OVERHEAD AC,D5467,POSTAGE FROM FRANKING
GUILDFORD BOROUGH COUNCIL,TRANSPORTATION,WHISTL UK LIMITED,68868,14-Jan-20,2098786,0.83,0,POSTAGE FROM FRANKING,POSTAL AND COURIER SERVICE PROVIDERS,Invoice,BACS,None,02-Dec-19,2019,10,PS19005721,B5122,TRANSPORTATION INITIATIVES,D5467,POSTAGE FROM FRANKING
GUILDFORD BOROUGH COUNCIL,TENANT SELECTION,WHISTL UK LIMITED,68868,14-Jan-20,2098793,4.67,0,POSTAGE FROM FRANKING,POSTAL AND COURIER SERVICE PROVIDERS,Invoice,BACS,None,09-Dec-19,2019,10,AS19004334,M1131,"ADVICE,REGS,TENANT SELECT(SHS)",D5467,POSTAGE FROM FRANKING
GUILDFORD BOROUGH COUNCIL,WEBSITE,WHISTL UK LIMITED,68868,14-Jan-20,2098793,0.25,0,POSTAGE FROM FRANKING,POSTAL AND COURIER SERVICE PROVIDERS,Invoice,BACS,None,09-Dec-19,2019,10,AS19004334,F1141,INTERNET SITE ACCESS,D5467,POSTAGE FROM FRANKING
GUILDFORD BOROUGH COUNCIL,AFFORDABLE HOUSING DEVELOPMENT,WHISTL UK LIMITED,68868,14-Jan-20,2098793,0.41,0,POSTAGE FROM FRANKING,POSTAL AND COURIER SERVICE PROVIDERS,Invoice,BACS,None,09-Dec-19,2019,10,AS19004334,C4111,AFFORDABLE HOUSING DEVELOPMENT,D5467,POSTAGE FROM FRANKING
GUILDFORD BOROUGH COUNCIL,TAXI LICENSING,WHISTL UK LIMITED,68868,14-Jan-20,2098793,1.28,0,POSTAGE FROM FRANKING,POSTAL AND COURIER SERVICE PROVIDERS,Invoice,BACS,None,09-Dec-19,2019,10,AS19004334,H1108,HC & PC VEHICLES,D5467,POSTAGE FROM FRANKING
GUILDFORD BOROUGH COUNCIL,HOMELESSNESS,WHISTL UK LIMITED,68868,14-Jan-20,2098800,2.49,0,POSTAGE FROM FRANKING,POSTAL AND COURIER SERVICE PROVIDERS,Invoice,BACS,None,23-Dec-19,2019,10,PS19006043,C3311,HOMELESSNESS ADMINISTRATION,D5467,POSTAGE FROM FRANKING
GUILDFORD BOROUGH COUNCIL,OFF STREET PARKING,WHISTL UK LIMITED,68868,14-Jan-20,2098799,1.27,0,POSTAGE FROM FRANKING,POSTAL AND COURIER SERVICE PROVIDERS,Invoice,BACS,None,23-Dec-19,2019,10,AS19004516,B2115,PARKING OFFICE ACCOMM COSTS,D5467,POSTAGE FROM FRANKING
GUILDFORD BOROUGH COUNCIL,PUBLIC RELATIONS,WHISTL UK LIMITED,68868,14-Jan-20,2098792,0.73,0,POSTAGE FROM FRANKING,POSTAL AND COURIER SERVICE PROVIDERS,Invoice,BACS,None,09-Dec-19,2019,10,PS19005824,F5551,PUBLIC RELATIONS & MARKETING,D5467,POSTAGE FROM FRANKING
GUILDFORD BOROUGH COUNCIL,GUILDFORD HOUSE,WHISTL UK LIMITED,68868,14-Jan-20,2098791,0.03,0,POSTAGE FROM FRANKING,POSTAL AND COURIER SERVICE PROVIDERS,Invoice,BACS,None,02-Dec-19,2019,10,AS19004251,A4511,GUILDFORD HOUSE ADMINISTRATION,D5467,POSTAGE FROM FRANKING
GUILDFORD BOROUGH COUNCIL,INCOME COLLECTION,WHISTL UK LIMITED,68868,14-Jan-20,2098792,37.85,0,POSTAGE FROM FRANKING,POSTAL AND COURIER SERVICE PROVIDERS,Invoice,BACS,None,09-Dec-19,2019,10,PS19005824,M1121,INCOME COLLECTION (BHS),D5467,POSTAGE FROM FRANKING
GUILDFORD BOROUGH COUNCIL,AFFORDABLE HOUSING DEVELOPMENT,WHISTL UK LIMITED,68868,14-Jan-20,2098792,1.99,0,POSTAGE FROM FRANKING,POSTAL AND COURIER SERVICE PROVIDERS,Invoice,BACS,None,09-Dec-19,2019,10,PS19005824,C4111,AFFORDABLE HOUSING DEVELOPMENT,D5467,POSTAGE FROM FRANKING
GUILDFORD BOROUGH COUNCIL,ENGINEERING AND TRANS SERVICES,WHISTL UK LIMITED,68868,14-Jan-20,2098791,0.01,0,POSTAGE FROM FRANKING,POSTAL AND COURIER SERVICE PROVIDERS,Invoice,BACS,None,02-Dec-19,2019,10,AS19004251,G5538,ENGINEERING AND TRANS SERVICES,D5467,POSTAGE FROM FRANKING
GUILDFORD BOROUGH COUNCIL,INCOME COLLECTION,WHISTL UK LIMITED,68868,14-Jan-20,2098791,1.22,0,POSTAGE FROM FRANKING,POSTAL AND COURIER SERVICE PROVIDERS,Invoice,BACS,None,02-Dec-19,2019,10,AS19004251,M1121,INCOME COLLECTION (BHS),D5467,POSTAGE FROM FRANKING
GUILDFORD BOROUGH COUNCIL,LEISURE ART DEVELOPMENT,WHISTL UK LIMITED,68868,14-Jan-20,2098791,1.11,0,POSTAGE FROM FRANKING,POSTAL AND COURIER SERVICE PROVIDERS,Invoice,BACS,None,02-Dec-19,2019,10,AS19004251,A3511,ARTS DEVELOPMENT,D5467,POSTAGE FROM FRANKING
GUILDFORD BOROUGH COUNCIL,ENVIRONMENTAL CONTROL,WHISTL UK LIMITED,68868,14-Jan-20,2098791,1.54,0,POSTAGE FROM FRANKING,POSTAL AND COURIER SERVICE PROVIDERS,Invoice,BACS,None,02-Dec-19,2019,10,AS19004251,C1113,ENVIRONMENTAL CONTROL,D5467,POSTAGE FROM FRANKING
GUILDFORD BOROUGH COUNCIL,ACCOUNTANCY,WHISTL UK LIMITED,68868,14-Jan-20,2098799,0,0,POSTAGE FROM FRANKING,POSTAL AND COURIER SERVICE PROVIDERS,Invoice,BACS,None,23-Dec-19,2019,10,AS19004516,G3565,ACCOUNTANCY SERVICES,D5467,POSTAGE FROM FRANKING
GUILDFORD BOROUGH COUNCIL,FOOD AND SAFETY SERVICES,WHISTL UK LIMITED,68868,14-Jan-20,2098800,2.6,0,POSTAGE FROM FRANKING,POSTAL AND COURIER SERVICE PROVIDERS,Invoice,BACS,None,23-Dec-19,2019,10,PS19006043,C1111,FOOD AND SAFETY SERVICES,D5467,POSTAGE FROM FRANKING
GUILDFORD BOROUGH COUNCIL,OFFICE SERVICES TEAM,WHISTL UK LIMITED,68868,16-Jan-20,2099572,0.42,0,POSTAGE FROM FRANKING,POSTAL AND COURIER SERVICE PROVIDERS,Invoice,BACS,None,16-Dec-19,2019,10,AS19004428,G4585,OFFICE SERVICES,D5467,POSTAGE FROM FRANKING
GUILDFORD BOROUGH COUNCIL,OFFICE SERVICES TEAM,WHISTL UK LIMITED,68868,14-Jan-20,2098799,0.6,0,POSTAGE FROM FRANKING,POSTAL AND COURIER SERVICE PROVIDERS,Invoice,BACS,None,23-Dec-19,2019,10,AS19004516,G4545,REPROGRAPHICS UNIT,D5467,POSTAGE FROM FRANKING
GUILDFORD BOROUGH COUNCIL,TRANSPORTATION,WHISTL UK LIMITED,68868,14-Jan-20,2098793,0,0,POSTAGE FROM FRANKING,POSTAL AND COURIER SERVICE PROVIDERS,Invoice,BACS,None,09-Dec-19,2019,10,AS19004334,B5122,TRANSPORTATION INITIATIVES,D5467,POSTAGE FROM FRANKING
GUILDFORD BOROUGH COUNCIL,CLIMATE CHANGE,WHISTL UK LIMITED,68868,14-Jan-20,2098793,0.06,0,POSTAGE FROM FRANKING,POSTAL AND COURIER SERVICE PROVIDERS,Invoice,BACS,None,09-Dec-19,2019,10,AS19004334,B3911,CLIMATE CHANGE STRATEGY,D5467,POSTAGE FROM FRANKING
GUILDFORD BOROUGH COUNCIL,ENVIRONMENTAL CONTROL,WHISTL UK LIMITED,68868,14-Jan-20,2098793,1.28,0,POSTAGE FROM FRANKING,POSTAL AND COURIER SERVICE PROVIDERS,Invoice,BACS,None,09-Dec-19,2019,10,AS19004334,C1113,ENVIRONMENTAL CONTROL,D5467,POSTAGE FROM FRANKING
GUILDFORD BOROUGH COUNCIL,MANAGEMENT POLICY STRATEGY,WHISTL UK LIMITED,68868,14-Jan-20,2098793,0.15,0,POSTAGE FROM FRANKING,POSTAL AND COURIER SERVICE PROVIDERS,Invoice,BACS,None,09-Dec-19,2019,10,AS19004334,G3545,"ICT MANAGEMENT, POLICY & STRAT",D5467,POSTAGE FROM FRANKING
GUILDFORD BOROUGH COUNCIL,OFFICE SERVICES TEAM,WHISTL UK LIMITED,68868,14-Jan-20,2098793,0.4,0,POSTAGE FROM FRANKING,POSTAL AND COURIER SERVICE PROVIDERS,Invoice,BACS,None,09-Dec-19,2019,10,AS19004334,G4545,REPROGRAPHICS UNIT,D5467,POSTAGE FROM FRANKING
GUILDFORD BOROUGH COUNCIL,POLICY,WHISTL UK LIMITED,68868,14-Jan-20,2098793,0,0,POSTAGE FROM FRANKING,POSTAL AND COURIER SERVICE PROVIDERS,Invoice,BACS,None,09-Dec-19,2019,10,AS19004334,D5300,POLICY,D5467,POSTAGE FROM FRANKING
GUILDFORD BOROUGH COUNCIL,POLICY,WHISTL UK LIMITED,68868,14-Jan-20,2098753,0,0,POSTAGE FROM FRANKING,POSTAL AND COURIER SERVICE PROVIDERS,Invoice,BACS,None,25-Nov-19,2019,10,AS19004152,D5300,POLICY,D5467,POSTAGE FROM FRANKING
GUILDFORD BOROUGH COUNCIL,DEVELOPMENT CONTROL,WHISTL UK LIMITED,68868,14-Jan-20,2098800,133.22,0,POSTAGE FROM FRANKING,POSTAL AND COURIER SERVICE PROVIDERS,Invoice,BACS,None,23-Dec-19,2019,10,PS19006043,D5100,DEVELOPMENT CONTROL - FEE EARN,D5467,POSTAGE FROM FRANKING
GUILDFORD BOROUGH COUNCIL,LEISURE GRANTS,WHISTL UK LIMITED,68868,16-Jan-20,2099572,0.76,0,POSTAGE FROM FRANKING,POSTAL AND COURIER SERVICE PROVIDERS,Invoice,BACS,None,16-Dec-19,2019,10,AS19004428,A4111,GRANTS ADMINISTRATION,D5467,POSTAGE FROM FRANKING
GUILDFORD BOROUGH COUNCIL,HR SERVICES,WHISTL UK LIMITED,68868,16-Jan-20,2099572,0.64,0,POSTAGE FROM FRANKING,POSTAL AND COURIER SERVICE PROVIDERS,Invoice,BACS,None,16-Dec-19,2019,10,AS19004428,G2555,HR SERVICES,D5467,POSTAGE FROM FRANKING
GUILDFORD BOROUGH COUNCIL,VOID PROPERTY MANAGEMENT,WHISTL UK LIMITED,68868,16-Jan-20,2099572,1.78,0,POSTAGE FROM FRANKING,POSTAL AND COURIER SERVICE PROVIDERS,Invoice,BACS,None,16-Dec-19,2019,10,AS19004428,M1141,VOID PROPERTY MGMT (SHS),D5467,POSTAGE FROM FRANKING
GUILDFORD BOROUGH COUNCIL,INCOME COLLECTION,WHISTL UK LIMITED,68868,16-Jan-20,2099572,2.44,0,POSTAGE FROM FRANKING,POSTAL AND COURIER SERVICE PROVIDERS,Invoice,BACS,None,16-Dec-19,2019,10,AS19004428,M1121,INCOME COLLECTION (BHS),D5467,POSTAGE FROM FRANKING
GUILDFORD BOROUGH COUNCIL,ENGINEERING AND TRANS SERVICES,WHISTL UK LIMITED,68868,16-Jan-20,2099572,0,0,POSTAGE FROM FRANKING,POSTAL AND COURIER SERVICE PROVIDERS,Invoice,BACS,None,16-Dec-19,2019,10,AS19004428,G5538,ENGINEERING AND TRANS SERVICES,D5467,POSTAGE FROM FRANKING
GUILDFORD BOROUGH COUNCIL,OPERATIONS TECHNICAL SERVICES,WHISTL UK LIMITED,68868,16-Jan-20,2099575,0.8,0,POSTAGE FROM FRANKING,POSTAL AND COURIER SERVICE PROVIDERS,Invoice,BACS,None,16-Dec-19,2019,10,PS19005934,G3547,ICT DEVELOPMENT,D5467,POSTAGE FROM FRANKING
GUILDFORD BOROUGH COUNCIL,OPERATIONS TECHNICAL SERVICES,WHISTL UK LIMITED,68868,16-Jan-20,2099575,0.8,0,POSTAGE FROM FRANKING,POSTAL AND COURIER SERVICE PROVIDERS,Invoice,BACS,None,16-Dec-19,2019,10,PS19005934,G3546,ICT SERVICE DESK,D5467,POSTAGE FROM FRANKING
GUILDFORD BOROUGH COUNCIL,CLIMATE CHANGE,WHISTL UK LIMITED,68868,14-Jan-20,2098793,0.4,0,POSTAGE FROM FRANKING,POSTAL AND COURIER SERVICE PROVIDERS,Invoice,BACS,None,09-Dec-19,2019,10,AS19004334,G4586,ENERGY SERVICES,D5467,POSTAGE FROM FRANKING
GUILDFORD BOROUGH COUNCIL,OFF STREET PARKING,WHISTL UK LIMITED,68868,14-Jan-20,2098791,0.32,0,POSTAGE FROM FRANKING,POSTAL AND COURIER SERVICE PROVIDERS,Invoice,BACS,None,02-Dec-19,2019,10,AS19004251,B2115,PARKING OFFICE ACCOMM COSTS,D5467,POSTAGE FROM FRANKING
GUILDFORD BOROUGH COUNCIL,LEISURE ART DEVELOPMENT,WHISTL UK LIMITED,68868,14-Jan-20,2098786,1.69,0,POSTAGE FROM FRANKING,POSTAL AND COURIER SERVICE PROVIDERS,Invoice,BACS,None,02-Dec-19,2019,10,PS19005721,A3511,ARTS DEVELOPMENT,D5467,POSTAGE FROM FRANKING
GUILDFORD BOROUGH COUNCIL,HOUSING SURVEYING SERVICES,WHISTL UK LIMITED,68868,14-Jan-20,2098799,0,0,POSTAGE FROM FRANKING,POSTAL AND COURIER SERVICE PROVIDERS,Invoice,BACS,None,23-Dec-19,2019,10,AS19004516,G6525,HOUSING SURVEYING SERVICES,D5467,POSTAGE FROM FRANKING
GUILDFORD BOROUGH COUNCIL,ELECTORAL REGISTRATION,WHISTL UK LIMITED,68868,14-Jan-20,2098799,0,0,POSTAGE FROM FRANKING,POSTAL AND COURIER SERVICE PROVIDERS,Invoice,BACS,None,23-Dec-19,2019,10,AS19004516,F2511,ELECTORAL REGISTRATION,D5467,POSTAGE FROM FRANKING
GUILDFORD BOROUGH COUNCIL,MUSEUM,WHISTL UK LIMITED,68868,14-Jan-20,2098799,0.11,0,POSTAGE FROM FRANKING,POSTAL AND COURIER SERVICE PROVIDERS,Invoice,BACS,None,23-Dec-19,2019,10,AS19004516,A5511,MUSEUM,D5467,POSTAGE FROM FRANKING
GUILDFORD BOROUGH COUNCIL,BUSINESS IMPROVEMENT,WHISTL UK LIMITED,68868,14-Jan-20,2098791,0.3,0,POSTAGE FROM FRANKING,POSTAL AND COURIER SERVICE PROVIDERS,Invoice,BACS,None,02-Dec-19,2019,10,AS19004251,G3530,BUSINESS IMPROVEMENT,D5467,POSTAGE FROM FRANKING
GUILDFORD BOROUGH COUNCIL,BUSINESS RATES,WHISTL UK LIMITED,68868,14-Jan-20,2098791,2.2,0,POSTAGE FROM FRANKING,POSTAL AND COURIER SERVICE PROVIDERS,Invoice,BACS,None,02-Dec-19,2019,10,AS19004251,F6151,BUSINESS RATES COLLECTION EXPS,D5467,POSTAGE FROM FRANKING
GUILDFORD BOROUGH COUNCIL,OPERATIONAL SERVS OVERHEAD AC,WHISTL UK LIMITED,68868,14-Jan-20,2098793,0,0,POSTAGE FROM FRANKING,POSTAL AND COURIER SERVICE PROVIDERS,Invoice,BACS,None,09-Dec-19,2019,10,AS19004334,K1519,OPERATIONAL SERVS OVERHEAD AC,D5467,POSTAGE FROM FRANKING
GUILDFORD BOROUGH COUNCIL,POLICY,WHISTL UK LIMITED,68868,14-Jan-20,2098791,0,0,POSTAGE FROM FRANKING,POSTAL AND COURIER SERVICE PROVIDERS,Invoice,BACS,None,02-Dec-19,2019,10,AS19004251,D5300,POLICY,D5467,POSTAGE FROM FRANKING
GUILDFORD BOROUGH COUNCIL,HOMELESSNESS,WHISTL UK LIMITED,68868,14-Jan-20,2098799,1.86,0,POSTAGE FROM FRANKING,POSTAL AND COURIER SERVICE PROVIDERS,Invoice,BACS,None,23-Dec-19,2019,10,AS19004516,C3311,HOMELESSNESS ADMINISTRATION,D5467,POSTAGE FROM FRANKING
GUILDFORD BOROUGH COUNCIL,BUILDING CONTROL SUMMARY,WHISTL UK LIMITED,68868,14-Jan-20,2098792,29.26,0,POSTAGE FROM FRANKING,POSTAL AND COURIER SERVICE PROVIDERS,Invoice,BACS,None,09-Dec-19,2019,10,PS19005824,D5700,BUILDING CONTROL - FEE,D5467,POSTAGE FROM FRANKING
GUILDFORD BOROUGH COUNCIL,OFFICE SERVICES TEAM,WHISTL UK LIMITED,68868,14-Jan-20,2098792,1.94,0,POSTAGE FROM FRANKING,POSTAL AND COURIER SERVICE PROVIDERS,Invoice,BACS,None,09-Dec-19,2019,10,PS19005824,G4545,REPROGRAPHICS UNIT,D5467,POSTAGE FROM FRANKING
GUILDFORD BOROUGH COUNCIL,BUSINESS RATES,WHISTL UK LIMITED,68868,14-Jan-20,2098792,8.91,0,POSTAGE FROM FRANKING,POSTAL AND COURIER SERVICE PROVIDERS,Invoice,BACS,None,09-Dec-19,2019,10,PS19005824,F6151,BUSINESS RATES COLLECTION EXPS,D5467,POSTAGE FROM FRANKING
GUILDFORD BOROUGH COUNCIL,LEISURE SPORT DEVELOPMENT,WHISTL UK LIMITED,68868,14-Jan-20,2098800,1.87,0,POSTAGE FROM FRANKING,POSTAL AND COURIER SERVICE PROVIDERS,Invoice,BACS,None,23-Dec-19,2019,10,PS19006043,A7311,SPORTS DEVELOPMENT OFFICER,D5467,POSTAGE FROM FRANKING
GUILDFORD BOROUGH COUNCIL,LEISURE GRANTS,WHISTL UK LIMITED,68868,14-Jan-20,2098800,1.35,0,POSTAGE FROM FRANKING,POSTAL AND COURIER SERVICE PROVIDERS,Invoice,BACS,None,23-Dec-19,2019,10,PS19006043,A4111,GRANTS ADMINISTRATION,D5467,POSTAGE FROM FRANKING
GUILDFORD BOROUGH COUNCIL,VOID PROPERTY MANAGEMENT,WHISTL UK LIMITED,68868,14-Jan-20,2098800,3.17,0,POSTAGE FROM FRANKING,POSTAL AND COURIER SERVICE PROVIDERS,Invoice,BACS,None,23-Dec-19,2019,10,PS19006043,M1141,VOID PROPERTY MGMT (SHS),D5467,POSTAGE FROM FRANKING
GUILDFORD BOROUGH COUNCIL,LAND CHARGES,WHISTL UK LIMITED,68868,14-Jan-20,2098800,5.33,0,POSTAGE FROM FRANKING,POSTAL AND COURIER SERVICE PROVIDERS,Invoice,BACS,None,23-Dec-19,2019,10,PS19006043,F4111,LOCAL LAND CHARGES,D5467,POSTAGE FROM FRANKING
GUILDFORD BOROUGH COUNCIL,TENANT PARTICIPATION,WHISTL UK LIMITED,68868,14-Jan-20,2098791,0.35,0,POSTAGE FROM FRANKING,POSTAL AND COURIER SERVICE PROVIDERS,Invoice,BACS,None,02-Dec-19,2019,10,AS19004251,M1152,TENANT PARTICIPATION (BHS),D5467,POSTAGE FROM FRANKING
GUILDFORD BOROUGH COUNCIL,INTERNAL AUDIT,WHISTL UK LIMITED,68868,14-Jan-20,2098793,0.25,0,POSTAGE FROM FRANKING,POSTAL AND COURIER SERVICE PROVIDERS,Invoice,BACS,None,09-Dec-19,2019,10,AS19004334,G3525,INTERNAL AUDIT,D5467,POSTAGE FROM FRANKING
GUILDFORD BOROUGH COUNCIL,MUSEUM,WHISTL UK LIMITED,68868,14-Jan-20,2098786,3.32,0,POSTAGE FROM FRANKING,POSTAL AND COURIER SERVICE PROVIDERS,Invoice,BACS,None,02-Dec-19,2019,10,PS19005721,A5511,MUSEUM,D5467,POSTAGE FROM FRANKING
GUILDFORD BOROUGH COUNCIL,PAYMENTS AND PURCHASING,WHISTL UK LIMITED,68868,14-Jan-20,2098786,5.99,0,POSTAGE FROM FRANKING,POSTAL AND COURIER SERVICE PROVIDERS,Invoice,BACS,None,02-Dec-19,2019,10,PS19005721,G3596,CREDITORS,D5467,POSTAGE FROM FRANKING
GUILDFORD BOROUGH COUNCIL,ENGINEERING AND TRANS SERVICES,WHISTL UK LIMITED,68868,14-Jan-20,2098800,1.01,0,POSTAGE FROM FRANKING,POSTAL AND COURIER SERVICE PROVIDERS,Invoice,BACS,None,23-Dec-19,2019,10,PS19006043,G5538,ENGINEERING AND TRANS SERVICES,D5467,POSTAGE FROM FRANKING
GUILDFORD BOROUGH COUNCIL,PAYMENTS AND PURCHASING,WHISTL UK LIMITED,68868,14-Jan-20,2098800,1.18,0,POSTAGE FROM FRANKING,POSTAL AND COURIER SERVICE PROVIDERS,Invoice,BACS,None,23-Dec-19,2019,10,PS19006043,G3598,PURCHASING,D5467,POSTAGE FROM FRANKING
GUILDFORD BOROUGH COUNCIL,CLIMATE CHANGE,WHISTL UK LIMITED,68868,14-Jan-20,2098800,0.81,0,POSTAGE FROM FRANKING,POSTAL AND COURIER SERVICE PROVIDERS,Invoice,BACS,None,23-Dec-19,2019,10,PS19006043,G4586,ENERGY SERVICES,D5467,POSTAGE FROM FRANKING
GUILDFORD BOROUGH COUNCIL,ELECTORAL REGISTRATION,WHISTL UK LIMITED,68868,14-Jan-20,2098800,255.8,0,POSTAGE FROM FRANKING,POSTAL AND COURIER SERVICE PROVIDERS,Invoice,BACS,None,23-Dec-19,2019,10,PS19006043,F2512,INDIVID ELECTORAL REGISTRATION,D5467,POSTAGE FROM FRANKING
GUILDFORD BOROUGH COUNCIL,HOMELESSNESS,WHISTL UK LIMITED,68868,14-Jan-20,2098793,1.23,0,POSTAGE FROM FRANKING,POSTAL AND COURIER SERVICE PROVIDERS,Invoice,BACS,None,09-Dec-19,2019,10,AS19004334,C3311,HOMELESSNESS ADMINISTRATION,D5467,POSTAGE FROM FRANKING
GUILDFORD BOROUGH COUNCIL,COUNCIL TAX,WHISTL UK LIMITED,68868,14-Jan-20,2098793,4.94,0,POSTAGE FROM FRANKING,POSTAL AND COURIER SERVICE PROVIDERS,Invoice,BACS,None,09-Dec-19,2019,10,AS19004334,F6141,COUNCIL TAX COLLECTN EXPENSES,D5467,POSTAGE FROM FRANKING
GUILDFORD BOROUGH COUNCIL,POLICY,WHISTL UK LIMITED,68868,14-Jan-20,2098799,0,0,POSTAGE FROM FRANKING,POSTAL AND COURIER SERVICE PROVIDERS,Invoice,BACS,None,23-Dec-19,2019,10,AS19004516,D5555,DESIGN AND CONSERVATION,D5467,POSTAGE FROM FRANKING
GUILDFORD BOROUGH COUNCIL,BUSINESS RATES,WHISTL UK LIMITED,68868,14-Jan-20,2098793,1.83,0,POSTAGE FROM FRANKING,POSTAL AND COURIER SERVICE PROVIDERS,Invoice,BACS,None,09-Dec-19,2019,10,AS19004334,F6151,BUSINESS RATES COLLECTION EXPS,D5467,POSTAGE FROM FRANKING
GUILDFORD BOROUGH COUNCIL,PRIVATE SECTOR HOUSING,WHISTL UK LIMITED,68868,14-Jan-20,2098793,4.74,0,POSTAGE FROM FRANKING,POSTAL AND COURIER SERVICE PROVIDERS,Invoice,BACS,None,09-Dec-19,2019,10,AS19004334,C5122,PRIVATE SECTOR HOUSING STANDAR,D5467,POSTAGE FROM FRANKING
GUILDFORD BOROUGH COUNCIL,HR SERVICES,WHISTL UK LIMITED,68868,14-Jan-20,2098793,0.56,0,POSTAGE FROM FRANKING,POSTAL AND COURIER SERVICE PROVIDERS,Invoice,BACS,None,09-Dec-19,2019,10,AS19004334,G2555,HR SERVICES,D5467,POSTAGE FROM FRANKING
GUILDFORD BOROUGH COUNCIL,INTERNAL AUDIT,WHISTL UK LIMITED,68868,14-Jan-20,2098753,0.2,0,POSTAGE FROM FRANKING,POSTAL AND COURIER SERVICE PROVIDERS,Invoice,BACS,None,25-Nov-19,2019,10,AS19004152,G3525,INTERNAL AUDIT,D5467,POSTAGE FROM FRANKING
GUILDFORD BOROUGH COUNCIL,FOOD AND SAFETY SERVICES,WHISTL UK LIMITED,68868,14-Jan-20,2098753,1.01,0,POSTAGE FROM FRANKING,POSTAL AND COURIER SERVICE PROVIDERS,Invoice,BACS,None,25-Nov-19,2019,10,AS19004152,C1111,FOOD AND SAFETY SERVICES,D5467,POSTAGE FROM FRANKING
GUILDFORD BOROUGH COUNCIL,TAXI LICENSING,WHISTL UK LIMITED,68868,14-Jan-20,2098753,1.01,0,POSTAGE FROM FRANKING,POSTAL AND COURIER SERVICE PROVIDERS,Invoice,BACS,None,25-Nov-19,2019,10,AS19004152,H1108,HC & PC VEHICLES,D5467,POSTAGE FROM FRANKING
GUILDFORD BOROUGH COUNCIL,POLICY,WHISTL UK LIMITED,68868,14-Jan-20,2098800,13.32,0,POSTAGE FROM FRANKING,POSTAL AND COURIER SERVICE PROVIDERS,Invoice,BACS,None,23-Dec-19,2019,10,PS19006043,D5300,POLICY,D5467,POSTAGE FROM FRANKING
GUILDFORD BOROUGH COUNCIL,GUILDFORD HOUSE,WHISTL UK LIMITED,68868,14-Jan-20,2098800,1.93,0,POSTAGE FROM FRANKING,POSTAL AND COURIER SERVICE PROVIDERS,Invoice,BACS,None,23-Dec-19,2019,10,PS19006043,A4511,GUILDFORD HOUSE ADMINISTRATION,D5467,POSTAGE FROM FRANKING
GUILDFORD BOROUGH COUNCIL,BUILDING CONTROL SUMMARY,WHISTL UK LIMITED,68868,14-Jan-20,2098786,10.28,0,POSTAGE FROM FRANKING,POSTAL AND COURIER SERVICE PROVIDERS,Invoice,BACS,None,02-Dec-19,2019,10,PS19005721,D5800,BUILDING CONTROL - NON FEE,D5467,POSTAGE FROM FRANKING
GUILDFORD BOROUGH COUNCIL,POLICY,WHISTL UK LIMITED,68868,14-Jan-20,2098786,12.85,0,POSTAGE FROM FRANKING,POSTAL AND COURIER SERVICE PROVIDERS,Invoice,BACS,None,02-Dec-19,2019,10,PS19005721,D5555,DESIGN AND CONSERVATION,D5467,POSTAGE FROM FRANKING
GUILDFORD BOROUGH COUNCIL,PRIVATE SECTOR HOUSING,WHISTL UK LIMITED,68868,14-Jan-20,2098786,8.73,0,POSTAGE FROM FRANKING,POSTAL AND COURIER SERVICE PROVIDERS,Invoice,BACS,None,02-Dec-19,2019,10,PS19005721,C5122,PRIVATE SECTOR HOUSING STANDAR,D5467,POSTAGE FROM FRANKING
GUILDFORD BOROUGH COUNCIL,WEBSITE,WHISTL UK LIMITED,68868,14-Jan-20,2098786,0.46,0,POSTAGE FROM FRANKING,POSTAL AND COURIER SERVICE PROVIDERS,Invoice,BACS,None,02-Dec-19,2019,10,PS19005721,F1141,INTERNET SITE ACCESS,D5467,POSTAGE FROM FRANKING
GUILDFORD BOROUGH COUNCIL,PARKS & COUNTRYSIDE,WHISTL UK LIMITED,68868,14-Jan-20,2098793,0,0,POSTAGE FROM FRANKING,POSTAL AND COURIER SERVICE PROVIDERS,Invoice,BACS,None,09-Dec-19,2019,10,AS19004334,A1900,PARKS MANAGEMENT AND ADMIN,D5467,POSTAGE FROM FRANKING
GUILDFORD BOROUGH COUNCIL,POLICY,WHISTL UK LIMITED,68868,14-Jan-20,2098793,0,0,POSTAGE FROM FRANKING,POSTAL AND COURIER SERVICE PROVIDERS,Invoice,BACS,None,09-Dec-19,2019,10,AS19004334,D5555,DESIGN AND CONSERVATION,D5467,POSTAGE FROM FRANKING
GUILDFORD BOROUGH COUNCIL,PRIVATE SECTOR HOUSING,WHISTL UK LIMITED,68868,14-Jan-20,2098799,7.2,0,POSTAGE FROM FRANKING,POSTAL AND COURIER SERVICE PROVIDERS,Invoice,BACS,None,23-Dec-19,2019,10,AS19004516,C5122,PRIVATE SECTOR HOUSING STANDAR,D5467,POSTAGE FROM FRANKING
GUILDFORD BOROUGH COUNCIL,WEBSITE,WHISTL UK LIMITED,68868,14-Jan-20,2098800,0.5,0,POSTAGE FROM FRANKING,POSTAL AND COURIER SERVICE PROVIDERS,Invoice,BACS,None,23-Dec-19,2019,10,PS19006043,F1141,INTERNET SITE ACCESS,D5467,POSTAGE FROM FRANKING
GUILDFORD BOROUGH COUNCIL,LEISURE PLAY DEVELOPMENT,WHISTL UK LIMITED,68868,14-Jan-20,2098799,1.4,0,POSTAGE FROM FRANKING,POSTAL AND COURIER SERVICE PROVIDERS,Invoice,BACS,None,23-Dec-19,2019,10,AS19004516,A7211,PLAY DEVELOPMENT,D5467,POSTAGE FROM FRANKING
GUILDFORD BOROUGH COUNCIL,PARKS & COUNTRYSIDE,WHISTL UK LIMITED,68868,14-Jan-20,2098791,0.08,0,POSTAGE FROM FRANKING,POSTAL AND COURIER SERVICE PROVIDERS,Invoice,BACS,None,02-Dec-19,2019,10,AS19004251,A1900,PARKS MANAGEMENT AND ADMIN,D5467,POSTAGE FROM FRANKING
GUILDFORD BOROUGH COUNCIL,OPERATIONAL SERVS OVERHEAD AC,WHISTL UK LIMITED,68868,14-Jan-20,2098791,0.21,0,POSTAGE FROM FRANKING,POSTAL AND COURIER SERVICE PROVIDERS,Invoice,BACS,None,02-Dec-19,2019,10,AS19004251,K1519,OPERATIONAL SERVS OVERHEAD AC,D5467,POSTAGE FROM FRANKING
GUILDFORD BOROUGH COUNCIL,MANAGEMENT POLICY STRATEGY,WHISTL UK LIMITED,68868,14-Jan-20,2098791,0.18,0,POSTAGE FROM FRANKING,POSTAL AND COURIER SERVICE PROVIDERS,Invoice,BACS,None,02-Dec-19,2019,10,AS19004251,G3545,"ICT MANAGEMENT, POLICY & STRAT",D5467,POSTAGE FROM FRANKING
GUILDFORD BOROUGH COUNCIL,COUNCIL TAX,WHISTL UK LIMITED,68868,14-Jan-20,2098799,3.2,0,POSTAGE FROM FRANKING,POSTAL AND COURIER SERVICE PROVIDERS,Invoice,BACS,None,23-Dec-19,2019,10,AS19004516,F6141,COUNCIL TAX COLLECTN EXPENSES,D5467,POSTAGE FROM FRANKING
GUILDFORD BOROUGH COUNCIL,HOUSING BENEFITS,WHISTL UK LIMITED,68868,14-Jan-20,2098799,9.02,0,POSTAGE FROM FRANKING,POSTAL AND COURIER SERVICE PROVIDERS,Invoice,BACS,None,23-Dec-19,2019,10,AS19004516,C4511,HOUSING BENEFITS ADMIN.,D5467,POSTAGE FROM FRANKING
GUILDFORD BOROUGH COUNCIL,ELECTORAL REGISTRATION,WHISTL UK LIMITED,68868,14-Jan-20,2098799,0,0,POSTAGE FROM FRANKING,POSTAL AND COURIER SERVICE PROVIDERS,Invoice,BACS,None,23-Dec-19,2019,10,AS19004516,F2512,INDIVID ELECTORAL REGISTRATION,D5467,POSTAGE FROM FRANKING
GUILDFORD BOROUGH COUNCIL,RESPONSIVE & PLANNED MAINTENAN,WHISTL UK LIMITED,68868,14-Jan-20,2098753,1.53,0,POSTAGE FROM FRANKING,POSTAL AND COURIER SERVICE PROVIDERS,Invoice,BACS,None,25-Nov-19,2019,10,AS19004152,M5111,REPAIRS-ADMIN (BHS),D5467,POSTAGE FROM FRANKING
GUILDFORD BOROUGH COUNCIL,ELECTORAL REGISTRATION,WHISTL UK LIMITED,68868,14-Jan-20,2098800,125.73,0,POSTAGE FROM FRANKING,POSTAL AND COURIER SERVICE PROVIDERS,Invoice,BACS,None,23-Dec-19,2019,10,PS19006043,F2511,ELECTORAL REGISTRATION,D5467,POSTAGE FROM FRANKING
GUILDFORD BOROUGH COUNCIL,CREMATORIUM,WHISTL UK LIMITED,68868,16-Jan-20,2099572,0,0,POSTAGE FROM FRANKING,POSTAL AND COURIER SERVICE PROVIDERS,Invoice,BACS,None,16-Dec-19,2019,10,AS19004428,A1500,GUILDFORD CREMATORIUM,D5467,POSTAGE FROM FRANKING
GUILDFORD BOROUGH COUNCIL,LEISURE GRANTS,WHISTL UK LIMITED,68868,14-Jan-20,2098753,0.52,0,POSTAGE FROM FRANKING,POSTAL AND COURIER SERVICE PROVIDERS,Invoice,BACS,None,25-Nov-19,2019,10,AS19004152,A4111,GRANTS ADMINISTRATION,D5467,POSTAGE FROM FRANKING
GUILDFORD BOROUGH COUNCIL,LAND CHARGES,WHISTL UK LIMITED,68868,14-Jan-20,2098786,2.57,0,POSTAGE FROM FRANKING,POSTAL AND COURIER SERVICE PROVIDERS,Invoice,BACS,None,02-Dec-19,2019,10,PS19005721,F4111,LOCAL LAND CHARGES,D5467,POSTAGE FROM FRANKING
GUILDFORD BOROUGH COUNCIL,TENANTS' SERVICES,WHISTL UK LIMITED,68868,14-Jan-20,2098786,78.86,0,POSTAGE FROM FRANKING,POSTAL AND COURIER SERVICE PROVIDERS,Invoice,BACS,None,02-Dec-19,2019,10,PS19005721,M1151,TENANTS SERVICES (BHS),D5467,POSTAGE FROM FRANKING
GUILDFORD BOROUGH COUNCIL,SUPPORTED HOUSING MANAGEMENT,WHISTL UK LIMITED,68868,14-Jan-20,2098786,0.6,0,POSTAGE FROM FRANKING,POSTAL AND COURIER SERVICE PROVIDERS,Invoice,BACS,None,02-Dec-19,2019,10,PS19005721,M3690,SUPPORTED HSG-GENERAL (SHS),D5467,POSTAGE FROM FRANKING
GUILDFORD BOROUGH COUNCIL,GUILDFORD HOUSE,WHISTL UK LIMITED,68868,16-Jan-20,2099575,3.65,0,POSTAGE FROM FRANKING,POSTAL AND COURIER SERVICE PROVIDERS,Invoice,BACS,None,16-Dec-19,2019,10,PS19005934,A4511,GUILDFORD HOUSE ADMINISTRATION,D5467,POSTAGE FROM FRANKING
GUILDFORD BOROUGH COUNCIL,LEISURE GRANTS,WHISTL UK LIMITED,68868,16-Jan-20,2099575,1.64,0,POSTAGE FROM FRANKING,POSTAL AND COURIER SERVICE PROVIDERS,Invoice,BACS,None,16-Dec-19,2019,10,PS19005934,A4111,GRANTS ADMINISTRATION,D5467,POSTAGE FROM FRANKING
GUILDFORD BOROUGH COUNCIL,BUILDING CONTROL SUMMARY,WHISTL UK LIMITED,68868,14-Jan-20,2098799,0,0,POSTAGE FROM FRANKING,POSTAL AND COURIER SERVICE PROVIDERS,Invoice,BACS,None,23-Dec-19,2019,10,AS19004516,D5800,BUILDING CONTROL - NON FEE,D5467,POSTAGE FROM FRANKING
GUILDFORD BOROUGH COUNCIL,TRANSPORTATION,WHISTL UK LIMITED,68868,16-Jan-20,2099572,0,0,POSTAGE FROM FRANKING,POSTAL AND COURIER SERVICE PROVIDERS,Invoice,BACS,None,16-Dec-19,2019,10,AS19004428,B5122,TRANSPORTATION INITIATIVES,D5467,POSTAGE FROM FRANKING
GUILDFORD BOROUGH COUNCIL,BUSINESS & TOURISM,WHISTL UK LIMITED,68868,14-Jan-20,2098799,0.65,0,POSTAGE FROM FRANKING,POSTAL AND COURIER SERVICE PROVIDERS,Invoice,BACS,None,23-Dec-19,2019,10,AS19004516,F5547,BUSINESS,D5467,POSTAGE FROM FRANKING
GUILDFORD BOROUGH COUNCIL,HOUSING BENEFITS,WHISTL UK LIMITED,68868,16-Jan-20,2099572,2.77,0,POSTAGE FROM FRANKING,POSTAL AND COURIER SERVICE PROVIDERS,Invoice,BACS,None,16-Dec-19,2019,10,AS19004428,C4511,HOUSING BENEFITS ADMIN.,D5467,POSTAGE FROM FRANKING
GUILDFORD BOROUGH COUNCIL,LAND CHARGES,WHISTL UK LIMITED,68868,16-Jan-20,2099572,0,0,POSTAGE FROM FRANKING,POSTAL AND COURIER SERVICE PROVIDERS,Invoice,BACS,None,16-Dec-19,2019,10,AS19004428,F4111,LOCAL LAND CHARGES,D5467,POSTAGE FROM FRANKING
GUILDFORD BOROUGH COUNCIL,HOUSING SURVEYING SERVICES,WHISTL UK LIMITED,68868,16-Jan-20,2099572,0.61,0,POSTAGE FROM FRANKING,POSTAL AND COURIER SERVICE PROVIDERS,Invoice,BACS,None,16-Dec-19,2019,10,AS19004428,G6525,HOUSING SURVEYING SERVICES,D5467,POSTAGE FROM FRANKING
GUILDFORD BOROUGH COUNCIL,LEISURE COMMUNITY CENTRES,WHISTL UK LIMITED,68868,16-Jan-20,2099572,0.61,0,POSTAGE FROM FRANKING,POSTAL AND COURIER SERVICE PROVIDERS,Invoice,BACS,None,16-Dec-19,2019,10,AS19004428,A8111,YOUTH & COMM CENTRES- ADMIN.,D5467,POSTAGE FROM FRANKING
GUILDFORD BOROUGH COUNCIL,ENGINEERING AND TRANS SERVICES,WHISTL UK LIMITED,68868,14-Jan-20,2098753,0.8,0,POSTAGE FROM FRANKING,POSTAL AND COURIER SERVICE PROVIDERS,Invoice,BACS,None,25-Nov-19,2019,10,AS19004152,G5538,ENGINEERING AND TRANS SERVICES,D5467,POSTAGE FROM FRANKING
GUILDFORD BOROUGH COUNCIL,TENANT SELECTION,WHISTL UK LIMITED,68868,14-Jan-20,2098753,3.68,0,POSTAGE FROM FRANKING,POSTAL AND COURIER SERVICE PROVIDERS,Invoice,BACS,None,25-Nov-19,2019,10,AS19004152,M1131,"ADVICE,REGS,TENANT SELECT(SHS)",D5467,POSTAGE FROM FRANKING
GUILDFORD BOROUGH COUNCIL,BUSINESS & TOURISM,WHISTL UK LIMITED,68868,14-Jan-20,2098753,1.37,0,POSTAGE FROM FRANKING,POSTAL AND COURIER SERVICE PROVIDERS,Invoice,BACS,None,25-Nov-19,2019,10,AS19004152,F5545,TOURISM,D5467,POSTAGE FROM FRANKING
GUILDFORD BOROUGH COUNCIL,BUSINESS IMPROVEMENT,WHISTL UK LIMITED,68868,16-Jan-20,2099575,0.62,0,POSTAGE FROM FRANKING,POSTAL AND COURIER SERVICE PROVIDERS,Invoice,BACS,None,16-Dec-19,2019,10,PS19005934,G3530,BUSINESS IMPROVEMENT,D5467,POSTAGE FROM FRANKING
GUILDFORD BOROUGH COUNCIL,AFFORDABLE HOUSING DEVELOPMENT,WHISTL UK LIMITED,68868,14-Jan-20,2098791,0.49,0,POSTAGE FROM FRANKING,POSTAL AND COURIER SERVICE PROVIDERS,Invoice,BACS,None,02-Dec-19,2019,10,AS19004251,C4111,AFFORDABLE HOUSING DEVELOPMENT,D5467,POSTAGE FROM FRANKING
GUILDFORD BOROUGH COUNCIL,POLICY,WHISTL UK LIMITED,68868,16-Jan-20,2099572,0,0,POSTAGE FROM FRANKING,POSTAL AND COURIER SERVICE PROVIDERS,Invoice,BACS,None,16-Dec-19,2019,10,AS19004428,D5555,DESIGN AND CONSERVATION,D5467,POSTAGE FROM FRANKING
GUILDFORD BOROUGH COUNCIL,POLICY,WHISTL UK LIMITED,68868,14-Jan-20,2098753,0,0,POSTAGE FROM FRANKING,POSTAL AND COURIER SERVICE PROVIDERS,Invoice,BACS,None,25-Nov-19,2019,10,AS19004152,D5555,DESIGN AND CONSERVATION,D5467,POSTAGE FROM FRANKING
GUILDFORD BOROUGH COUNCIL,FOOD AND SAFETY SERVICES,WHISTL UK LIMITED,68868,16-Jan-20,2099572,1.46,0,POSTAGE FROM FRANKING,POSTAL AND COURIER SERVICE PROVIDERS,Invoice,BACS,None,16-Dec-19,2019,10,AS19004428,C1111,FOOD AND SAFETY SERVICES,D5467,POSTAGE FROM FRANKING
GUILDFORD BOROUGH COUNCIL,LICENSING SERVICES,WHISTL UK LIMITED,68868,16-Jan-20,2099572,1.46,0,POSTAGE FROM FRANKING,POSTAL AND COURIER SERVICE PROVIDERS,Invoice,BACS,None,16-Dec-19,2019,10,AS19004428,H2100,LICENSING SERVICES,D5467,POSTAGE FROM FRANKING
GUILDFORD BOROUGH COUNCIL,ENVIRONMENTAL CONTROL,WHISTL UK LIMITED,68868,16-Jan-20,2099575,3.17,0,POSTAGE FROM FRANKING,POSTAL AND COURIER SERVICE PROVIDERS,Invoice,BACS,None,16-Dec-19,2019,10,PS19005934,C1113,ENVIRONMENTAL CONTROL,D5467,POSTAGE FROM FRANKING
GUILDFORD BOROUGH COUNCIL,TENANT PARTICIPATION,WHISTL UK LIMITED,68868,14-Jan-20,2098792,10.81,0,POSTAGE FROM FRANKING,POSTAL AND COURIER SERVICE PROVIDERS,Invoice,BACS,None,09-Dec-19,2019,10,PS19005824,M1152,TENANT PARTICIPATION (BHS),D5467,POSTAGE FROM FRANKING
GUILDFORD BOROUGH COUNCIL,ENGINEERING AND TRANS SERVICES,WHISTL UK LIMITED,68868,14-Jan-20,2098799,0.06,0,POSTAGE FROM FRANKING,POSTAL AND COURIER SERVICE PROVIDERS,Invoice,BACS,None,23-Dec-19,2019,10,AS19004516,G5538,ENGINEERING AND TRANS SERVICES,D5467,POSTAGE FROM FRANKING
GUILDFORD BOROUGH COUNCIL,GARAGE MANAGEMENT,WHISTL UK LIMITED,68868,14-Jan-20,2098791,0.22,0,POSTAGE FROM FRANKING,POSTAL AND COURIER SERVICE PROVIDERS,Invoice,BACS,None,02-Dec-19,2019,10,AS19004251,M1172,GARAGE MANAGEMENT (BHS),D5467,POSTAGE FROM FRANKING
GUILDFORD BOROUGH COUNCIL,ACCOUNTANCY,WHISTL UK LIMITED,68868,14-Jan-20,2098753,0,0,POSTAGE FROM FRANKING,POSTAL AND COURIER SERVICE PROVIDERS,Invoice,BACS,None,25-Nov-19,2019,10,AS19004152,G3565,ACCOUNTANCY SERVICES,D5467,POSTAGE FROM FRANKING
GUILDFORD BOROUGH COUNCIL,LEISURE PLAY DEVELOPMENT,WHISTL UK LIMITED,68868,14-Jan-20,2098791,1.11,0,POSTAGE FROM FRANKING,POSTAL AND COURIER SERVICE PROVIDERS,Invoice,BACS,None,02-Dec-19,2019,10,AS19004251,A7211,PLAY DEVELOPMENT,D5467,POSTAGE FROM FRANKING
GUILDFORD BOROUGH COUNCIL,OPERATIONS TECHNICAL SERVICES,WHISTL UK LIMITED,68868,14-Jan-20,2098791,0.39,0,POSTAGE FROM FRANKING,POSTAL AND COURIER SERVICE PROVIDERS,Invoice,BACS,None,02-Dec-19,2019,10,AS19004251,G3546,ICT SERVICE DESK,D5467,POSTAGE FROM FRANKING
GUILDFORD BOROUGH COUNCIL,BUSINESS & TOURISM,WHISTL UK LIMITED,68868,14-Jan-20,2098791,2.09,0,POSTAGE FROM FRANKING,POSTAL AND COURIER SERVICE PROVIDERS,Invoice,BACS,None,02-Dec-19,2019,10,AS19004251,F5545,TOURISM,D5467,POSTAGE FROM FRANKING
GUILDFORD BOROUGH COUNCIL,TENANT SELECTION,WHISTL UK LIMITED,68868,16-Jan-20,2099575,11.56,0,POSTAGE FROM FRANKING,POSTAL AND COURIER SERVICE PROVIDERS,Invoice,BACS,None,16-Dec-19,2019,10,PS19005934,M1131,"ADVICE,REGS,TENANT SELECT(SHS)",D5467,POSTAGE FROM FRANKING
GUILDFORD BOROUGH COUNCIL,BUSINESS RATES,WHISTL UK LIMITED,68868,16-Jan-20,2099575,4.53,0,POSTAGE FROM FRANKING,POSTAL AND COURIER SERVICE PROVIDERS,Invoice,BACS,None,16-Dec-19,2019,10,PS19005934,F6151,BUSINESS RATES COLLECTION EXPS,D5467,POSTAGE FROM FRANKING
GUILDFORD BOROUGH COUNCIL,FOOD AND SAFETY SERVICES,WHISTL UK LIMITED,68868,16-Jan-20,2099575,3.17,0,POSTAGE FROM FRANKING,POSTAL AND COURIER SERVICE PROVIDERS,Invoice,BACS,None,16-Dec-19,2019,10,PS19005934,C1111,FOOD AND SAFETY SERVICES,D5467,POSTAGE FROM FRANKING
GUILDFORD BOROUGH COUNCIL,TOWN CENTRE MANAGEMENT,WHISTL UK LIMITED,68868,14-Jan-20,2098791,0.52,0,POSTAGE FROM FRANKING,POSTAL AND COURIER SERVICE PROVIDERS,Invoice,BACS,None,02-Dec-19,2019,10,AS19004251,F5550,FARMERS MARKET,D5467,POSTAGE FROM FRANKING
GUILDFORD BOROUGH COUNCIL,DEBTORS,WHISTL UK LIMITED,68868,14-Jan-20,2098792,163.16,0,POSTAGE FROM FRANKING,POSTAL AND COURIER SERVICE PROVIDERS,Invoice,BACS,None,09-Dec-19,2019,10,PS19005824,G3555,DEBTORS,D5467,POSTAGE FROM FRANKING
GUILDFORD BOROUGH COUNCIL,GARAGE MANAGEMENT,WHISTL UK LIMITED,68868,16-Jan-20,2099572,0.44,0,POSTAGE FROM FRANKING,POSTAL AND COURIER SERVICE PROVIDERS,Invoice,BACS,None,16-Dec-19,2019,10,AS19004428,M1172,GARAGE MANAGEMENT (BHS),D5467,POSTAGE FROM FRANKING
GUILDFORD BOROUGH COUNCIL,INCOME COLLECTION,WHISTL UK LIMITED,68868,14-Jan-20,2098786,81.78,0,POSTAGE FROM FRANKING,POSTAL AND COURIER SERVICE PROVIDERS,Invoice,BACS,None,02-Dec-19,2019,10,PS19005721,M1121,INCOME COLLECTION (BHS),D5467,POSTAGE FROM FRANKING
GUILDFORD BOROUGH COUNCIL,OFFICE SERVICES TEAM,WHISTL UK LIMITED,68868,14-Jan-20,2098753,0.31,0,POSTAGE FROM FRANKING,POSTAL AND COURIER SERVICE PROVIDERS,Invoice,BACS,None,25-Nov-19,2019,10,AS19004152,G4545,REPROGRAPHICS UNIT,D5467,POSTAGE FROM FRANKING
GUILDFORD BOROUGH COUNCIL,HOUSING SURVEYING SERVICES,WHISTL UK LIMITED,68868,14-Jan-20,2098753,0.43,0,POSTAGE FROM FRANKING,POSTAL AND COURIER SERVICE PROVIDERS,Invoice,BACS,None,25-Nov-19,2019,10,AS19004152,G6525,HOUSING SURVEYING SERVICES,D5467,POSTAGE FROM FRANKING
GUILDFORD BOROUGH COUNCIL,CLIMATE CHANGE,WHISTL UK LIMITED,68868,16-Jan-20,2099572,0.07,0,POSTAGE FROM FRANKING,POSTAL AND COURIER SERVICE PROVIDERS,Invoice,BACS,None,16-Dec-19,2019,10,AS19004428,B3911,CLIMATE CHANGE STRATEGY,D5467,POSTAGE FROM FRANKING
GUILDFORD BOROUGH COUNCIL,BUSINESS & TOURISM,WHISTL UK LIMITED,68868,16-Jan-20,2099572,0.49,0,POSTAGE FROM FRANKING,POSTAL AND COURIER SERVICE PROVIDERS,Invoice,BACS,None,16-Dec-19,2019,10,AS19004428,F5547,BUSINESS,D5467,POSTAGE FROM FRANKING
GUILDFORD BOROUGH COUNCIL,LEISURE COMMUNITY CENTRES,WHISTL UK LIMITED,68868,16-Jan-20,2099575,1.32,0,POSTAGE FROM FRANKING,POSTAL AND COURIER SERVICE PROVIDERS,Invoice,BACS,None,16-Dec-19,2019,10,PS19005934,A8111,YOUTH & COMM CENTRES- ADMIN.,D5467,POSTAGE FROM FRANKING
GUILDFORD BOROUGH COUNCIL,VOID PROPERTY MANAGEMENT,WHISTL UK LIMITED,68868,16-Jan-20,2099575,3.87,0,POSTAGE FROM FRANKING,POSTAL AND COURIER SERVICE PROVIDERS,Invoice,BACS,None,16-Dec-19,2019,10,PS19005934,M1141,VOID PROPERTY MGMT (SHS),D5467,POSTAGE FROM FRANKING
GUILDFORD BOROUGH COUNCIL,ACCOUNTANCY,WHISTL UK LIMITED,68868,16-Jan-20,2099575,66.22,0,POSTAGE FROM FRANKING,POSTAL AND COURIER SERVICE PROVIDERS,Invoice,BACS,None,16-Dec-19,2019,10,PS19005934,G3565,ACCOUNTANCY SERVICES,D5467,POSTAGE FROM FRANKING
GUILDFORD BOROUGH COUNCIL,PARKS & COUNTRYSIDE,WHISTL UK LIMITED,68868,16-Jan-20,2099575,9.86,0,POSTAGE FROM FRANKING,POSTAL AND COURIER SERVICE PROVIDERS,Invoice,BACS,None,16-Dec-19,2019,10,PS19005934,A1900,PARKS MANAGEMENT AND ADMIN,D5467,POSTAGE FROM FRANKING
GUILDFORD BOROUGH COUNCIL,PUBLIC RELATIONS,WHISTL UK LIMITED,68868,14-Jan-20,2098791,0.18,0,POSTAGE FROM FRANKING,POSTAL AND COURIER SERVICE PROVIDERS,Invoice,BACS,None,02-Dec-19,2019,10,AS19004251,F5551,PUBLIC RELATIONS & MARKETING,D5467,POSTAGE FROM FRANKING
GUILDFORD BOROUGH COUNCIL,MUSEUM,WHISTL UK LIMITED,68868,16-Jan-20,2099575,3.65,0,POSTAGE FROM FRANKING,POSTAL AND COURIER SERVICE PROVIDERS,Invoice,BACS,None,16-Dec-19,2019,10,PS19005934,A5511,MUSEUM,D5467,POSTAGE FROM FRANKING
GUILDFORD BOROUGH COUNCIL,PAYMENTS AND PURCHASING,WHISTL UK LIMITED,68868,14-Jan-20,2098753,0.46,0,POSTAGE FROM FRANKING,POSTAL AND COURIER SERVICE PROVIDERS,Invoice,BACS,None,25-Nov-19,2019,10,AS19004152,G3598,PURCHASING,D5467,POSTAGE FROM FRANKING
GUILDFORD BOROUGH COUNCIL,POLICY,WHISTL UK LIMITED,68868,16-Jan-20,2099575,13.24,0,POSTAGE FROM FRANKING,POSTAL AND COURIER SERVICE PROVIDERS,Invoice,BACS,None,16-Dec-19,2019,10,PS19005934,D5300,POLICY,D5467,POSTAGE FROM FRANKING
GUILDFORD BOROUGH COUNCIL,TENANT PARTICIPATION,WHISTL UK LIMITED,68868,14-Jan-20,2098753,0.49,0,POSTAGE FROM FRANKING,POSTAL AND COURIER SERVICE PROVIDERS,Invoice,BACS,None,25-Nov-19,2019,10,AS19004152,M1152,TENANT PARTICIPATION (BHS),D5467,POSTAGE FROM FRANKING
GUILDFORD BOROUGH COUNCIL,PRIVATE SECTOR HOUSING,WHISTL UK LIMITED,68868,16-Jan-20,2099572,5.39,0,POSTAGE FROM FRANKING,POSTAL AND COURIER SERVICE PROVIDERS,Invoice,BACS,None,16-Dec-19,2019,10,AS19004428,C5122,PRIVATE SECTOR HOUSING STANDAR,D5467,POSTAGE FROM FRANKING
GUILDFORD BOROUGH COUNCIL,PAYMENTS AND PURCHASING,WHISTL UK LIMITED,68868,16-Jan-20,2099572,0.66,0,POSTAGE FROM FRANKING,POSTAL AND COURIER SERVICE PROVIDERS,Invoice,BACS,None,16-Dec-19,2019,10,AS19004428,G3598,PURCHASING,D5467,POSTAGE FROM FRANKING
GUILDFORD BOROUGH COUNCIL,PAYMENTS AND PURCHASING,WHISTL UK LIMITED,68868,16-Jan-20,2099572,3.7,0,POSTAGE FROM FRANKING,POSTAL AND COURIER SERVICE PROVIDERS,Invoice,BACS,None,16-Dec-19,2019,10,AS19004428,G3596,CREDITORS,D5467,POSTAGE FROM FRANKING
GUILDFORD BOROUGH COUNCIL,DEVELOPMENT CONTROL,WHISTL UK LIMITED,68868,14-Jan-20,2098753,0,0,POSTAGE FROM FRANKING,POSTAL AND COURIER SERVICE PROVIDERS,Invoice,BACS,None,25-Nov-19,2019,10,AS19004152,D5100,DEVELOPMENT CONTROL - FEE EARN,D5467,POSTAGE FROM FRANKING
GUILDFORD BOROUGH COUNCIL,TENANTS' SERVICES,WHISTL UK LIMITED,68868,14-Jan-20,2098753,1.65,0,POSTAGE FROM FRANKING,POSTAL AND COURIER SERVICE PROVIDERS,Invoice,BACS,None,25-Nov-19,2019,10,AS19004152,M1151,TENANTS SERVICES (BHS),D5467,POSTAGE FROM FRANKING
GUILDFORD BOROUGH COUNCIL,LEISURE COMMUNITY CENTRES,WHISTL UK LIMITED,68868,14-Jan-20,2098753,0.42,0,POSTAGE FROM FRANKING,POSTAL AND COURIER SERVICE PROVIDERS,Invoice,BACS,None,25-Nov-19,2019,10,AS19004152,A8111,YOUTH & COMM CENTRES- ADMIN.,D5467,POSTAGE FROM FRANKING
GUILDFORD BOROUGH COUNCIL,CLIMATE CHANGE,WHISTL UK LIMITED,68868,14-Jan-20,2098753,0.05,0,POSTAGE FROM FRANKING,POSTAL AND COURIER SERVICE PROVIDERS,Invoice,BACS,None,25-Nov-19,2019,10,AS19004152,B3911,CLIMATE CHANGE STRATEGY,D5467,POSTAGE FROM FRANKING
GUILDFORD BOROUGH COUNCIL,TENANTS' SERVICES,WHISTL UK LIMITED,68868,14-Jan-20,2098799,0,0,POSTAGE FROM FRANKING,POSTAL AND COURIER SERVICE PROVIDERS,Invoice,BACS,None,23-Dec-19,2019,10,AS19004516,M1151,TENANTS SERVICES (BHS),D5467,POSTAGE FROM FRANKING
GUILDFORD BOROUGH COUNCIL,INCOME COLLECTION,WHISTL UK LIMITED,68868,14-Jan-20,2098799,0,0,POSTAGE FROM FRANKING,POSTAL AND COURIER SERVICE PROVIDERS,Invoice,BACS,None,23-Dec-19,2019,10,AS19004516,M1121,INCOME COLLECTION (BHS),D5467,POSTAGE FROM FRANKING
GUILDFORD BOROUGH COUNCIL,COUNCIL TAX,WHISTL UK LIMITED,68868,14-Jan-20,2098786,484.4,0,POSTAGE FROM FRANKING,POSTAL AND COURIER SERVICE PROVIDERS,Invoice,BACS,None,02-Dec-19,2019,10,PS19005721,F6141,COUNCIL TAX COLLECTN EXPENSES,D5467,POSTAGE FROM FRANKING
GUILDFORD BOROUGH COUNCIL,VOID PROPERTY MANAGEMENT,WHISTL UK LIMITED,68868,14-Jan-20,2098793,1.56,0,POSTAGE FROM FRANKING,POSTAL AND COURIER SERVICE PROVIDERS,Invoice,BACS,None,09-Dec-19,2019,10,AS19004334,M1141,VOID PROPERTY MGMT (SHS),D5467,POSTAGE FROM FRANKING
GUILDFORD BOROUGH COUNCIL,SUPPORTED HOUSING MANAGEMENT,WHISTL UK LIMITED,68868,14-Jan-20,2098792,1.57,0,POSTAGE FROM FRANKING,POSTAL AND COURIER SERVICE PROVIDERS,Invoice,BACS,None,09-Dec-19,2019,10,PS19005824,M3690,SUPPORTED HSG-GENERAL (SHS),D5467,POSTAGE FROM FRANKING
GUILDFORD BOROUGH COUNCIL,LAND CHARGES,WHISTL UK LIMITED,68868,16-Jan-20,2099575,5.3,0,POSTAGE FROM FRANKING,POSTAL AND COURIER SERVICE PROVIDERS,Invoice,BACS,None,16-Dec-19,2019,10,PS19005934,F4111,LOCAL LAND CHARGES,D5467,POSTAGE FROM FRANKING
GUILDFORD BOROUGH COUNCIL,HOMELESSNESS,WHISTL UK LIMITED,68868,14-Jan-20,2098791,1.48,0,POSTAGE FROM FRANKING,POSTAL AND COURIER SERVICE PROVIDERS,Invoice,BACS,None,02-Dec-19,2019,10,AS19004251,C3311,HOMELESSNESS ADMINISTRATION,D5467,POSTAGE FROM FRANKING
GUILDFORD BOROUGH COUNCIL,VOID PROPERTY MANAGEMENT,WHISTL UK LIMITED,68868,14-Jan-20,2098792,7.61,0,POSTAGE FROM FRANKING,POSTAL AND COURIER SERVICE PROVIDERS,Invoice,BACS,None,09-Dec-19,2019,10,PS19005824,M1141,VOID PROPERTY MGMT (SHS),D5467,POSTAGE FROM FRANKING
GUILDFORD BOROUGH COUNCIL,COUNCIL TAX,WHISTL UK LIMITED,68868,14-Jan-20,2098791,2.06,0,POSTAGE FROM FRANKING,POSTAL AND COURIER SERVICE PROVIDERS,Invoice,BACS,None,02-Dec-19,2019,10,AS19004251,F6141,COUNCIL TAX COLLECTN EXPENSES,D5467,POSTAGE FROM FRANKING
GUILDFORD BOROUGH COUNCIL,DEBTORS,WHISTL UK LIMITED,68868,14-Jan-20,2098791,0,0,POSTAGE FROM FRANKING,POSTAL AND COURIER SERVICE PROVIDERS,Invoice,BACS,None,02-Dec-19,2019,10,AS19004251,G3555,DEBTORS,D5467,POSTAGE FROM FRANKING
GUILDFORD BOROUGH COUNCIL,OFFICE SERVICES TEAM,WHISTL UK LIMITED,68868,14-Jan-20,2098791,0.48,0,POSTAGE FROM FRANKING,POSTAL AND COURIER SERVICE PROVIDERS,Invoice,BACS,None,02-Dec-19,2019,10,AS19004251,G4545,REPROGRAPHICS UNIT,D5467,POSTAGE FROM FRANKING
GUILDFORD BOROUGH COUNCIL,BUSINESS IMPROVEMENT,WHISTL UK LIMITED,68868,14-Jan-20,2098786,0.46,0,POSTAGE FROM FRANKING,POSTAL AND COURIER SERVICE PROVIDERS,Invoice,BACS,None,02-Dec-19,2019,10,PS19005721,G3530,BUSINESS IMPROVEMENT,D5467,POSTAGE FROM FRANKING
GUILDFORD BOROUGH COUNCIL,OFFICE SERVICES TEAM,WHISTL UK LIMITED,68868,14-Jan-20,2098786,0.73,0,POSTAGE FROM FRANKING,POSTAL AND COURIER SERVICE PROVIDERS,Invoice,BACS,None,02-Dec-19,2019,10,PS19005721,G4545,REPROGRAPHICS UNIT,D5467,POSTAGE FROM FRANKING
GUILDFORD BOROUGH COUNCIL,HOUSING SURVEYING SERVICES,WHISTL UK LIMITED,68868,14-Jan-20,2098786,20.44,0,POSTAGE FROM FRANKING,POSTAL AND COURIER SERVICE PROVIDERS,Invoice,BACS,None,02-Dec-19,2019,10,PS19005721,G6525,HOUSING SURVEYING SERVICES,D5467,POSTAGE FROM FRANKING
GUILDFORD BOROUGH COUNCIL,CREMATORIUM,WHISTL UK LIMITED,68868,14-Jan-20,2098799,0.15,0,POSTAGE FROM FRANKING,POSTAL AND COURIER SERVICE PROVIDERS,Invoice,BACS,None,23-Dec-19,2019,10,AS19004516,A1500,GUILDFORD CREMATORIUM,D5467,POSTAGE FROM FRANKING
GUILDFORD BOROUGH COUNCIL,CLIMATE CHANGE,WHISTL UK LIMITED,68868,14-Jan-20,2098799,0.6,0,POSTAGE FROM FRANKING,POSTAL AND COURIER SERVICE PROVIDERS,Invoice,BACS,None,23-Dec-19,2019,10,AS19004516,G4586,ENERGY SERVICES,D5467,POSTAGE FROM FRANKING
GUILDFORD BOROUGH COUNCIL,TOWN CENTRE MANAGEMENT,WHISTL UK LIMITED,68868,14-Jan-20,2098799,0.65,0,POSTAGE FROM FRANKING,POSTAL AND COURIER SERVICE PROVIDERS,Invoice,BACS,None,23-Dec-19,2019,10,AS19004516,F5550,FARMERS MARKET,D5467,POSTAGE FROM FRANKING
GUILDFORD BOROUGH COUNCIL,BUSINESS & TOURISM,WHISTL UK LIMITED,68868,14-Jan-20,2098799,2.63,0,POSTAGE FROM FRANKING,POSTAL AND COURIER SERVICE PROVIDERS,Invoice,BACS,None,23-Dec-19,2019,10,AS19004516,F5545,TOURISM,D5467,POSTAGE FROM FRANKING
GUILDFORD BOROUGH COUNCIL,TOWN CENTRE MANAGEMENT,WHISTL UK LIMITED,68868,14-Jan-20,2098753,0.34,0,POSTAGE FROM FRANKING,POSTAL AND COURIER SERVICE PROVIDERS,Invoice,BACS,None,25-Nov-19,2019,10,AS19004152,F5550,FARMERS MARKET,D5467,POSTAGE FROM FRANKING
GUILDFORD BOROUGH COUNCIL,TOURIST INFORMATION CENTRE,WHISTL UK LIMITED,68868,14-Jan-20,2098791,2.09,0,POSTAGE FROM FRANKING,POSTAL AND COURIER SERVICE PROVIDERS,Invoice,BACS,None,02-Dec-19,2019,10,AS19004251,F5541,TOURIST INFORMATION CENTRE,D5467,POSTAGE FROM FRANKING
GUILDFORD BOROUGH COUNCIL,HOMELESSNESS,WHISTL UK LIMITED,68868,14-Jan-20,2098786,2.26,0,POSTAGE FROM FRANKING,POSTAL AND COURIER SERVICE PROVIDERS,Invoice,BACS,None,02-Dec-19,2019,10,PS19005721,C3311,HOMELESSNESS ADMINISTRATION,D5467,POSTAGE FROM FRANKING
GUILDFORD BOROUGH COUNCIL,ELECTORAL REGISTRATION,WHISTL UK LIMITED,68868,14-Jan-20,2098792,64.64,0,POSTAGE FROM FRANKING,POSTAL AND COURIER SERVICE PROVIDERS,Invoice,BACS,None,09-Dec-19,2019,10,PS19005824,F2511,ELECTORAL REGISTRATION,D5467,POSTAGE FROM FRANKING
GUILDFORD BOROUGH COUNCIL,HR SERVICES,WHISTL UK LIMITED,68868,14-Jan-20,2098792,2.75,0,POSTAGE FROM FRANKING,POSTAL AND COURIER SERVICE PROVIDERS,Invoice,BACS,None,09-Dec-19,2019,10,PS19005824,G2555,HR SERVICES,D5467,POSTAGE FROM FRANKING
GUILDFORD BOROUGH COUNCIL,OPERATIONS TECHNICAL SERVICES,WHISTL UK LIMITED,68868,14-Jan-20,2098800,0.66,0,POSTAGE FROM FRANKING,POSTAL AND COURIER SERVICE PROVIDERS,Invoice,BACS,None,23-Dec-19,2019,10,PS19006043,G3547,ICT DEVELOPMENT,D5467,POSTAGE FROM FRANKING
GUILDFORD BOROUGH COUNCIL,OFFICE SERVICES TEAM,WHISTL UK LIMITED,68868,14-Jan-20,2098800,0.81,0,POSTAGE FROM FRANKING,POSTAL AND COURIER SERVICE PROVIDERS,Invoice,BACS,None,23-Dec-19,2019,10,PS19006043,G4545,REPROGRAPHICS UNIT,D5467,POSTAGE FROM FRANKING
GUILDFORD BOROUGH COUNCIL,BUSINESS & TOURISM,WHISTL UK LIMITED,68868,14-Jan-20,2098800,3.52,0,POSTAGE FROM FRANKING,POSTAL AND COURIER SERVICE PROVIDERS,Invoice,BACS,None,23-Dec-19,2019,10,PS19006043,F5545,TOURISM,D5467,POSTAGE FROM FRANKING
GUILDFORD BOROUGH COUNCIL,TOURIST INFORMATION CENTRE,WHISTL UK LIMITED,68868,14-Jan-20,2098800,3.52,0,POSTAGE FROM FRANKING,POSTAL AND COURIER SERVICE PROVIDERS,Invoice,BACS,None,23-Dec-19,2019,10,PS19006043,F5541,TOURIST INFORMATION CENTRE,D5467,POSTAGE FROM FRANKING
GUILDFORD BOROUGH COUNCIL,HOUSING SURVEYING SERVICES,WHISTL UK LIMITED,68868,14-Jan-20,2098793,0.41,0,POSTAGE FROM FRANKING,POSTAL AND COURIER SERVICE PROVIDERS,Invoice,BACS,None,09-Dec-19,2019,10,AS19004334,G6525,HOUSING SURVEYING SERVICES,D5467,POSTAGE FROM FRANKING
GUILDFORD BOROUGH COUNCIL,GARAGE MANAGEMENT,WHISTL UK LIMITED,68868,14-Jan-20,2098793,0.29,0,POSTAGE FROM FRANKING,POSTAL AND COURIER SERVICE PROVIDERS,Invoice,BACS,None,09-Dec-19,2019,10,AS19004334,M1172,GARAGE MANAGEMENT (BHS),D5467,POSTAGE FROM FRANKING
GUILDFORD BOROUGH COUNCIL,CREMATORIUM,WHISTL UK LIMITED,68868,14-Jan-20,2098793,0,0,POSTAGE FROM FRANKING,POSTAL AND COURIER SERVICE PROVIDERS,Invoice,BACS,None,09-Dec-19,2019,10,AS19004334,A1500,GUILDFORD CREMATORIUM,D5467,POSTAGE FROM FRANKING
GUILDFORD BOROUGH COUNCIL,BUSINESS & TOURISM,WHISTL UK LIMITED,68868,14-Jan-20,2098793,0.43,0,POSTAGE FROM FRANKING,POSTAL AND COURIER SERVICE PROVIDERS,Invoice,BACS,None,09-Dec-19,2019,10,AS19004334,F5547,BUSINESS,D5467,POSTAGE FROM FRANKING
GUILDFORD BOROUGH COUNCIL,PAYMENTS AND PURCHASING,WHISTL UK LIMITED,68868,14-Jan-20,2098791,3.92,0,POSTAGE FROM FRANKING,POSTAL AND COURIER SERVICE PROVIDERS,Invoice,BACS,None,02-Dec-19,2019,10,AS19004251,G3596,CREDITORS,D5467,POSTAGE FROM FRANKING
GUILDFORD BOROUGH COUNCIL,LEISURE GRANTS,WHISTL UK LIMITED,68868,14-Jan-20,2098793,0.66,0,POSTAGE FROM FRANKING,POSTAL AND COURIER SERVICE PROVIDERS,Invoice,BACS,None,09-Dec-19,2019,10,AS19004334,A4111,GRANTS ADMINISTRATION,D5467,POSTAGE FROM FRANKING
GUILDFORD BOROUGH COUNCIL,TOURIST INFORMATION CENTRE,WHISTL UK LIMITED,68868,14-Jan-20,2098799,2.63,0,POSTAGE FROM FRANKING,POSTAL AND COURIER SERVICE PROVIDERS,Invoice,BACS,None,23-Dec-19,2019,10,AS19004516,F5541,TOURIST INFORMATION CENTRE,D5467,POSTAGE FROM FRANKING
GUILDFORD BOROUGH COUNCIL,CLIMATE CHANGE,WHISTL UK LIMITED,68868,14-Jan-20,2098800,0.13,0,POSTAGE FROM FRANKING,POSTAL AND COURIER SERVICE PROVIDERS,Invoice,BACS,None,23-Dec-19,2019,10,PS19006043,B3911,CLIMATE CHANGE STRATEGY,D5467,POSTAGE FROM FRANKING
GUILDFORD BOROUGH COUNCIL,OPERATIONS TECHNICAL SERVICES,WHISTL UK LIMITED,68868,14-Jan-20,2098793,0.32,0,POSTAGE FROM FRANKING,POSTAL AND COURIER SERVICE PROVIDERS,Invoice,BACS,None,09-Dec-19,2019,10,AS19004334,G3546,ICT SERVICE DESK,D5467,POSTAGE FROM FRANKING
GUILDFORD BOROUGH COUNCIL,LICENSING SERVICES,WHISTL UK LIMITED,68868,14-Jan-20,2098799,1.95,0,POSTAGE FROM FRANKING,POSTAL AND COURIER SERVICE PROVIDERS,Invoice,BACS,None,23-Dec-19,2019,10,AS19004516,H2100,LICENSING SERVICES,D5467,POSTAGE FROM FRANKING
GUILDFORD BOROUGH COUNCIL,ENVIRONMENTAL CONTROL,WHISTL UK LIMITED,68868,14-Jan-20,2098799,1.95,0,POSTAGE FROM FRANKING,POSTAL AND COURIER SERVICE PROVIDERS,Invoice,BACS,None,23-Dec-19,2019,10,AS19004516,C1113,ENVIRONMENTAL CONTROL,D5467,POSTAGE FROM FRANKING
GUILDFORD BOROUGH COUNCIL,LEISURE SPORT DEVELOPMENT,WHISTL UK LIMITED,68868,14-Jan-20,2098799,1.4,0,POSTAGE FROM FRANKING,POSTAL AND COURIER SERVICE PROVIDERS,Invoice,BACS,None,23-Dec-19,2019,10,AS19004516,A7311,SPORTS DEVELOPMENT OFFICER,D5467,POSTAGE FROM FRANKING
GUILDFORD BOROUGH COUNCIL,POLICY,WHISTL UK LIMITED,68868,14-Jan-20,2098799,0,0,POSTAGE FROM FRANKING,POSTAL AND COURIER SERVICE PROVIDERS,Invoice,BACS,None,23-Dec-19,2019,10,AS19004516,D5300,POLICY,D5467,POSTAGE FROM FRANKING
GUILDFORD BOROUGH COUNCIL,OFFICE SERVICES TEAM,WHISTL UK LIMITED,68868,14-Jan-20,2098791,0.47,0,POSTAGE FROM FRANKING,POSTAL AND COURIER SERVICE PROVIDERS,Invoice,BACS,None,02-Dec-19,2019,10,AS19004251,G4585,OFFICE SERVICES,D5467,POSTAGE FROM FRANKING
GUILDFORD BOROUGH COUNCIL,RESPONSIVE & PLANNED MAINTENAN,WHISTL UK LIMITED,68868,14-Jan-20,2098791,1.09,0,POSTAGE FROM FRANKING,POSTAL AND COURIER SERVICE PROVIDERS,Invoice,BACS,None,02-Dec-19,2019,10,AS19004251,M5111,REPAIRS-ADMIN (BHS),D5467,POSTAGE FROM FRANKING
GUILDFORD BOROUGH COUNCIL,TENANTS' SERVICES,WHISTL UK LIMITED,68868,14-Jan-20,2098791,1.17,0,POSTAGE FROM FRANKING,POSTAL AND COURIER SERVICE PROVIDERS,Invoice,BACS,None,02-Dec-19,2019,10,AS19004251,M1151,TENANTS SERVICES (BHS),D5467,POSTAGE FROM FRANKING
GUILDFORD BOROUGH COUNCIL,LAND CHARGES,WHISTL UK LIMITED,68868,14-Jan-20,2098791,0,0,POSTAGE FROM FRANKING,POSTAL AND COURIER SERVICE PROVIDERS,Invoice,BACS,None,02-Dec-19,2019,10,AS19004251,F4111,LOCAL LAND CHARGES,D5467,POSTAGE FROM FRANKING
GUILDFORD BOROUGH COUNCIL,POLICY,WHISTL UK LIMITED,68868,14-Jan-20,2098792,11.71,0,POSTAGE FROM FRANKING,POSTAL AND COURIER SERVICE PROVIDERS,Invoice,BACS,None,09-Dec-19,2019,10,PS19005824,D5555,DESIGN AND CONSERVATION,D5467,POSTAGE FROM FRANKING
GUILDFORD BOROUGH COUNCIL,BUILDING CONTROL SUMMARY,WHISTL UK LIMITED,68868,14-Jan-20,2098792,9.36,0,POSTAGE FROM FRANKING,POSTAL AND COURIER SERVICE PROVIDERS,Invoice,BACS,None,09-Dec-19,2019,10,PS19005824,D5800,BUILDING CONTROL - NON FEE,D5467,POSTAGE FROM FRANKING
GUILDFORD BOROUGH COUNCIL,TAXI LICENSING,WHISTL UK LIMITED,68868,14-Jan-20,2098786,2.36,0,POSTAGE FROM FRANKING,POSTAL AND COURIER SERVICE PROVIDERS,Invoice,BACS,None,02-Dec-19,2019,10,PS19005721,H1108,HC & PC VEHICLES,D5467,POSTAGE FROM FRANKING
GUILDFORD BOROUGH COUNCIL,PRIVATE SECTOR HOUSING,WHISTL UK LIMITED,68868,14-Jan-20,2098792,23.1,0,POSTAGE FROM FRANKING,POSTAL AND COURIER SERVICE PROVIDERS,Invoice,BACS,None,09-Dec-19,2019,10,PS19005824,C5122,PRIVATE SECTOR HOUSING STANDAR,D5467,POSTAGE FROM FRANKING
GUILDFORD BOROUGH COUNCIL,CLIMATE CHANGE,WHISTL UK LIMITED,68868,14-Jan-20,2098786,0.12,0,POSTAGE FROM FRANKING,POSTAL AND COURIER SERVICE PROVIDERS,Invoice,BACS,None,02-Dec-19,2019,10,PS19005721,B3911,CLIMATE CHANGE STRATEGY,D5467,POSTAGE FROM FRANKING
GUILDFORD BOROUGH COUNCIL,TENANT SELECTION,WHISTL UK LIMITED,68868,14-Jan-20,2098800,9.49,0,POSTAGE FROM FRANKING,POSTAL AND COURIER SERVICE PROVIDERS,Invoice,BACS,None,23-Dec-19,2019,10,PS19006043,M1131,"ADVICE,REGS,TENANT SELECT(SHS)",D5467,POSTAGE FROM FRANKING
GUILDFORD BOROUGH COUNCIL,SUPPORTED HOUSING MANAGEMENT,WHISTL UK LIMITED,68868,14-Jan-20,2098800,0.66,0,POSTAGE FROM FRANKING,POSTAL AND COURIER SERVICE PROVIDERS,Invoice,BACS,None,23-Dec-19,2019,10,PS19006043,M3690,SUPPORTED HSG-GENERAL (SHS),D5467,POSTAGE FROM FRANKING
GUILDFORD BOROUGH COUNCIL,GARAGE MANAGEMENT,WHISTL UK LIMITED,68868,14-Jan-20,2098800,11.88,0,POSTAGE FROM FRANKING,POSTAL AND COURIER SERVICE PROVIDERS,Invoice,BACS,None,23-Dec-19,2019,10,PS19006043,M1172,GARAGE MANAGEMENT (BHS),D5467,POSTAGE FROM FRANKING
GUILDFORD BOROUGH COUNCIL,MUSEUM,WHISTL UK LIMITED,68868,14-Jan-20,2098800,1.93,0,POSTAGE FROM FRANKING,POSTAL AND COURIER SERVICE PROVIDERS,Invoice,BACS,None,23-Dec-19,2019,10,PS19006043,A5511,MUSEUM,D5467,POSTAGE FROM FRANKING
GUILDFORD BOROUGH COUNCIL,BUILDING CONTROL SUMMARY,WHISTL UK LIMITED,68868,14-Jan-20,2098800,66.61,0,POSTAGE FROM FRANKING,POSTAL AND COURIER SERVICE PROVIDERS,Invoice,BACS,None,23-Dec-19,2019,10,PS19006043,D5700,BUILDING CONTROL - FEE,D5467,POSTAGE FROM FRANKING
GUILDFORD BOROUGH COUNCIL,BUILDING CONTROL SUMMARY,WHISTL UK LIMITED,68868,14-Jan-20,2098793,0,0,POSTAGE FROM FRANKING,POSTAL AND COURIER SERVICE PROVIDERS,Invoice,BACS,None,09-Dec-19,2019,10,AS19004334,D5700,BUILDING CONTROL - FEE,D5467,POSTAGE FROM FRANKING
GUILDFORD BOROUGH COUNCIL,OFFICE SERVICES TEAM,WHISTL UK LIMITED,68868,14-Jan-20,2098753,0.3,0,POSTAGE FROM FRANKING,POSTAL AND COURIER SERVICE PROVIDERS,Invoice,BACS,None,25-Nov-19,2019,10,AS19004152,G4585,OFFICE SERVICES,D5467,POSTAGE FROM FRANKING
GUILDFORD BOROUGH COUNCIL,COUNCIL TAX,WHISTL UK LIMITED,68868,14-Jan-20,2098753,2.91,0,POSTAGE FROM FRANKING,POSTAL AND COURIER SERVICE PROVIDERS,Invoice,BACS,None,25-Nov-19,2019,10,AS19004152,F6141,COUNCIL TAX COLLECTN EXPENSES,D5467,POSTAGE FROM FRANKING
GUILDFORD BOROUGH COUNCIL,ELECTORAL REGISTRATION,WHISTL UK LIMITED,68868,16-Jan-20,2099572,0,0,POSTAGE FROM FRANKING,POSTAL AND COURIER SERVICE PROVIDERS,Invoice,BACS,None,16-Dec-19,2019,10,AS19004428,F2511,ELECTORAL REGISTRATION,D5467,POSTAGE FROM FRANKING
GUILDFORD BOROUGH COUNCIL,OPERATIONAL SERVS OVERHEAD AC,WHISTL UK LIMITED,68868,16-Jan-20,2099572,0,0,POSTAGE FROM FRANKING,POSTAL AND COURIER SERVICE PROVIDERS,Invoice,BACS,None,16-Dec-19,2019,10,AS19004428,K1519,OPERATIONAL SERVS OVERHEAD AC,D5467,POSTAGE FROM FRANKING
GUILDFORD BOROUGH COUNCIL,BUSINESS & TOURISM,WHISTL UK LIMITED,68868,16-Jan-20,2099575,1.06,0,POSTAGE FROM FRANKING,POSTAL AND COURIER SERVICE PROVIDERS,Invoice,BACS,None,16-Dec-19,2019,10,PS19005934,F5547,BUSINESS,D5467,POSTAGE FROM FRANKING
GUILDFORD BOROUGH COUNCIL,HR SERVICES,WHISTL UK LIMITED,68868,16-Jan-20,2099575,1.4,0,POSTAGE FROM FRANKING,POSTAL AND COURIER SERVICE PROVIDERS,Invoice,BACS,None,16-Dec-19,2019,10,PS19005934,G2555,HR SERVICES,D5467,POSTAGE FROM FRANKING
GUILDFORD BOROUGH COUNCIL,BUSINESS IMPROVEMENT,WHISTL UK LIMITED,68868,14-Jan-20,2098792,1.21,0,POSTAGE FROM FRANKING,POSTAL AND COURIER SERVICE PROVIDERS,Invoice,BACS,None,09-Dec-19,2019,10,PS19005824,G3530,BUSINESS IMPROVEMENT,D5467,POSTAGE FROM FRANKING
GUILDFORD BOROUGH COUNCIL,ACCOUNTANCY,WHISTL UK LIMITED,68868,14-Jan-20,2098800,8.08,0,POSTAGE FROM FRANKING,POSTAL AND COURIER SERVICE PROVIDERS,Invoice,BACS,None,23-Dec-19,2019,10,PS19006043,G3565,ACCOUNTANCY SERVICES,D5467,POSTAGE FROM FRANKING
GUILDFORD BOROUGH COUNCIL,LICENSING SERVICES,WHISTL UK LIMITED,68868,14-Jan-20,2098786,2.36,0,POSTAGE FROM FRANKING,POSTAL AND COURIER SERVICE PROVIDERS,Invoice,BACS,None,02-Dec-19,2019,10,PS19005721,H2100,LICENSING SERVICES,D5467,POSTAGE FROM FRANKING
GUILDFORD BOROUGH COUNCIL,TOWN CENTRE MANAGEMENT,WHISTL UK LIMITED,68868,14-Jan-20,2098786,0.79,0,POSTAGE FROM FRANKING,POSTAL AND COURIER SERVICE PROVIDERS,Invoice,BACS,None,02-Dec-19,2019,10,PS19005721,F5550,FARMERS MARKET,D5467,POSTAGE FROM FRANKING
GUILDFORD BOROUGH COUNCIL,BUILDING CONTROL SUMMARY,WHISTL UK LIMITED,68868,14-Jan-20,2098793,0,0,POSTAGE FROM FRANKING,POSTAL AND COURIER SERVICE PROVIDERS,Invoice,BACS,None,09-Dec-19,2019,10,AS19004334,D5800,BUILDING CONTROL - NON FEE,D5467,POSTAGE FROM FRANKING
GUILDFORD BOROUGH COUNCIL,GUILDHALL,WHISTL UK LIMITED,68868,14-Jan-20,2098800,0.41,0,POSTAGE FROM FRANKING,POSTAL AND COURIER SERVICE PROVIDERS,Invoice,BACS,None,23-Dec-19,2019,10,PS19006043,F3311,GUILDHALL,D5467,POSTAGE FROM FRANKING
GUILDFORD BOROUGH COUNCIL,OFF STREET PARKING,WHISTL UK LIMITED,68868,14-Jan-20,2098800,22.18,0,POSTAGE FROM FRANKING,POSTAL AND COURIER SERVICE PROVIDERS,Invoice,BACS,None,23-Dec-19,2019,10,PS19006043,B2115,PARKING OFFICE ACCOMM COSTS,D5467,POSTAGE FROM FRANKING
GUILDFORD BOROUGH COUNCIL,POLICY,WHISTL UK LIMITED,68868,14-Jan-20,2098800,26.64,0,POSTAGE FROM FRANKING,POSTAL AND COURIER SERVICE PROVIDERS,Invoice,BACS,None,23-Dec-19,2019,10,PS19006043,D5555,DESIGN AND CONSERVATION,D5467,POSTAGE FROM FRANKING
GUILDFORD BOROUGH COUNCIL,INCOME COLLECTION,WHISTL UK LIMITED,68868,14-Jan-20,2098800,66.54,0,POSTAGE FROM FRANKING,POSTAL AND COURIER SERVICE PROVIDERS,Invoice,BACS,None,23-Dec-19,2019,10,PS19006043,M1121,INCOME COLLECTION (BHS),D5467,POSTAGE FROM FRANKING
GUILDFORD BOROUGH COUNCIL,MANAGEMENT POLICY STRATEGY,WHISTL UK LIMITED,68868,14-Jan-20,2098800,0.3,0,POSTAGE FROM FRANKING,POSTAL AND COURIER SERVICE PROVIDERS,Invoice,BACS,None,23-Dec-19,2019,10,PS19006043,G3545,"ICT MANAGEMENT, POLICY & STRAT",D5467,POSTAGE FROM FRANKING
GUILDFORD BOROUGH COUNCIL,SUPPORTED HOUSING MANAGEMENT,WHISTL UK LIMITED,68868,14-Jan-20,2098793,0.32,0,POSTAGE FROM FRANKING,POSTAL AND COURIER SERVICE PROVIDERS,Invoice,BACS,None,09-Dec-19,2019,10,AS19004334,M3690,SUPPORTED HSG-GENERAL (SHS),D5467,POSTAGE FROM FRANKING
GUILDFORD BOROUGH COUNCIL,PUBLIC RELATIONS,WHISTL UK LIMITED,68868,14-Jan-20,2098793,0.15,0,POSTAGE FROM FRANKING,POSTAL AND COURIER SERVICE PROVIDERS,Invoice,BACS,None,09-Dec-19,2019,10,AS19004334,F5551,PUBLIC RELATIONS & MARKETING,D5467,POSTAGE FROM FRANKING
GUILDFORD BOROUGH COUNCIL,TOWN CENTRE MANAGEMENT,WHISTL UK LIMITED,68868,14-Jan-20,2098793,0.43,0,POSTAGE FROM FRANKING,POSTAL AND COURIER SERVICE PROVIDERS,Invoice,BACS,None,09-Dec-19,2019,10,AS19004334,F5550,FARMERS MARKET,D5467,POSTAGE FROM FRANKING
GUILDFORD BOROUGH COUNCIL,LEISURE PLAY DEVELOPMENT,WHISTL UK LIMITED,68868,14-Jan-20,2098786,1.69,0,POSTAGE FROM FRANKING,POSTAL AND COURIER SERVICE PROVIDERS,Invoice,BACS,None,02-Dec-19,2019,10,PS19005721,A7211,PLAY DEVELOPMENT,D5467,POSTAGE FROM FRANKING
GUILDFORD BOROUGH COUNCIL,RESPONSIVE & PLANNED MAINTENAN,WHISTL UK LIMITED,68868,14-Jan-20,2098800,59.41,0,POSTAGE FROM FRANKING,POSTAL AND COURIER SERVICE PROVIDERS,Invoice,BACS,None,23-Dec-19,2019,10,PS19006043,M5111,REPAIRS-ADMIN (BHS),D5467,POSTAGE FROM FRANKING
GUILDFORD BOROUGH COUNCIL,TOURIST INFORMATION CENTRE,WHISTL UK LIMITED,68868,14-Jan-20,2098793,1.73,0,POSTAGE FROM FRANKING,POSTAL AND COURIER SERVICE PROVIDERS,Invoice,BACS,None,09-Dec-19,2019,10,AS19004334,F5541,TOURIST INFORMATION CENTRE,D5467,POSTAGE FROM FRANKING
GUILDFORD BOROUGH COUNCIL,PARKS & COUNTRYSIDE,WHISTL UK LIMITED,68868,14-Jan-20,2098800,5.21,0,POSTAGE FROM FRANKING,POSTAL AND COURIER SERVICE PROVIDERS,Invoice,BACS,None,23-Dec-19,2019,10,PS19006043,A1900,PARKS MANAGEMENT AND ADMIN,D5467,POSTAGE FROM FRANKING
GUILDFORD BOROUGH COUNCIL,OFFICE SERVICES TEAM,WHISTL UK LIMITED,68868,14-Jan-20,2098792,1.94,0,POSTAGE FROM FRANKING,POSTAL AND COURIER SERVICE PROVIDERS,Invoice,BACS,None,09-Dec-19,2019,10,PS19005824,G4585,OFFICE SERVICES,D5467,POSTAGE FROM FRANKING
GUILDFORD BOROUGH COUNCIL,TOURIST INFORMATION CENTRE,WHISTL UK LIMITED,68868,14-Jan-20,2098792,8.44,0,POSTAGE FROM FRANKING,POSTAL AND COURIER SERVICE PROVIDERS,Invoice,BACS,None,09-Dec-19,2019,10,PS19005824,F5541,TOURIST INFORMATION CENTRE,D5467,POSTAGE FROM FRANKING
GUILDFORD BOROUGH COUNCIL,PARKS & COUNTRYSIDE,WHISTL UK LIMITED,68868,14-Jan-20,2098792,4.1,0,POSTAGE FROM FRANKING,POSTAL AND COURIER SERVICE PROVIDERS,Invoice,BACS,None,09-Dec-19,2019,10,PS19005824,A1900,PARKS MANAGEMENT AND ADMIN,D5467,POSTAGE FROM FRANKING
GUILDFORD BOROUGH COUNCIL,CREMATORIUM,WHISTL UK LIMITED,68868,14-Jan-20,2098791,0.04,0,POSTAGE FROM FRANKING,POSTAL AND COURIER SERVICE PROVIDERS,Invoice,BACS,None,02-Dec-19,2019,10,AS19004251,A1500,GUILDFORD CREMATORIUM,D5467,POSTAGE FROM FRANKING
GUILDFORD BOROUGH COUNCIL,DEBTORS,WHISTL UK LIMITED,68868,14-Jan-20,2098799,0,0,POSTAGE FROM FRANKING,POSTAL AND COURIER SERVICE PROVIDERS,Invoice,BACS,None,23-Dec-19,2019,10,AS19004516,G3555,DEBTORS,D5467,POSTAGE FROM FRANKING
GUILDFORD BOROUGH COUNCIL,BUSINESS RATES,WHISTL UK LIMITED,68868,14-Jan-20,2098799,2.78,0,POSTAGE FROM FRANKING,POSTAL AND COURIER SERVICE PROVIDERS,Invoice,BACS,None,23-Dec-19,2019,10,AS19004516,F6151,BUSINESS RATES COLLECTION EXPS,D5467,POSTAGE FROM FRANKING
GUILDFORD BOROUGH COUNCIL,TAXI LICENSING,WHISTL UK LIMITED,68868,14-Jan-20,2098799,1.95,0,POSTAGE FROM FRANKING,POSTAL AND COURIER SERVICE PROVIDERS,Invoice,BACS,None,23-Dec-19,2019,10,AS19004516,H1108,HC & PC VEHICLES,D5467,POSTAGE FROM FRANKING
GUILDFORD BOROUGH COUNCIL,TRANSPORTATION,WHISTL UK LIMITED,68868,14-Jan-20,2098799,0.03,0,POSTAGE FROM FRANKING,POSTAL AND COURIER SERVICE PROVIDERS,Invoice,BACS,None,23-Dec-19,2019,10,AS19004516,B5122,TRANSPORTATION INITIATIVES,D5467,POSTAGE FROM FRANKING
GUILDFORD BOROUGH COUNCIL,INTERNAL AUDIT,WHISTL UK LIMITED,68868,14-Jan-20,2098786,0.46,0,POSTAGE FROM FRANKING,POSTAL AND COURIER SERVICE PROVIDERS,Invoice,BACS,None,02-Dec-19,2019,10,PS19005721,G3525,INTERNAL AUDIT,D5467,POSTAGE FROM FRANKING
GUILDFORD BOROUGH COUNCIL,GUILDHALL,WHISTL UK LIMITED,68868,14-Jan-20,2098786,0.71,0,POSTAGE FROM FRANKING,POSTAL AND COURIER SERVICE PROVIDERS,Invoice,BACS,None,02-Dec-19,2019,10,PS19005721,F3311,GUILDHALL,D5467,POSTAGE FROM FRANKING
GUILDFORD BOROUGH COUNCIL,BUSINESS & TOURISM,WHISTL UK LIMITED,68868,14-Jan-20,2098786,3.19,0,POSTAGE FROM FRANKING,POSTAL AND COURIER SERVICE PROVIDERS,Invoice,BACS,None,02-Dec-19,2019,10,PS19005721,F5545,TOURISM,D5467,POSTAGE FROM FRANKING
GUILDFORD BOROUGH COUNCIL,TOWN CENTRE MANAGEMENT,WHISTL UK LIMITED,68868,14-Jan-20,2098800,0.87,0,POSTAGE FROM FRANKING,POSTAL AND COURIER SERVICE PROVIDERS,Invoice,BACS,None,23-Dec-19,2019,10,PS19006043,F5550,FARMERS MARKET,D5467,POSTAGE FROM FRANKING
GUILDFORD BOROUGH COUNCIL,BUSINESS IMPROVEMENT,WHISTL UK LIMITED,68868,16-Jan-20,2099572,0.28,0,POSTAGE FROM FRANKING,POSTAL AND COURIER SERVICE PROVIDERS,Invoice,BACS,None,16-Dec-19,2019,10,AS19004428,G3530,BUSINESS IMPROVEMENT,D5467,POSTAGE FROM FRANKING
GUILDFORD BOROUGH COUNCIL,ELECTORAL REGISTRATION,WHISTL UK LIMITED,68868,14-Jan-20,2098792,0,0,POSTAGE FROM FRANKING,POSTAL AND COURIER SERVICE PROVIDERS,Invoice,BACS,None,09-Dec-19,2019,10,PS19005824,F2512,INDIVID ELECTORAL REGISTRATION,D5467,POSTAGE FROM FRANKING
GUILDFORD BOROUGH COUNCIL,MANAGEMENT POLICY STRATEGY,WHISTL UK LIMITED,68868,14-Jan-20,2098799,0.23,0,POSTAGE FROM FRANKING,POSTAL AND COURIER SERVICE PROVIDERS,Invoice,BACS,None,23-Dec-19,2019,10,AS19004516,G3545,"ICT MANAGEMENT, POLICY & STRAT",D5467,POSTAGE FROM FRANKING
GUILDFORD BOROUGH COUNCIL,WEBSITE,WHISTL UK LIMITED,68868,14-Jan-20,2098799,0.38,0,POSTAGE FROM FRANKING,POSTAL AND COURIER SERVICE PROVIDERS,Invoice,BACS,None,23-Dec-19,2019,10,AS19004516,F1141,INTERNET SITE ACCESS,D5467,POSTAGE FROM FRANKING
GUILDFORD BOROUGH COUNCIL,ENGINEERING AND TRANS SERVICES,WHISTL UK LIMITED,68868,14-Jan-20,2098786,1.73,0,POSTAGE FROM FRANKING,POSTAL AND COURIER SERVICE PROVIDERS,Invoice,BACS,None,02-Dec-19,2019,10,PS19005721,G5538,ENGINEERING AND TRANS SERVICES,D5467,POSTAGE FROM FRANKING
GUILDFORD BOROUGH COUNCIL,RESPONSIVE & PLANNED MAINTENAN,WHISTL UK LIMITED,68868,14-Jan-20,2098786,73.02,0,POSTAGE FROM FRANKING,POSTAL AND COURIER SERVICE PROVIDERS,Invoice,BACS,None,02-Dec-19,2019,10,PS19005721,M5111,REPAIRS-ADMIN (BHS),D5467,POSTAGE FROM FRANKING
GUILDFORD BOROUGH COUNCIL,TENANT PARTICIPATION,WHISTL UK LIMITED,68868,14-Jan-20,2098786,23.36,0,POSTAGE FROM FRANKING,POSTAL AND COURIER SERVICE PROVIDERS,Invoice,BACS,None,02-Dec-19,2019,10,PS19005721,M1152,TENANT PARTICIPATION (BHS),D5467,POSTAGE FROM FRANKING
GUILDFORD BOROUGH COUNCIL,LEISURE COMMUNITY CENTRES,WHISTL UK LIMITED,68868,14-Jan-20,2098786,0.98,0,POSTAGE FROM FRANKING,POSTAL AND COURIER SERVICE PROVIDERS,Invoice,BACS,None,02-Dec-19,2019,10,PS19005721,A8111,YOUTH & COMM CENTRES- ADMIN.,D5467,POSTAGE FROM FRANKING
GUILDFORD BOROUGH COUNCIL,LEISURE SPORT DEVELOPMENT,WHISTL UK LIMITED,68868,14-Jan-20,2098786,1.69,0,POSTAGE FROM FRANKING,POSTAL AND COURIER SERVICE PROVIDERS,Invoice,BACS,None,02-Dec-19,2019,10,PS19005721,A7311,SPORTS DEVELOPMENT OFFICER,D5467,POSTAGE FROM FRANKING
GUILDFORD BOROUGH COUNCIL,BUSINESS & TOURISM,WHISTL UK LIMITED,68868,14-Jan-20,2098786,0.79,0,POSTAGE FROM FRANKING,POSTAL AND COURIER SERVICE PROVIDERS,Invoice,BACS,None,02-Dec-19,2019,10,PS19005721,F5547,BUSINESS,D5467,POSTAGE FROM FRANKING
GUILDFORD BOROUGH COUNCIL,GUILDHALL,WHISTL UK LIMITED,68868,16-Jan-20,2099575,0.79,0,POSTAGE FROM FRANKING,POSTAL AND COURIER SERVICE PROVIDERS,Invoice,BACS,None,16-Dec-19,2019,10,PS19005934,F3311,GUILDHALL,D5467,POSTAGE FROM FRANKING
GUILDFORD BOROUGH COUNCIL,PAYMENTS AND PURCHASING,WHISTL UK LIMITED,68868,14-Jan-20,2098753,2.56,0,POSTAGE FROM FRANKING,POSTAL AND COURIER SERVICE PROVIDERS,Invoice,BACS,None,25-Nov-19,2019,10,AS19004152,G3596,CREDITORS,D5467,POSTAGE FROM FRANKING
GUILDFORD BOROUGH COUNCIL,HOMELESSNESS,WHISTL UK LIMITED,68868,14-Jan-20,2098753,0.97,0,POSTAGE FROM FRANKING,POSTAL AND COURIER SERVICE PROVIDERS,Invoice,BACS,None,25-Nov-19,2019,10,AS19004152,C3311,HOMELESSNESS ADMINISTRATION,D5467,POSTAGE FROM FRANKING
GUILDFORD BOROUGH COUNCIL,DEBTORS,WHISTL UK LIMITED,68868,14-Jan-20,2098753,0,0,POSTAGE FROM FRANKING,POSTAL AND COURIER SERVICE PROVIDERS,Invoice,BACS,None,25-Nov-19,2019,10,AS19004152,G3555,DEBTORS,D5467,POSTAGE FROM FRANKING
GUILDFORD BOROUGH COUNCIL,ACCOUNTANCY,WHISTL UK LIMITED,68868,14-Jan-20,2098791,0,0,POSTAGE FROM FRANKING,POSTAL AND COURIER SERVICE PROVIDERS,Invoice,BACS,None,02-Dec-19,2019,10,AS19004251,G3565,ACCOUNTANCY SERVICES,D5467,POSTAGE FROM FRANKING
GUILDFORD BOROUGH COUNCIL,HOUSING BENEFITS,WHISTL UK LIMITED,68868,14-Jan-20,2098793,5.43,0,POSTAGE FROM FRANKING,POSTAL AND COURIER SERVICE PROVIDERS,Invoice,BACS,None,09-Dec-19,2019,10,AS19004334,C4511,HOUSING BENEFITS ADMIN.,D5467,POSTAGE FROM FRANKING
GUILDFORD BOROUGH COUNCIL,COUNCIL TAX,WHISTL UK LIMITED,68868,14-Jan-20,2098792,511.6,0,POSTAGE FROM FRANKING,POSTAL AND COURIER SERVICE PROVIDERS,Invoice,BACS,None,09-Dec-19,2019,10,PS19005824,F6141,COUNCIL TAX COLLECTN EXPENSES,D5467,POSTAGE FROM FRANKING
GUILDFORD BOROUGH COUNCIL,MUSEUM,WHISTL UK LIMITED,68868,14-Jan-20,2098792,1.52,0,POSTAGE FROM FRANKING,POSTAL AND COURIER SERVICE PROVIDERS,Invoice,BACS,None,09-Dec-19,2019,10,PS19005824,A5511,MUSEUM,D5467,POSTAGE FROM FRANKING
GUILDFORD BOROUGH COUNCIL,TRANSPORTATION,WHISTL UK LIMITED,68868,14-Jan-20,2098792,0.38,0,POSTAGE FROM FRANKING,POSTAL AND COURIER SERVICE PROVIDERS,Invoice,BACS,None,09-Dec-19,2019,10,PS19005824,B5122,TRANSPORTATION INITIATIVES,D5467,POSTAGE FROM FRANKING
GUILDFORD BOROUGH COUNCIL,TOWN CENTRE MANAGEMENT,WHISTL UK LIMITED,68868,14-Jan-20,2098792,2.09,0,POSTAGE FROM FRANKING,POSTAL AND COURIER SERVICE PROVIDERS,Invoice,BACS,None,09-Dec-19,2019,10,PS19005824,F5550,FARMERS MARKET,D5467,POSTAGE FROM FRANKING
GUILDFORD BOROUGH COUNCIL,MANAGEMENT POLICY STRATEGY,WHISTL UK LIMITED,68868,14-Jan-20,2098792,0.73,0,POSTAGE FROM FRANKING,POSTAL AND COURIER SERVICE PROVIDERS,Invoice,BACS,None,09-Dec-19,2019,10,PS19005824,G3545,"ICT MANAGEMENT, POLICY & STRAT",D5467,POSTAGE FROM FRANKING
GUILDFORD BOROUGH COUNCIL,OFF STREET PARKING,WHISTL UK LIMITED,68868,14-Jan-20,2098753,17.61,0,POSTAGE FROM FRANKING,POSTAL AND COURIER SERVICE PROVIDERS,Invoice,BACS,None,25-Nov-19,2019,10,AS19004152,B2115,PARKING OFFICE ACCOMM COSTS,D5467,POSTAGE FROM FRANKING
GUILDFORD BOROUGH COUNCIL,INCOME COLLECTION,WHISTL UK LIMITED,68868,14-Jan-20,2098793,1.62,0,POSTAGE FROM FRANKING,POSTAL AND COURIER SERVICE PROVIDERS,Invoice,BACS,None,09-Dec-19,2019,10,AS19004334,M1121,INCOME COLLECTION (BHS),D5467,POSTAGE FROM FRANKING
GUILDFORD BOROUGH COUNCIL,PARKS & COUNTRYSIDE,WHISTL UK LIMITED,68868,14-Jan-20,2098753,4.14,0,POSTAGE FROM FRANKING,POSTAL AND COURIER SERVICE PROVIDERS,Invoice,BACS,None,25-Nov-19,2019,10,AS19004152,A1900,PARKS MANAGEMENT AND ADMIN,D5467,POSTAGE FROM FRANKING
GUILDFORD BOROUGH COUNCIL,OFF STREET PARKING,WHISTL UK LIMITED,68868,14-Jan-20,2098793,0,0,POSTAGE FROM FRANKING,POSTAL AND COURIER SERVICE PROVIDERS,Invoice,BACS,None,09-Dec-19,2019,10,AS19004334,B2115,PARKING OFFICE ACCOMM COSTS,D5467,POSTAGE FROM FRANKING
GUILDFORD BOROUGH COUNCIL,LEISURE ART DEVELOPMENT,WHISTL UK LIMITED,68868,14-Jan-20,2098793,0.92,0,POSTAGE FROM FRANKING,POSTAL AND COURIER SERVICE PROVIDERS,Invoice,BACS,None,09-Dec-19,2019,10,AS19004334,A3511,ARTS DEVELOPMENT,D5467,POSTAGE FROM FRANKING
GUILDFORD BOROUGH COUNCIL,LEISURE SPORT DEVELOPMENT,WHISTL UK LIMITED,68868,14-Jan-20,2098793,0.92,0,POSTAGE FROM FRANKING,POSTAL AND COURIER SERVICE PROVIDERS,Invoice,BACS,None,09-Dec-19,2019,10,AS19004334,A7311,SPORTS DEVELOPMENT OFFICER,D5467,POSTAGE FROM FRANKING
GUILDFORD BOROUGH COUNCIL,HOMELESSNESS,WHISTL UK LIMITED,68868,16-Jan-20,2099575,3.03,0,POSTAGE FROM FRANKING,POSTAL AND COURIER SERVICE PROVIDERS,Invoice,BACS,None,16-Dec-19,2019,10,PS19005934,C3311,HOMELESSNESS ADMINISTRATION,D5467,POSTAGE FROM FRANKING
GUILDFORD BOROUGH COUNCIL,TOWN CENTRE MANAGEMENT,WHISTL UK LIMITED,68868,16-Jan-20,2099575,1.06,0,POSTAGE FROM FRANKING,POSTAL AND COURIER SERVICE PROVIDERS,Invoice,BACS,None,16-Dec-19,2019,10,PS19005934,F5550,FARMERS MARKET,D5467,POSTAGE FROM FRANKING
GUILDFORD BOROUGH COUNCIL,PAYMENTS AND PURCHASING,WHISTL UK LIMITED,68868,14-Jan-20,2098793,3.25,0,POSTAGE FROM FRANKING,POSTAL AND COURIER SERVICE PROVIDERS,Invoice,BACS,None,09-Dec-19,2019,10,AS19004334,G3596,CREDITORS,D5467,POSTAGE FROM FRANKING
GUILDFORD BOROUGH COUNCIL,HOUSING SURVEYING SERVICES,WHISTL UK LIMITED,68868,14-Jan-20,2098800,16.64,0,POSTAGE FROM FRANKING,POSTAL AND COURIER SERVICE PROVIDERS,Invoice,BACS,None,23-Dec-19,2019,10,PS19006043,G6525,HOUSING SURVEYING SERVICES,D5467,POSTAGE FROM FRANKING
GUILDFORD BOROUGH COUNCIL,OPERATIONAL SERVS OVERHEAD AC,WHISTL UK LIMITED,68868,14-Jan-20,2098786,25.53,0,POSTAGE FROM FRANKING,POSTAL AND COURIER SERVICE PROVIDERS,Invoice,BACS,None,02-Dec-19,2019,10,PS19005721,K1519,OPERATIONAL SERVS OVERHEAD AC,D5467,POSTAGE FROM FRANKING
GUILDFORD BOROUGH COUNCIL,INTERNAL AUDIT,WHISTL UK LIMITED,68868,14-Jan-20,2098791,0.3,0,POSTAGE FROM FRANKING,POSTAL AND COURIER SERVICE PROVIDERS,Invoice,BACS,None,02-Dec-19,2019,10,AS19004251,G3525,INTERNAL AUDIT,D5467,POSTAGE FROM FRANKING
GUILDFORD BOROUGH COUNCIL,LAND CHARGES,WHISTL UK LIMITED,68868,14-Jan-20,2098799,0,0,POSTAGE FROM FRANKING,POSTAL AND COURIER SERVICE PROVIDERS,Invoice,BACS,None,23-Dec-19,2019,10,AS19004516,F4111,LOCAL LAND CHARGES,D5467,POSTAGE FROM FRANKING
GUILDFORD BOROUGH COUNCIL,BUSINESS RATES,WHISTL UK LIMITED,68868,14-Jan-20,2098786,3.37,0,POSTAGE FROM FRANKING,POSTAL AND COURIER SERVICE PROVIDERS,Invoice,BACS,None,02-Dec-19,2019,10,PS19005721,F6151,BUSINESS RATES COLLECTION EXPS,D5467,POSTAGE FROM FRANKING
GUILDFORD BOROUGH COUNCIL,ENVIRONMENTAL CONTROL,WHISTL UK LIMITED,68868,14-Jan-20,2098786,2.36,0,POSTAGE FROM FRANKING,POSTAL AND COURIER SERVICE PROVIDERS,Invoice,BACS,None,02-Dec-19,2019,10,PS19005721,C1113,ENVIRONMENTAL CONTROL,D5467,POSTAGE FROM FRANKING
GUILDFORD BOROUGH COUNCIL,PUBLIC RELATIONS,WHISTL UK LIMITED,68868,14-Jan-20,2098786,0.27,0,POSTAGE FROM FRANKING,POSTAL AND COURIER SERVICE PROVIDERS,Invoice,BACS,None,02-Dec-19,2019,10,PS19005721,F5551,PUBLIC RELATIONS & MARKETING,D5467,POSTAGE FROM FRANKING
GUILDFORD BOROUGH COUNCIL,DEVELOPMENT CONTROL,WHISTL UK LIMITED,68868,16-Jan-20,2099572,0,0,POSTAGE FROM FRANKING,POSTAL AND COURIER SERVICE PROVIDERS,Invoice,BACS,None,16-Dec-19,2019,10,AS19004428,D5100,DEVELOPMENT CONTROL - FEE EARN,D5467,POSTAGE FROM FRANKING
GUILDFORD BOROUGH COUNCIL,MANAGEMENT POLICY STRATEGY,WHISTL UK LIMITED,68868,16-Jan-20,2099575,0.37,0,POSTAGE FROM FRANKING,POSTAL AND COURIER SERVICE PROVIDERS,Invoice,BACS,None,16-Dec-19,2019,10,PS19005934,G3545,"ICT MANAGEMENT, POLICY & STRAT",D5467,POSTAGE FROM FRANKING
GUILDFORD BOROUGH COUNCIL,BUILDING CONTROL SUMMARY,WHISTL UK LIMITED,68868,16-Jan-20,2099575,21.19,0,POSTAGE FROM FRANKING,POSTAL AND COURIER SERVICE PROVIDERS,Invoice,BACS,None,16-Dec-19,2019,10,PS19005934,D5800,BUILDING CONTROL - NON FEE,D5467,POSTAGE FROM FRANKING
GUILDFORD BOROUGH COUNCIL,LEISURE COMMUNITY CENTRES,WHISTL UK LIMITED,68868,14-Jan-20,2098792,2.6,0,POSTAGE FROM FRANKING,POSTAL AND COURIER SERVICE PROVIDERS,Invoice,BACS,None,09-Dec-19,2019,10,PS19005824,A8111,YOUTH & COMM CENTRES- ADMIN.,D5467,POSTAGE FROM FRANKING
GUILDFORD BOROUGH COUNCIL,LEISURE ART DEVELOPMENT,WHISTL UK LIMITED,68868,14-Jan-20,2098792,4.48,0,POSTAGE FROM FRANKING,POSTAL AND COURIER SERVICE PROVIDERS,Invoice,BACS,None,09-Dec-19,2019,10,PS19005824,A3511,ARTS DEVELOPMENT,D5467,POSTAGE FROM FRANKING
GUILDFORD BOROUGH COUNCIL,LEISURE PLAY DEVELOPMENT,WHISTL UK LIMITED,68868,14-Jan-20,2098792,4.48,0,POSTAGE FROM FRANKING,POSTAL AND COURIER SERVICE PROVIDERS,Invoice,BACS,None,09-Dec-19,2019,10,PS19005824,A7211,PLAY DEVELOPMENT,D5467,POSTAGE FROM FRANKING
GUILDFORD BOROUGH COUNCIL,GARAGE MANAGEMENT,WHISTL UK LIMITED,68868,14-Jan-20,2098792,6.76,0,POSTAGE FROM FRANKING,POSTAL AND COURIER SERVICE PROVIDERS,Invoice,BACS,None,09-Dec-19,2019,10,PS19005824,M1172,GARAGE MANAGEMENT (BHS),D5467,POSTAGE FROM FRANKING
GUILDFORD BOROUGH COUNCIL,BUILDING CONTROL SUMMARY,WHISTL UK LIMITED,68868,14-Jan-20,2098791,0,0,POSTAGE FROM FRANKING,POSTAL AND COURIER SERVICE PROVIDERS,Invoice,BACS,None,02-Dec-19,2019,10,AS19004251,D5700,BUILDING CONTROL - FEE,D5467,POSTAGE FROM FRANKING
GUILDFORD BOROUGH COUNCIL,OPERATIONAL SERVS OVERHEAD AC,WHISTL UK LIMITED,68868,14-Jan-20,2098799,0.85,0,POSTAGE FROM FRANKING,POSTAL AND COURIER SERVICE PROVIDERS,Invoice,BACS,None,23-Dec-19,2019,10,AS19004516,K1519,OPERATIONAL SERVS OVERHEAD AC,D5467,POSTAGE FROM FRANKING
GUILDFORD BOROUGH COUNCIL,CLIMATE CHANGE,WHISTL UK LIMITED,68868,14-Jan-20,2098791,0.48,0,POSTAGE FROM FRANKING,POSTAL AND COURIER SERVICE PROVIDERS,Invoice,BACS,None,02-Dec-19,2019,10,AS19004251,G4586,ENERGY SERVICES,D5467,POSTAGE FROM FRANKING
GUILDFORD BOROUGH COUNCIL,TENANTS' SERVICES,WHISTL UK LIMITED,68868,14-Jan-20,2098793,1.57,0,POSTAGE FROM FRANKING,POSTAL AND COURIER SERVICE PROVIDERS,Invoice,BACS,None,09-Dec-19,2019,10,AS19004334,M1151,TENANTS SERVICES (BHS),D5467,POSTAGE FROM FRANKING
GUILDFORD BOROUGH COUNCIL,PUBLIC RELATIONS,WHISTL UK LIMITED,68868,14-Jan-20,2098800,0.3,0,POSTAGE FROM FRANKING,POSTAL AND COURIER SERVICE PROVIDERS,Invoice,BACS,None,23-Dec-19,2019,10,PS19006043,F5551,PUBLIC RELATIONS & MARKETING,D5467,POSTAGE FROM FRANKING
GUILDFORD BOROUGH COUNCIL,TAXI LICENSING,WHISTL UK LIMITED,68868,14-Jan-20,2098792,6.25,0,POSTAGE FROM FRANKING,POSTAL AND COURIER SERVICE PROVIDERS,Invoice,BACS,None,09-Dec-19,2019,10,PS19005824,H1108,HC & PC VEHICLES,D5467,POSTAGE FROM FRANKING
GUILDFORD BOROUGH COUNCIL,HOUSING BENEFITS,WHISTL UK LIMITED,68868,14-Jan-20,2098792,399.66,0,POSTAGE FROM FRANKING,POSTAL AND COURIER SERVICE PROVIDERS,Invoice,BACS,None,09-Dec-19,2019,10,PS19005824,C4511,HOUSING BENEFITS ADMIN.,D5467,POSTAGE FROM FRANKING
GUILDFORD BOROUGH COUNCIL,LAND CHARGES,WHISTL UK LIMITED,68868,14-Jan-20,2098792,2.34,0,POSTAGE FROM FRANKING,POSTAL AND COURIER SERVICE PROVIDERS,Invoice,BACS,None,09-Dec-19,2019,10,PS19005824,F4111,LOCAL LAND CHARGES,D5467,POSTAGE FROM FRANKING
GUILDFORD BOROUGH COUNCIL,LEISURE GRANTS,WHISTL UK LIMITED,68868,14-Jan-20,2098786,1.22,0,POSTAGE FROM FRANKING,POSTAL AND COURIER SERVICE PROVIDERS,Invoice,BACS,None,02-Dec-19,2019,10,PS19005721,A4111,GRANTS ADMINISTRATION,D5467,POSTAGE FROM FRANKING
GUILDFORD BOROUGH COUNCIL,LEISURE SPORT DEVELOPMENT,WHISTL UK LIMITED,68868,14-Jan-20,2098791,1.11,0,POSTAGE FROM FRANKING,POSTAL AND COURIER SERVICE PROVIDERS,Invoice,BACS,None,02-Dec-19,2019,10,AS19004251,A7311,SPORTS DEVELOPMENT OFFICER,D5467,POSTAGE FROM FRANKING
GUILDFORD BOROUGH COUNCIL,TENANT SELECTION,WHISTL UK LIMITED,68868,14-Jan-20,2098786,8.6,0,POSTAGE FROM FRANKING,POSTAL AND COURIER SERVICE PROVIDERS,Invoice,BACS,None,02-Dec-19,2019,10,PS19005721,M1131,"ADVICE,REGS,TENANT SELECT(SHS)",D5467,POSTAGE FROM FRANKING
GUILDFORD BOROUGH COUNCIL,BUILDING CONTROL SUMMARY,WHISTL UK LIMITED,68868,14-Jan-20,2098799,0,0,POSTAGE FROM FRANKING,POSTAL AND COURIER SERVICE PROVIDERS,Invoice,BACS,None,23-Dec-19,2019,10,AS19004516,D5700,BUILDING CONTROL - FEE,D5467,POSTAGE FROM FRANKING
GUILDFORD BOROUGH COUNCIL,GARAGE MANAGEMENT,WHISTL UK LIMITED,68868,14-Jan-20,2098799,0,0,POSTAGE FROM FRANKING,POSTAL AND COURIER SERVICE PROVIDERS,Invoice,BACS,None,23-Dec-19,2019,10,AS19004516,M1172,GARAGE MANAGEMENT (BHS),D5467,POSTAGE FROM FRANKING
GUILDFORD BOROUGH COUNCIL,LEISURE ART DEVELOPMENT,WHISTL UK LIMITED,68868,14-Jan-20,2098799,1.4,0,POSTAGE FROM FRANKING,POSTAL AND COURIER SERVICE PROVIDERS,Invoice,BACS,None,23-Dec-19,2019,10,AS19004516,A3511,ARTS DEVELOPMENT,D5467,POSTAGE FROM FRANKING
GUILDFORD BOROUGH COUNCIL,PAYMENTS AND PURCHASING,WHISTL UK LIMITED,68868,14-Jan-20,2098799,0.88,0,POSTAGE FROM FRANKING,POSTAL AND COURIER SERVICE PROVIDERS,Invoice,BACS,None,23-Dec-19,2019,10,AS19004516,G3598,PURCHASING,D5467,POSTAGE FROM FRANKING
GUILDFORD BOROUGH COUNCIL,CREMATORIUM,WHISTL UK LIMITED,68868,14-Jan-20,2098786,4.49,0,POSTAGE FROM FRANKING,POSTAL AND COURIER SERVICE PROVIDERS,Invoice,BACS,None,02-Dec-19,2019,10,PS19005721,A1500,GUILDFORD CREMATORIUM,D5467,POSTAGE FROM FRANKING
GUILDFORD BOROUGH COUNCIL,OPERATIONS TECHNICAL SERVICES,WHISTL UK LIMITED,68868,14-Jan-20,2098753,0.25,0,POSTAGE FROM FRANKING,POSTAL AND COURIER SERVICE PROVIDERS,Invoice,BACS,None,25-Nov-19,2019,10,AS19004152,G3547,ICT DEVELOPMENT,D5467,POSTAGE FROM FRANKING
GUILDFORD BOROUGH COUNCIL,HOUSING SURVEYING SERVICES,WHISTL UK LIMITED,68868,14-Jan-20,2098791,0.3,0,POSTAGE FROM FRANKING,POSTAL AND COURIER SERVICE PROVIDERS,Invoice,BACS,None,02-Dec-19,2019,10,AS19004251,G6525,HOUSING SURVEYING SERVICES,D5467,POSTAGE FROM FRANKING
GUILDFORD BOROUGH COUNCIL,OTHER ST CREDITORS,WILDS CONSTRUCTION LTD,96330,14-Jan-20,2098661,6210,0,PAYMENTS,OTHER CONSTRUCTION CONTRACTORS,Invoice,BACS,None,08-Jan-20,2019,10,SI-5736,L02088,CARE & REPAIR CLIENT FUND,2489,PAYMENTS
GUILDFORD BOROUGH COUNCIL,INDUSTRIAL ESTATES,WILSON MASON LLP,93889,14-Jan-20,2097643,11887.5,0,CONSULTANTS FEES - PROJECTS,THIRD PARTY SUPPLIER,Invoice,BACS,None,01-Nov-19,2019,10,12419,P72037,MIDLETON IND EST REDEVELOP,1221,CONSULTANTS FEES - PROJECTS
GUILDFORD BOROUGH COUNCIL,DEVELOPMENT CONTROL,WILLIAMS BROTHERS NEWSAGENTS,8624,07-Jan-20,2095925,10.31,0,BOOKS AND PUBLICATIONS,OTHER RETAILERS,Invoice,BACS,None,09-Dec-19,2019,10,024044,D5100,DEVELOPMENT CONTROL - FEE EARN,D3411,BOOKS AND PUBLICATIONS
GUILDFORD BOROUGH COUNCIL,OPERATIONAL SERVS OVERHEAD AC,WILLIAMS BROTHERS NEWSAGENTS,8624,14-Jan-20,2098295,8.1,0,BOOKS AND PUBLICATIONS,OTHER RETAILERS,Invoice,BACS,None,31-Dec-19,2019,10,024387,K1519,OPERATIONAL SERVS OVERHEAD AC,D3411,BOOKS AND PUBLICATIONS
GUILDFORD BOROUGH COUNCIL,LICENSING SERVICES,WILLIAMS BROTHERS NEWSAGENTS,8624,14-Jan-20,2098295,8.1,0,BOOKS AND PUBLICATIONS,OTHER RETAILERS,Invoice,BACS,None,31-Dec-19,2019,10,024387,H2100,LICENSING SERVICES,D3411,BOOKS AND PUBLICATIONS
GUILDFORD BOROUGH COUNCIL,LICENSING SERVICES,WILLIAMS BROTHERS NEWSAGENTS,8624,07-Jan-20,2095925,10.31,0,BOOKS AND PUBLICATIONS,OTHER RETAILERS,Invoice,BACS,None,09-Dec-19,2019,10,024044,H2100,LICENSING SERVICES,D3411,BOOKS AND PUBLICATIONS
GUILDFORD BOROUGH COUNCIL,CIVIC EXPENSES,WILLIAMS BROTHERS NEWSAGENTS,8624,07-Jan-20,2095925,10.31,0,BOOKS AND PUBLICATIONS,OTHER RETAILERS,Invoice,BACS,None,09-Dec-19,2019,10,024044,F2131,CIVIC EXPENSES,D3411,BOOKS AND PUBLICATIONS
GUILDFORD BOROUGH COUNCIL,PUBLIC RELATIONS,WILLIAMS BROTHERS NEWSAGENTS,8624,14-Jan-20,2098295,22.69,0,BOOKS AND PUBLICATIONS,OTHER RETAILERS,Invoice,BACS,None,31-Dec-19,2019,10,024387,F5551,PUBLIC RELATIONS & MARKETING,D3411,BOOKS AND PUBLICATIONS
GUILDFORD BOROUGH COUNCIL,OTHER ST CREDITORS,WILDS CONSTRUCTION LTD,96330,16-Jan-20,2099402,6815,0,PAYMENTS,OTHER CONSTRUCTION CONTRACTORS,Invoice,BACS,None,06-Jan-20,2019,10,SI-5715,L02088,CARE & REPAIR CLIENT FUND,2489,PAYMENTS
GUILDFORD BOROUGH COUNCIL,PARKS & COUNTRYSIDE,WILLIAMS BROTHERS NEWSAGENTS,8624,14-Jan-20,2098295,8.1,0,BOOKS AND PUBLICATIONS,OTHER RETAILERS,Invoice,BACS,None,31-Dec-19,2019,10,024387,A1900,PARKS MANAGEMENT AND ADMIN,D3411,BOOKS AND PUBLICATIONS
GUILDFORD BOROUGH COUNCIL,OFF STREET PARKING,WHISTL UK LIMITED,68868,16-Jan-20,2099575,42,0,POSTAGE FROM FRANKING,POSTAL AND COURIER SERVICE PROVIDERS,Invoice,BACS,None,16-Dec-19,2019,10,PS19005934,B2115,PARKING OFFICE ACCOMM COSTS,D5467,POSTAGE FROM FRANKING
GUILDFORD BOROUGH COUNCIL,BUILDING CONTROL SUMMARY,WHISTL UK LIMITED,68868,16-Jan-20,2099575,66.22,0,POSTAGE FROM FRANKING,POSTAL AND COURIER SERVICE PROVIDERS,Invoice,BACS,None,16-Dec-19,2019,10,PS19005934,D5700,BUILDING CONTROL - FEE,D5467,POSTAGE FROM FRANKING
GUILDFORD BOROUGH COUNCIL,TENANT PARTICIPATION,WHISTL UK LIMITED,68868,16-Jan-20,2099575,16.49,0,POSTAGE FROM FRANKING,POSTAL AND COURIER SERVICE PROVIDERS,Invoice,BACS,None,16-Dec-19,2019,10,PS19005934,M1152,TENANT PARTICIPATION (BHS),D5467,POSTAGE FROM FRANKING
GUILDFORD BOROUGH COUNCIL,INCOME COLLECTION,WHISTL UK LIMITED,68868,16-Jan-20,2099575,57.71,0,POSTAGE FROM FRANKING,POSTAL AND COURIER SERVICE PROVIDERS,Invoice,BACS,None,16-Dec-19,2019,10,PS19005934,M1121,INCOME COLLECTION (BHS),D5467,POSTAGE FROM FRANKING
GUILDFORD BOROUGH COUNCIL,PAYMENTS AND PURCHASING,WHISTL UK LIMITED,68868,16-Jan-20,2099575,8.04,0,POSTAGE FROM FRANKING,POSTAL AND COURIER SERVICE PROVIDERS,Invoice,BACS,None,16-Dec-19,2019,10,PS19005934,G3596,CREDITORS,D5467,POSTAGE FROM FRANKING
GUILDFORD BOROUGH COUNCIL,TAXI LICENSING,WHISTL UK LIMITED,68868,16-Jan-20,2099575,3.17,0,POSTAGE FROM FRANKING,POSTAL AND COURIER SERVICE PROVIDERS,Invoice,BACS,None,16-Dec-19,2019,10,PS19005934,H1108,HC & PC VEHICLES,D5467,POSTAGE FROM FRANKING
GUILDFORD BOROUGH COUNCIL,INTERNAL AUDIT,WHISTL UK LIMITED,68868,16-Jan-20,2099572,0.28,0,POSTAGE FROM FRANKING,POSTAL AND COURIER SERVICE PROVIDERS,Invoice,BACS,None,16-Dec-19,2019,10,AS19004428,G3525,INTERNAL AUDIT,D5467,POSTAGE FROM FRANKING
GUILDFORD BOROUGH COUNCIL,LEISURE - MISCELLANEOUS,WILL NASH SCULPTURE,95873,23-Jan-20,2100373,4384.03,0,CONTRACT PYTS-MAIN CONTRACTOR,THIRD PARTY SUPPLIER,Invoice,BACS,None,11-Dec-19,2019,10,INV-0040,P29018,SHALFORD SWIFT TOWER P92348,1233,CONTRACT PYTS-MAIN CONTRACTOR
GUILDFORD BOROUGH COUNCIL,COMMUNITY DEVELOPMENT,WILLIAMS BROTHERS NEWSAGENTS,8624,07-Jan-20,2095925,10.31,0,BOOKS AND PUBLICATIONS,OTHER RETAILERS,Invoice,BACS,None,09-Dec-19,2019,10,024044,F5711,COMMUNITY SAFETY TEAM,D3411,BOOKS AND PUBLICATIONS
GUILDFORD BOROUGH COUNCIL,NEW BUILD,WILLIAMS LAND SURVEYING LTD,95786,07-Jan-20,2096650,1250,0,CONSULTANTS FEES - PROJECTS,SURVEYORS AND INSPECTORS,Invoice,BACS,None,29-Nov-19,2019,10,WLS.ERMC.15D,N30021,PIPELINE PROJECT 1,1221,CONSULTANTS FEES - PROJECTS
GUILDFORD BOROUGH COUNCIL,NEW BUILD,WILLIAMS LAND SURVEYING LTD,95786,07-Jan-20,2096616,550,0,CONSULTANTS FEES - PROJECTS,SURVEYORS AND INSPECTORS,Invoice,BACS,None,25-Nov-19,2019,10,WLS.ERMC.15B,N30021,PIPELINE PROJECT 1,1221,CONSULTANTS FEES - PROJECTS
GUILDFORD BOROUGH COUNCIL,NEW BUILD,WILLIAMS LAND SURVEYING LTD,95786,07-Jan-20,2096614,325,0,CONSULTANTS FEES - PROJECTS,SURVEYORS AND INSPECTORS,Invoice,BACS,None,29-Nov-19,2019,10,WLS.ERMC.15B2,N30021,PIPELINE PROJECT 1,1221,CONSULTANTS FEES - PROJECTS
GUILDFORD BOROUGH COUNCIL,NEW BUILD,WILLIAMS LAND SURVEYING LTD,95786,07-Jan-20,2096613,750,0,CONSULTANTS FEES - PROJECTS,SURVEYORS AND INSPECTORS,Invoice,BACS,None,29-Nov-19,2019,10,WLS.ERMC.15C,N30021,PIPELINE PROJECT 1,1221,CONSULTANTS FEES - PROJECTS
GUILDFORD BOROUGH COUNCIL,NEW BUILD,WILLIAMS LAND SURVEYING LTD,95786,07-Jan-20,2096615,375,0,CONSULTANTS FEES - PROJECTS,SURVEYORS AND INSPECTORS,Invoice,BACS,None,25-Nov-19,2019,10,WLS.ERMC.15B1,N30021,PIPELINE PROJECT 1,1221,CONSULTANTS FEES - PROJECTS
GUILDFORD BOROUGH COUNCIL,GUILDFORD HOUSE,WILLIAMS BROTHERS NEWSAGENTS,8624,07-Jan-20,2095925,10.31,0,BOOKS AND PUBLICATIONS,OTHER RETAILERS,Invoice,BACS,None,09-Dec-19,2019,10,024044,A4511,GUILDFORD HOUSE ADMINISTRATION,D3411,BOOKS AND PUBLICATIONS
GUILDFORD BOROUGH COUNCIL,BUSINESS & TOURISM,WILLIAMS BROTHERS NEWSAGENTS,8624,07-Jan-20,2095925,10.31,0,BOOKS AND PUBLICATIONS,OTHER RETAILERS,Invoice,BACS,None,09-Dec-19,2019,10,024044,F5547,BUSINESS,D3411,BOOKS AND PUBLICATIONS
GUILDFORD BOROUGH COUNCIL,CORP SERVICES,WILLIAMS BROTHERS NEWSAGENTS,8624,07-Jan-20,2095925,73.46,0,BOOKS AND PUBLICATIONS,OTHER RETAILERS,Invoice,BACS,None,09-Dec-19,2019,10,024044,F1111,CORPORATE SERVICES,D3411,BOOKS AND PUBLICATIONS
GUILDFORD BOROUGH COUNCIL,HOMELESSNESS,WHISTL UK LIMITED,68868,16-Jan-20,2099572,1.39,0,POSTAGE FROM FRANKING,POSTAL AND COURIER SERVICE PROVIDERS,Invoice,BACS,None,16-Dec-19,2019,10,AS19004428,C3311,HOMELESSNESS ADMINISTRATION,D5467,POSTAGE FROM FRANKING
GUILDFORD BOROUGH COUNCIL,DEVELOPMENT CONTROL,WILLIAMS BROTHERS NEWSAGENTS,8624,14-Jan-20,2098295,8.1,0,BOOKS AND PUBLICATIONS,OTHER RETAILERS,Invoice,BACS,None,31-Dec-19,2019,10,024387,D5100,DEVELOPMENT CONTROL - FEE EARN,D3411,BOOKS AND PUBLICATIONS
GUILDFORD BOROUGH COUNCIL,PUBLIC RELATIONS,WILLIAMS BROTHERS NEWSAGENTS,8624,07-Jan-20,2095925,31.06,0,BOOKS AND PUBLICATIONS,OTHER RETAILERS,Invoice,BACS,None,09-Dec-19,2019,10,024044,F5551,PUBLIC RELATIONS & MARKETING,D3411,BOOKS AND PUBLICATIONS
GUILDFORD BOROUGH COUNCIL,CIVIC EXPENSES,WILLIAMS BROTHERS NEWSAGENTS,8624,14-Jan-20,2098295,6.4,0,BOOKS AND PUBLICATIONS,OTHER RETAILERS,Invoice,BACS,None,31-Dec-19,2019,10,024387,F2131,CIVIC EXPENSES,D3411,BOOKS AND PUBLICATIONS
GUILDFORD BOROUGH COUNCIL,PARKS & COUNTRYSIDE,WILLIAMS BROTHERS NEWSAGENTS,8624,07-Jan-20,2095925,10.31,0,BOOKS AND PUBLICATIONS,OTHER RETAILERS,Invoice,BACS,None,09-Dec-19,2019,10,024044,A1900,PARKS MANAGEMENT AND ADMIN,D3411,BOOKS AND PUBLICATIONS
GUILDFORD BOROUGH COUNCIL,GUILDFORD HOUSE,WILLIAMS BROTHERS NEWSAGENTS,8624,14-Jan-20,2098295,8.1,0,BOOKS AND PUBLICATIONS,OTHER RETAILERS,Invoice,BACS,None,31-Dec-19,2019,10,024387,A4511,GUILDFORD HOUSE ADMINISTRATION,D3411,BOOKS AND PUBLICATIONS
GUILDFORD BOROUGH COUNCIL,BUSINESS & TOURISM,WILLIAMS BROTHERS NEWSAGENTS,8624,14-Jan-20,2098295,6.4,0,BOOKS AND PUBLICATIONS,OTHER RETAILERS,Invoice,BACS,None,31-Dec-19,2019,10,024387,F5547,BUSINESS,D3411,BOOKS AND PUBLICATIONS
GUILDFORD BOROUGH COUNCIL,TAXI LICENSING,ZOO SIGNS & DESIGN LIMITED,87416,16-Jan-20,2098917,128.52,0,PLATES AND DOOR SIGNS,"SIGN WRITING, BANNER AND FLAG SUPPLIERS",Invoice,BACS,None,10-Jan-20,2019,10,I9801,H1108,HC & PC VEHICLES,D1447,PLATES AND DOOR SIGNS
GUILDFORD BOROUGH COUNCIL,CORP SERVICES,WILLIAMS BROTHERS NEWSAGENTS,8624,14-Jan-20,2098295,51.36,0,BOOKS AND PUBLICATIONS,OTHER RETAILERS,Invoice,BACS,None,31-Dec-19,2019,10,024387,F1111,CORPORATE SERVICES,D3411,BOOKS AND PUBLICATIONS
GUILDFORD BOROUGH COUNCIL,ELECTORAL REGISTRATION,WHISTL UK LIMITED,68868,14-Jan-20,2098791,0,0,POSTAGE FROM FRANKING,POSTAL AND COURIER SERVICE PROVIDERS,Invoice,BACS,None,02-Dec-19,2019,10,AS19004251,F2512,INDIVID ELECTORAL REGISTRATION,D5467,POSTAGE FROM FRANKING
GUILDFORD BOROUGH COUNCIL,CREMATORIUM,WHISTL UK LIMITED,68868,14-Jan-20,2098800,2.61,0,POSTAGE FROM FRANKING,POSTAL AND COURIER SERVICE PROVIDERS,Invoice,BACS,None,23-Dec-19,2019,10,PS19006043,A1500,GUILDFORD CREMATORIUM,D5467,POSTAGE FROM FRANKING
GUILDFORD BOROUGH COUNCIL,PAYMENTS AND PURCHASING,WHISTL UK LIMITED,68868,14-Jan-20,2098792,2.84,0,POSTAGE FROM FRANKING,POSTAL AND COURIER SERVICE PROVIDERS,Invoice,BACS,None,09-Dec-19,2019,10,PS19005824,G3598,PURCHASING,D5467,POSTAGE FROM FRANKING
GUILDFORD BOROUGH COUNCIL,CLIMATE CHANGE,WHISTL UK LIMITED,68868,14-Jan-20,2098792,1.94,0,POSTAGE FROM FRANKING,POSTAL AND COURIER SERVICE PROVIDERS,Invoice,BACS,None,09-Dec-19,2019,10,PS19005824,G4586,ENERGY SERVICES,D5467,POSTAGE FROM FRANKING
GUILDFORD BOROUGH COUNCIL,CLIMATE CHANGE,WHISTL UK LIMITED,68868,14-Jan-20,2098792,0.31,0,POSTAGE FROM FRANKING,POSTAL AND COURIER SERVICE PROVIDERS,Invoice,BACS,None,09-Dec-19,2019,10,PS19005824,B3911,CLIMATE CHANGE STRATEGY,D5467,POSTAGE FROM FRANKING
GUILDFORD BOROUGH COUNCIL,CREMATORIUM,WHISTL UK LIMITED,68868,14-Jan-20,2098792,2.05,0,POSTAGE FROM FRANKING,POSTAL AND COURIER SERVICE PROVIDERS,Invoice,BACS,None,09-Dec-19,2019,10,PS19005824,A1500,GUILDFORD CREMATORIUM,D5467,POSTAGE FROM FRANKING
GUILDFORD BOROUGH COUNCIL,GUILDFORD HOUSE,WHISTL UK LIMITED,68868,14-Jan-20,2098792,1.52,0,POSTAGE FROM FRANKING,POSTAL AND COURIER SERVICE PROVIDERS,Invoice,BACS,None,09-Dec-19,2019,10,PS19005824,A4511,GUILDFORD HOUSE ADMINISTRATION,D5467,POSTAGE FROM FRANKING
GUILDFORD BOROUGH COUNCIL,BUSINESS & TOURISM,WHISTL UK LIMITED,68868,16-Jan-20,2099572,1.97,0,POSTAGE FROM FRANKING,POSTAL AND COURIER SERVICE PROVIDERS,Invoice,BACS,None,16-Dec-19,2019,10,AS19004428,F5545,TOURISM,D5467,POSTAGE FROM FRANKING
GUILDFORD BOROUGH COUNCIL,RESPONSIVE & PLANNED MAINTENAN,WHISTL UK LIMITED,68868,14-Jan-20,2098792,33.8,0,POSTAGE FROM FRANKING,POSTAL AND COURIER SERVICE PROVIDERS,Invoice,BACS,None,09-Dec-19,2019,10,PS19005824,M5111,REPAIRS-ADMIN (BHS),D5467,POSTAGE FROM FRANKING
GUILDFORD BOROUGH COUNCIL,LEISURE PLAY DEVELOPMENT,WHISTL UK LIMITED,68868,14-Jan-20,2098800,1.87,0,POSTAGE FROM FRANKING,POSTAL AND COURIER SERVICE PROVIDERS,Invoice,BACS,None,23-Dec-19,2019,10,PS19006043,A7211,PLAY DEVELOPMENT,D5467,POSTAGE FROM FRANKING
GUILDFORD BOROUGH COUNCIL,BUILDING CONTROL SUMMARY,WHISTL UK LIMITED,68868,14-Jan-20,2098791,0,0,POSTAGE FROM FRANKING,POSTAL AND COURIER SERVICE PROVIDERS,Invoice,BACS,None,02-Dec-19,2019,10,AS19004251,D5800,BUILDING CONTROL - NON FEE,D5467,POSTAGE FROM FRANKING
GUILDFORD BOROUGH COUNCIL,LEISURE GRANTS,WHISTL UK LIMITED,68868,14-Jan-20,2098791,0.8,0,POSTAGE FROM FRANKING,POSTAL AND COURIER SERVICE PROVIDERS,Invoice,BACS,None,02-Dec-19,2019,10,AS19004251,A4111,GRANTS ADMINISTRATION,D5467,POSTAGE FROM FRANKING
GUILDFORD BOROUGH COUNCIL,GUILDFORD HOUSE,WHISTL UK LIMITED,68868,14-Jan-20,2098799,0.11,0,POSTAGE FROM FRANKING,POSTAL AND COURIER SERVICE PROVIDERS,Invoice,BACS,None,23-Dec-19,2019,10,AS19004516,A4511,GUILDFORD HOUSE ADMINISTRATION,D5467,POSTAGE FROM FRANKING
GUILDFORD BOROUGH COUNCIL,CLIMATE CHANGE,WHISTL UK LIMITED,68868,14-Jan-20,2098799,0.1,0,POSTAGE FROM FRANKING,POSTAL AND COURIER SERVICE PROVIDERS,Invoice,BACS,None,23-Dec-19,2019,10,AS19004516,B3911,CLIMATE CHANGE STRATEGY,D5467,POSTAGE FROM FRANKING
GUILDFORD BOROUGH COUNCIL,GARAGE MANAGEMENT,WHISTL UK LIMITED,68868,14-Jan-20,2098786,14.6,0,POSTAGE FROM FRANKING,POSTAL AND COURIER SERVICE PROVIDERS,Invoice,BACS,None,02-Dec-19,2019,10,PS19005721,M1172,GARAGE MANAGEMENT (BHS),D5467,POSTAGE FROM FRANKING
GUILDFORD BOROUGH COUNCIL,ACCOUNTANCY,WHISTL UK LIMITED,68868,14-Jan-20,2098786,4.57,0,POSTAGE FROM FRANKING,POSTAL AND COURIER SERVICE PROVIDERS,Invoice,BACS,None,02-Dec-19,2019,10,PS19005721,G3565,ACCOUNTANCY SERVICES,D5467,POSTAGE FROM FRANKING
GUILDFORD BOROUGH COUNCIL,VOID PROPERTY MANAGEMENT,WHISTL UK LIMITED,68868,14-Jan-20,2098786,2.88,0,POSTAGE FROM FRANKING,POSTAL AND COURIER SERVICE PROVIDERS,Invoice,BACS,None,02-Dec-19,2019,10,PS19005721,M1141,VOID PROPERTY MGMT (SHS),D5467,POSTAGE FROM FRANKING
GUILDFORD BOROUGH COUNCIL,DEVELOPMENT CONTROL,WHISTL UK LIMITED,68868,14-Jan-20,2098792,58.53,0,POSTAGE FROM FRANKING,POSTAL AND COURIER SERVICE PROVIDERS,Invoice,BACS,None,09-Dec-19,2019,10,PS19005824,D5100,DEVELOPMENT CONTROL - FEE EARN,D5467,POSTAGE FROM FRANKING
GUILDFORD BOROUGH COUNCIL,GUILDFORD HOUSE,WHISTL UK LIMITED,68868,14-Jan-20,2098793,0,0,POSTAGE FROM FRANKING,POSTAL AND COURIER SERVICE PROVIDERS,Invoice,BACS,None,09-Dec-19,2019,10,AS19004334,A4511,GUILDFORD HOUSE ADMINISTRATION,D5467,POSTAGE FROM FRANKING
GUILDFORD BOROUGH COUNCIL,OPERATIONAL SERVS OVERHEAD AC,WILLIAMS BROTHERS NEWSAGENTS,8624,07-Jan-20,2095925,10.31,0,BOOKS AND PUBLICATIONS,OTHER RETAILERS,Invoice,BACS,None,09-Dec-19,2019,10,024044,K1519,OPERATIONAL SERVS OVERHEAD AC,D3411,BOOKS AND PUBLICATIONS
GUILDFORD BOROUGH COUNCIL,AFFORDABLE HOUSING DEVELOPMENT,WHISTL UK LIMITED,68868,16-Jan-20,2099572,0.46,0,POSTAGE FROM FRANKING,POSTAL AND COURIER SERVICE PROVIDERS,Invoice,BACS,None,16-Dec-19,2019,10,AS19004428,C4111,AFFORDABLE HOUSING DEVELOPMENT,D5467,POSTAGE FROM FRANKING
GUILDFORD BOROUGH COUNCIL,LEISURE ART DEVELOPMENT,WHISTL UK LIMITED,68868,16-Jan-20,2099572,1.05,0,POSTAGE FROM FRANKING,POSTAL AND COURIER SERVICE PROVIDERS,Invoice,BACS,None,16-Dec-19,2019,10,AS19004428,A3511,ARTS DEVELOPMENT,D5467,POSTAGE FROM FRANKING
GUILDFORD BOROUGH COUNCIL,LEISURE PLAY DEVELOPMENT,WHISTL UK LIMITED,68868,16-Jan-20,2099572,1.05,0,POSTAGE FROM FRANKING,POSTAL AND COURIER SERVICE PROVIDERS,Invoice,BACS,None,16-Dec-19,2019,10,AS19004428,A7211,PLAY DEVELOPMENT,D5467,POSTAGE FROM FRANKING
GUILDFORD BOROUGH COUNCIL,MUSEUM,WHISTL UK LIMITED,68868,14-Jan-20,2098753,1.53,0,POSTAGE FROM FRANKING,POSTAL AND COURIER SERVICE PROVIDERS,Invoice,BACS,None,25-Nov-19,2019,10,AS19004152,A5511,MUSEUM,D5467,POSTAGE FROM FRANKING
GUILDFORD BOROUGH COUNCIL,LEISURE SPORT DEVELOPMENT,WHISTL UK LIMITED,68868,14-Jan-20,2098753,0.73,0,POSTAGE FROM FRANKING,POSTAL AND COURIER SERVICE PROVIDERS,Invoice,BACS,None,25-Nov-19,2019,10,AS19004152,A7311,SPORTS DEVELOPMENT OFFICER,D5467,POSTAGE FROM FRANKING
GUILDFORD BOROUGH COUNCIL,GUILDFORD HOUSE,WHISTL UK LIMITED,68868,14-Jan-20,2098753,1.53,0,POSTAGE FROM FRANKING,POSTAL AND COURIER SERVICE PROVIDERS,Invoice,BACS,None,25-Nov-19,2019,10,AS19004152,A4511,GUILDFORD HOUSE ADMINISTRATION,D5467,POSTAGE FROM FRANKING
GUILDFORD BOROUGH COUNCIL,ENVIRONMENTAL CONTROL,WHISTL UK LIMITED,68868,14-Jan-20,2098800,2.6,0,POSTAGE FROM FRANKING,POSTAL AND COURIER SERVICE PROVIDERS,Invoice,BACS,None,23-Dec-19,2019,10,PS19006043,C1113,ENVIRONMENTAL CONTROL,D5467,POSTAGE FROM FRANKING
GUILDFORD BOROUGH COUNCIL,BUSINESS IMPROVEMENT,WHISTL UK LIMITED,68868,14-Jan-20,2098793,0.25,0,POSTAGE FROM FRANKING,POSTAL AND COURIER SERVICE PROVIDERS,Invoice,BACS,None,09-Dec-19,2019,10,AS19004334,G3530,BUSINESS IMPROVEMENT,D5467,POSTAGE FROM FRANKING
GUILDFORD BOROUGH COUNCIL,PAYMENTS AND PURCHASING,WHISTL UK LIMITED,68868,14-Jan-20,2098800,6.6,0,POSTAGE FROM FRANKING,POSTAL AND COURIER SERVICE PROVIDERS,Invoice,BACS,None,23-Dec-19,2019,10,PS19006043,G3596,CREDITORS,D5467,POSTAGE FROM FRANKING
GUILDFORD BOROUGH COUNCIL,MUSEUM,WHISTL UK LIMITED,68868,14-Jan-20,2098793,0,0,POSTAGE FROM FRANKING,POSTAL AND COURIER SERVICE PROVIDERS,Invoice,BACS,None,09-Dec-19,2019,10,AS19004334,A5511,MUSEUM,D5467,POSTAGE FROM FRANKING
GUILDFORD BOROUGH COUNCIL,ELECTORAL REGISTRATION,WHISTL UK LIMITED,68868,14-Jan-20,2098793,0,0,POSTAGE FROM FRANKING,POSTAL AND COURIER SERVICE PROVIDERS,Invoice,BACS,None,09-Dec-19,2019,10,AS19004334,F2512,INDIVID ELECTORAL REGISTRATION,D5467,POSTAGE FROM FRANKING
GUILDFORD BOROUGH COUNCIL,DEVELOPMENT CONTROL,WHISTL UK LIMITED,68868,14-Jan-20,2098793,0,0,POSTAGE FROM FRANKING,POSTAL AND COURIER SERVICE PROVIDERS,Invoice,BACS,None,09-Dec-19,2019,10,AS19004334,D5100,DEVELOPMENT CONTROL - FEE EARN,D5467,POSTAGE FROM FRANKING
GUILDFORD BOROUGH COUNCIL,RESPONSIVE & PLANNED MAINTENAN,WHISTL UK LIMITED,68868,14-Jan-20,2098793,1.45,0,POSTAGE FROM FRANKING,POSTAL AND COURIER SERVICE PROVIDERS,Invoice,BACS,None,09-Dec-19,2019,10,AS19004334,M5111,REPAIRS-ADMIN (BHS),D5467,POSTAGE FROM FRANKING
GUILDFORD BOROUGH COUNCIL,TENANT PARTICIPATION,WHISTL UK LIMITED,68868,14-Jan-20,2098793,0.46,0,POSTAGE FROM FRANKING,POSTAL AND COURIER SERVICE PROVIDERS,Invoice,BACS,None,09-Dec-19,2019,10,AS19004334,M1152,TENANT PARTICIPATION (BHS),D5467,POSTAGE FROM FRANKING
GUILDFORD BOROUGH COUNCIL,TENANT PARTICIPATION,WHISTL UK LIMITED,68868,14-Jan-20,2098800,19.01,0,POSTAGE FROM FRANKING,POSTAL AND COURIER SERVICE PROVIDERS,Invoice,BACS,None,23-Dec-19,2019,10,PS19006043,M1152,TENANT PARTICIPATION (BHS),D5467,POSTAGE FROM FRANKING
GUILDFORD BOROUGH COUNCIL,TENANT PARTICIPATION,WHISTL UK LIMITED,68868,16-Jan-20,2099572,0.7,0,POSTAGE FROM FRANKING,POSTAL AND COURIER SERVICE PROVIDERS,Invoice,BACS,None,16-Dec-19,2019,10,AS19004428,M1152,TENANT PARTICIPATION (BHS),D5467,POSTAGE FROM FRANKING
GUILDFORD BOROUGH COUNCIL,FOOD AND SAFETY SERVICES,WHISTL UK LIMITED,68868,14-Jan-20,2098793,1.28,0,POSTAGE FROM FRANKING,POSTAL AND COURIER SERVICE PROVIDERS,Invoice,BACS,None,09-Dec-19,2019,10,AS19004334,C1111,FOOD AND SAFETY SERVICES,D5467,POSTAGE FROM FRANKING
GUILDFORD BOROUGH COUNCIL,EXECUTIVE - MISCELLANEOUS,WYG MANAGEMENT SERVICES LIMITED,91070,07-Jan-20,2092632,3581,0,CONSULTANTS FEES - PROJECTS,OTHER CONSTRUCTION CONSULTANTS,Invoice,BACS,None,22-Nov-19,2019,10,60269,P79025,GUILDFORD PK REDEVELOPMENT,1221,CONSULTANTS FEES - PROJECTS
GUILDFORD BOROUGH COUNCIL,OTHER ST CREDITORS,WOKING BOROUGH COUNCIL,8641,16-Jan-20,2099560,110,0,CURRENT YEARS EXPENDITURE,LOCAL GOVERNMENT [UK ONLY],Invoice,BACS,None,14-Jan-20,2019,10,CHARITY BALL,L02133,MAYORS ALLOWANCE,2239,CURRENT YEARS EXPENDITURE
GUILDFORD BOROUGH COUNCIL,LEGAL SERVICES,WOMBLE BOND DICKINSON (UK) LLP,94553,07-Jan-20,2093581,1438.65,0,LEGAL EXPENSES,SOLICITORS [UK ONLY],Invoice,BACS,None,28-Nov-19,2019,10,3442312,G4525,LEGAL SERVICES,D4457,LEGAL EXPENSES
GUILDFORD BOROUGH COUNCIL,LEGAL SERVICES,WOMBLE BOND DICKINSON (UK) LLP,94553,21-Jan-20,2097034,3000,0,LEGAL EXPENSES,SOLICITORS [UK ONLY],Invoice,BACS,None,20-Dec-19,2019,10,3448169,G4525,LEGAL SERVICES,D4457,LEGAL EXPENSES
GUILDFORD BOROUGH COUNCIL,GOVERNMENT ST DEBTORS,WORPLESDON MEMORIAL TRUSTEES,19118,09-Jan-20,2097770,150,0,POLLING STATION COSTS,CHARITIES AND VOLUNTARY ORGANISATIONS,Invoice,BACS,None,20-Dec-19,2019,10,HALL HIRE,J02002,PARLIAMENTARY ELECTIONS,2445,POLLING STATION COSTS
GUILDFORD BOROUGH COUNCIL,GOVERNMENT ST DEBTORS,WORPLESDON PCC,41024,09-Jan-20,2097768,145,0,POLLING STATION COSTS,LOCAL GOVERNMENT [UK ONLY],Invoice,BACS,None,20-Dec-19,2019,10,HALL HIRE,J02002,PARLIAMENTARY ELECTIONS,2445,POLLING STATION COSTS
GUILDFORD BOROUGH COUNCIL,EXECUTIVE - MISCELLANEOUS,WYG ENVIRONMENT PLANNING TRANSPORT LTD,22494,14-Jan-20,2096403,3943,0,CONSULTANTS FEES - PROJECTS,OTHER CONSTRUCTION CONSULTANTS,Invoice,BACS,None,16-Dec-19,2019,10,872016,P79032,SMC(WEST) PHASE 1,1221,CONSULTANTS FEES - PROJECTS
GUILDFORD BOROUGH COUNCIL,EXECUTIVE - MISCELLANEOUS,WYG ENVIRONMENT PLANNING TRANSPORT LTD,22494,14-Jan-20,2096402,5087.43,0,CONSULTANTS FEES - PROJECTS,OTHER CONSTRUCTION CONSULTANTS,Invoice,BACS,None,16-Dec-19,2019,10,872017,P79032,SMC(WEST) PHASE 1,1221,CONSULTANTS FEES - PROJECTS
GUILDFORD BOROUGH COUNCIL,INDUSTRIAL ESTATES,WILSON MASON LLP,93889,14-Jan-20,2097642,11887.5,0,CONSULTANTS FEES - PROJECTS,THIRD PARTY SUPPLIER,Invoice,BACS,None,01-Dec-19,2019,10,12441,P72037,MIDLETON IND EST REDEVELOP,1221,CONSULTANTS FEES - PROJECTS
GUILDFORD BOROUGH COUNCIL,NEW BUILD,WYG MANAGEMENT SERVICES LIMITED,91070,07-Jan-20,2092632,3581,0,CONSULTANTS FEES - PROJECTS,OTHER CONSTRUCTION CONSULTANTS,Invoice,BACS,None,22-Nov-19,2019,10,60269,N30011,GUILDFORD PARK,1221,CONSULTANTS FEES - PROJECTS
GUILDFORD BOROUGH COUNCIL,COMMUNITY DEVELOPMENT,WILLIAMS BROTHERS NEWSAGENTS,8624,14-Jan-20,2098295,8.1,0,BOOKS AND PUBLICATIONS,OTHER RETAILERS,Invoice,BACS,None,31-Dec-19,2019,10,024387,F5711,COMMUNITY SAFETY TEAM,D3411,BOOKS AND PUBLICATIONS
GUILDFORD BOROUGH COUNCIL,HOUSING FOR PRIVATE SALE,WYG MANAGEMENT SERVICES LIMITED,91070,07-Jan-20,2092633,7200.16,0,CONSULTANTS FEES - PROJECTS,OTHER CONSTRUCTION CONSULTANTS,Invoice,BACS,None,22-Nov-19,2019,10,60268,P68001,GUILDFORD PARK PRIVATE HSG,1221,CONSULTANTS FEES - PROJECTS
GUILDFORD BOROUGH COUNCIL,HOUSING FOR PRIVATE SALE,WYG MANAGEMENT SERVICES LIMITED,91070,07-Jan-20,2092632,3581,0,CONSULTANTS FEES - PROJECTS,OTHER CONSTRUCTION CONSULTANTS,Invoice,BACS,None,22-Nov-19,2019,10,60269,P68001,GUILDFORD PARK PRIVATE HSG,1221,CONSULTANTS FEES - PROJECTS
GUILDFORD BOROUGH COUNCIL,WOKING ROAD DEPOT,WINNER PLANT LTD,96787,07-Jan-20,2096310,125,0,EQUIP. & TOOLS HIRE,PLANT AND CONSTRUCTION EQUIPMENT SUPPLIERS,Invoice,BACS,None,13-Dec-19,2019,10,GA204575,B4452,WOKING ROAD DEPOT,D1430,EQUIP. & TOOLS HIRE
GUILDFORD BOROUGH COUNCIL,EXECUTIVE - MISCELLANEOUS,WYG MANAGEMENT SERVICES LIMITED,91070,07-Jan-20,2092631,19295,0,CONSULTANTS FEES - PROJECTS,OTHER CONSTRUCTION CONSULTANTS,Invoice,BACS,None,22-Nov-19,2019,10,60267,P79025,GUILDFORD PK REDEVELOPMENT,1221,CONSULTANTS FEES - PROJECTS
GUILDFORD BOROUGH COUNCIL,NEW BUILD,WYG MANAGEMENT SERVICES LIMITED,91070,07-Jan-20,2092633,7200.17,0,CONSULTANTS FEES - PROJECTS,OTHER CONSTRUCTION CONSULTANTS,Invoice,BACS,None,22-Nov-19,2019,10,60268,N30011,GUILDFORD PARK,1221,CONSULTANTS FEES - PROJECTS
GUILDFORD BOROUGH COUNCIL,OPERATIONS TECHNICAL SERVICES,XEROX (UK) LIMITED,79663,12-Mar-20,2092911,-830,0,INFRASTRUCTURE MAINTENANCE,OTHER OFFICE EQUIPMENT SUPPLIERS,Credit Note,,None,26-Nov-19,2019,10,900193523,G3548,ICT TECHNICAL & INFRASTRUCTURE,D5432,INFRASTRUCTURE MAINTENANCE
GUILDFORD BOROUGH COUNCIL,EXECUTIVE - MISCELLANEOUS,XPRESS MESSENGER GUILDFORD LLP,57664,30-Jan-20,2096290,51.19,0,MISCELLANEOUS EXPENSES,THIRD PARTY SUPPLIER,Invoice,BACS,None,15-Dec-19,2019,10,10043473,P79032,SMC(WEST) PHASE 1,1444,MISCELLANEOUS EXPENSES
GUILDFORD BOROUGH COUNCIL,BUSINESS & TOURISM,YANDELL PUBLISHING LTD,8693,09-Jan-20,2096825,350,0,GENERAL TOURISM MARKETING,OTHER INFORMATION SERVICE PROVIDERS,Invoice,BACS,None,18-Dec-19,2019,10,WG43960,F5545,TOURISM,D9403,GENERAL TOURISM MARKETING
GUILDFORD BOROUGH COUNCIL,BUSINESS & TOURISM,YANDELL PUBLISHING LTD,8693,09-Jan-20,2096826,250,0,GENERAL TOURISM MARKETING,OTHER INFORMATION SERVICE PROVIDERS,Invoice,BACS,None,18-Dec-19,2019,10,WG43961,F5545,TOURISM,D9403,GENERAL TOURISM MARKETING
GUILDFORD BOROUGH COUNCIL,BUILDING MAINTENANCE,YOU CHOOSE RECYCLING LTD,76087,07-Jan-20,2092106,440,0,CONTAMINATED WASTE REMOVAL,RECYCLING SERVICE PROVIDERS,Invoice,BACS,None,19-Nov-19,2019,10,2411,K1515,BUILDING MAINTENANCE,D4517,CONTAMINATED WASTE REMOVAL
GUILDFORD BOROUGH COUNCIL,PROJECT ASPIRE,YOUTHBOX,94672,16-Jan-20,2095975,2960,0,GENERAL GRANTS,OUTDOOR ACTIVITY PROVIDERS,Invoice,BACS,None,01-Aug-19,2019,10,AUG2019,F1126,PROJECT ASPIRE,D7441,GENERAL GRANTS
GUILDFORD BOROUGH COUNCIL,BUSINESS & TOURISM,ZEBRAHOUSE DESIGN AND PRINT LTD,98345,09-Jan-20,2096792,880,0,VENUES GUIDES,,Invoice,BACS,None,13-Dec-19,2019,10,10653,F5545,TOURISM,D9464,VENUES GUIDES
GUILDFORD BOROUGH COUNCIL,WOKING ROAD DEPOT,ZEPBROOK LTD,92770,16-Jan-20,2098396,15.12,0,FOOD PURCHASES,OTHER FOOD SUPPLIERS,Invoice,BACS,None,17-Dec-19,2019,10,SIN417015,B4452,WOKING ROAD DEPOT,D1832,FOOD PURCHASES
GUILDFORD BOROUGH COUNCIL,WOKING ROAD DEPOT,ZEPBROOK LTD,92770,16-Jan-20,2098396,78.51,0,FOOD PURCHASES,OTHER FOOD SUPPLIERS,Invoice,BACS,None,17-Dec-19,2019,10,SIN417015,B4452,WOKING ROAD DEPOT,D1832,FOOD PURCHASES
GUILDFORD BOROUGH COUNCIL,WOKING ROAD DEPOT,ZEPBROOK LTD,92770,07-Jan-20,2094933,479.58,0,FOOD PURCHASES,OTHER FOOD SUPPLIERS,Invoice,BACS,None,17-Oct-19,2019,10,SIN411276,B4452,WOKING ROAD DEPOT,D1832,FOOD PURCHASES
GUILDFORD BOROUGH COUNCIL,WOKING ROAD DEPOT,ZEPBROOK LTD,92770,16-Jan-20,2098395,8.94,0,FOOD PURCHASES,OTHER FOOD SUPPLIERS,Invoice,BACS,None,17-Dec-19,2019,10,SIN417025,B4452,WOKING ROAD DEPOT,D1832,FOOD PURCHASES
GUILDFORD BOROUGH COUNCIL,WOKING ROAD DEPOT,ZEPBROOK LTD,92770,07-Jan-20,2094933,49.54,0,FOOD PURCHASES,OTHER FOOD SUPPLIERS,Invoice,BACS,None,17-Oct-19,2019,10,SIN411276,B4452,WOKING ROAD DEPOT,D1832,FOOD PURCHASES
GUILDFORD BOROUGH COUNCIL,EXECUTIVE - MISCELLANEOUS,WYG MANAGEMENT SERVICES LIMITED,91070,07-Jan-20,2092633,7200.17,0,CONSULTANTS FEES - PROJECTS,OTHER CONSTRUCTION CONSULTANTS,Invoice,BACS,None,22-Nov-19,2019,10,60268,P79025,GUILDFORD PK REDEVELOPMENT,1221,CONSULTANTS FEES - PROJECTS
GUILDFORD BOROUGH COUNCIL,WOKING ROAD DEPOT,WINNER PLANT LTD,96787,07-Jan-20,2096765,150,0,EQUIP. & TOOLS HIRE,PLANT AND CONSTRUCTION EQUIPMENT SUPPLIERS,Invoice,BACS,None,20-Dec-19,2019,10,GA204645,B4452,WOKING ROAD DEPOT,D1430,EQUIP. & TOOLS HIRE
GUILDFORD BOROUGH COUNCIL,WOKING ROAD DEPOT,WINNER PLANT LTD,96787,07-Jan-20,2097120,210,0,EQUIP. & TOOLS HIRE,PLANT AND CONSTRUCTION EQUIPMENT SUPPLIERS,Invoice,BACS,None,31-Dec-19,2019,10,GA204692,B4452,WOKING ROAD DEPOT,D1430,EQUIP. & TOOLS HIRE
GUILDFORD BOROUGH COUNCIL,WOKING ROAD DEPOT,WINNER PLANT LTD,96787,07-Jan-20,2088166,125,0,EQUIP. & TOOLS HIRE,PLANT AND CONSTRUCTION EQUIPMENT SUPPLIERS,Invoice,BACS,None,25-Oct-19,2019,10,GA203969,B4452,WOKING ROAD DEPOT,D1430,EQUIP. & TOOLS HIRE
GUILDFORD BOROUGH COUNCIL,WOKING ROAD DEPOT,WINNER PLANT LTD,96787,07-Jan-20,2095964,125,0,EQUIP. & TOOLS HIRE,PLANT AND CONSTRUCTION EQUIPMENT SUPPLIERS,Invoice,BACS,None,06-Dec-19,2019,10,GA204498,B4452,WOKING ROAD DEPOT,D1430,EQUIP. & TOOLS HIRE
GUILDFORD BOROUGH COUNCIL,PARKS & COUNTRYSIDE,WINCHESTER GARDEN MACHINERY LIMITED,8630,30-Jan-20,2100939,1398.6,0,FUEL & OIL,GARDENING EQUIPMENT SUPPLIERS,Invoice,BACS,None,13-Jan-20,2019,10,128480,A1209,PARKS AND OPEN SPACES GENERAL,C1321,FUEL & OIL
GUILDFORD BOROUGH COUNCIL,INDUSTRIAL ESTATES,INVICTA WATER LTD T/A WATER CHOICE,7584,14-Jan-20,2098388,47.69,0,WATER BY METER,MAINS WATER SUPPLIERS,Invoice,BACS,None,19-Sep-19,2019,10,22,B5331,LYSONS AVENUE SMALL UNITS,B4221,WATER BY METER
GUILDFORD BOROUGH COUNCIL,PARKS & COUNTRYSIDE,GUILDFORD LOCK AND SAFE LIMITED,2294,14-Jan-20,2096941,306.8,0,NEW / REPLACE EQUIP. & TOOLS;,KEYS AND LOCKSMITHS,Invoice,BACS,None,18-Dec-19,2019,10,33491,A1900,PARKS MANAGEMENT AND ADMIN,D1428,NEW / REPLACE EQUIP. & TOOLS;
GUILDFORD BOROUGH COUNCIL,ENVIRONMENTAL CONTROL,J GORRINGE & SON,2630,23-Jan-20,2096475,1790,0,WELFARE FUNERALS,FUNERAL SERVICE PROVIDERS,Invoice,BACS,None,16-Dec-19,2019,10,00393-18230987-,C1113,ENVIRONMENTAL CONTROL,D4530,WELFARE FUNERALS
GUILDFORD BOROUGH COUNCIL,VEHICLE MAINTENANCE,IVECO RETAIL LTD,76605,09-Jan-20,2094658,250,0,CONSUMABLES,TRUCK AND BUS DEALERS,Invoice,BACS,None,27-Nov-19,2019,10,01128373,K5551,VEHICLE MAINTENANCE,D1587,CONSUMABLES
GUILDFORD BOROUGH COUNCIL,PARKS & COUNTRYSIDE,ITS A STEEL,93098,09-Jan-20,2095561,454.65,0,GAMES & PLAYGROUND EQUIPMENT,SHEET METAL AND FABRICATION SUPPLIERS,Invoice,BACS,None,04-Dec-19,2019,10,AO2418,A1209,PARKS AND OPEN SPACES GENERAL,D1455,GAMES & PLAYGROUND EQUIPMENT
GUILDFORD BOROUGH COUNCIL,BUSINESS RATES,IRRV,13941,07-Jan-20,2095833,171,0,PROFESSIONAL SUBSCRIPTIONS,PROFESSIONAL ASSOCIATIONS,Invoice,BACS,None,03-Dec-19,2019,10,018705,F6151,BUSINESS RATES COLLECTION EXPS,A7136,PROFESSIONAL SUBSCRIPTIONS
GUILDFORD BOROUGH COUNCIL,BUSINESS RATES,IRRV,13941,07-Jan-20,2095830,171,0,PROFESSIONAL SUBSCRIPTIONS,PROFESSIONAL ASSOCIATIONS,Invoice,BACS,None,03-Dec-19,2019,10,021415,F6151,BUSINESS RATES COLLECTION EXPS,A7136,PROFESSIONAL SUBSCRIPTIONS
GUILDFORD BOROUGH COUNCIL,STOCKS,IRONMONGERY DIRECT LTD,17272,16-Jan-20,2095542,92.69,0,PURCHASES,DO-IT-YOURSELF (DIY) STORES,Invoice,BACS,None,26-Nov-19,2019,10,5091559,I06001,STORES,2591,PURCHASES
GUILDFORD BOROUGH COUNCIL,STOCKS,IRONMONGERY DIRECT LTD,17272,16-Jan-20,2096131,133.5,0,PURCHASES,DO-IT-YOURSELF (DIY) STORES,Invoice,BACS,None,03-Dec-19,2019,10,5104722,I06001,STORES,2591,PURCHASES
GUILDFORD BOROUGH COUNCIL,RESPONSIVE & PLANNED MAINTENAN,J T S CIVIL ENGINEERS LTD,64855,16-Jan-20,2099703,475,0,PLUMBING EXCL CENTRAL HEATING,SEWERAGE AND DRAINAGE SERVICE PROVIDERS,Invoice,BACS,None,16-Dec-19,2019,10,154797,M5113,REPAIRS-RESPONSIVE (BHS),B1371,PLUMBING EXCL CENTRAL HEATING
GUILDFORD BOROUGH COUNCIL,INDUSTRIAL ESTATES,IPM FACILITIES LIMITED,92709,09-Jan-20,2096766,106.66,0,GROUNDS - PAYMENT TO CONT'OR,PROPERTY LETTING AND ESTATE AGENTS,Invoice,BACS,None,20-Dec-19,2019,10,49016,B5332,LYSONS AVENUE ENT UNITS (RECH),B1277,GROUNDS - PAYMENT TO CONT'OR
GUILDFORD BOROUGH COUNCIL,TOURIST INFORMATION CENTRE,REDACTED,0,28-Jan-20,2101473,-4.8,0,BOX OFFICE COMMISSION,PERFORMING ARTISTS,Invoice,BACS,None,22-Jan-20,2019,10,REDACTED,F5541,TOURIST INFORMATION CENTRE,K5919,BOX OFFICE COMMISSION
GUILDFORD BOROUGH COUNCIL,PARKS & COUNTRYSIDE,GUILDFORD LOCK AND SAFE LIMITED,2294,14-Jan-20,2097650,298,0,PS-R&M REACTIVE REPAIRS,KEYS AND LOCKSMITHS,Invoice,BACS,None,06-Jan-20,2019,10,26815,A1320,GREEN ARK,B1627,PS-R&M REACTIVE REPAIRS
GUILDFORD BOROUGH COUNCIL,FLATS COMMUNAL SERVICES,GUILDFORD LOCK AND SAFE LIMITED,2294,23-Jan-20,2100946,136,0,R&M - DLO,KEYS AND LOCKSMITHS,Invoice,BACS,None,06-Dec-19,2019,10,26814,M2652,COPPICE CLOSE 9-16 (8),B1227,R&M - DLO
GUILDFORD BOROUGH COUNCIL,DAY SERVICES,GUILDFORD LOCK AND SAFE LIMITED,2294,16-Jan-20,2099691,494,0,GENERAL CARPENTRY,KEYS AND LOCKSMITHS,Invoice,BACS,None,27-Nov-19,2019,10,26762,C8189,CENTRAL HUB PARK BARN,B1344,GENERAL CARPENTRY
GUILDFORD BOROUGH COUNCIL,CREMATORIUM,GUILDFORD LOCK AND SAFE LIMITED,2294,21-Jan-20,2097652,29.4,0,SECURITY SERVICES,KEYS AND LOCKSMITHS,Invoice,BACS,None,06-Jan-20,2019,10,26817,A1500,GUILDFORD CREMATORIUM,D4477,SECURITY SERVICES
GUILDFORD BOROUGH COUNCIL,REFUSE AND RECYCLING,GUILDFORD LOCK AND SAFE LIMITED,2294,16-Jan-20,2097994,84.32,0,NEW / REPLACE EQUIP. & TOOLS;,KEYS AND LOCKSMITHS,Invoice,BACS,None,17-Dec-19,2019,10,33488,B7711,RECYCLING ADMINISTRATION,D1428,NEW / REPLACE EQUIP. & TOOLS;
GUILDFORD BOROUGH COUNCIL,PUBLIC CONVENIENCES,INTEGRATED WATER SERVICES LTD,87517,30-Jan-20,2102160,227.16,0,NEW / REPLACE EQUIP. & TOOLS;,WATER TREATMENT SERVICE PROVIDERS,Invoice,BACS,None,24-Dec-19,2019,10,CD200161911,K6561,WARD STREET PUB CON,D1428,NEW / REPLACE EQUIP. & TOOLS;
GUILDFORD BOROUGH COUNCIL,PUBLIC CONVENIENCES,GUILDFORD LOCK AND SAFE LIMITED,2294,30-Jan-20,2100798,13.8,0,PS-R&M REACTIVE REPAIRS,KEYS AND LOCKSMITHS,Invoice,BACS,None,21-Jan-20,2019,10,33670,K6561,WARD STREET PUB CON,B1627,PS-R&M REACTIVE REPAIRS
GUILDFORD BOROUGH COUNCIL,ROADS & FOOTPATHS,KEITH WEBBER BUILDERS,2839,07-Jan-20,2096429,480,0,CONTRACT PYTS-MAIN CONTRACTOR,GENERAL BUILDERS,Invoice,BACS,None,17-Dec-19,2019,10,GBC3713,P51053,BRIDGES - GENERAL,1233,CONTRACT PYTS-MAIN CONTRACTOR
GUILDFORD BOROUGH COUNCIL,INDUSTRIAL ESTATES,IPM FACILITIES LIMITED,92709,23-Jan-20,2100762,106.66,0,GROUNDS - PAYMENT TO CONT'OR,PROPERTY LETTING AND ESTATE AGENTS,Invoice,BACS,None,20-Jan-20,2019,10,49623,B5332,LYSONS AVENUE ENT UNITS (RECH),B1277,GROUNDS - PAYMENT TO CONT'OR
GUILDFORD BOROUGH COUNCIL,TOURIST INFORMATION CENTRE,JA JANAWAY ESQ & MRS SM JANAWAY,554,16-Jan-20,2082341,89.25,0,PURCHASES FOR RESALE,,Invoice,BACS,None,23-Sep-19,2019,10,008650,F5541,TOURIST INFORMATION CENTRE,D1579,PURCHASES FOR RESALE
GUILDFORD BOROUGH COUNCIL,BUILDING CONTROL SUMMARY,JJ SURVEYING LTD,87746,07-Jan-20,2097003,539,0,CONSULTANTS (ADVICE),SURVEYORS AND INSPECTORS,Invoice,BACS,None,16-Dec-19,2019,10,1063,D5700,BUILDING CONTROL - FEE,D4520,CONSULTANTS (ADVICE)
GUILDFORD BOROUGH COUNCIL,BUILDING CONTROL SUMMARY,JJ SURVEYING LTD,87746,07-Jan-20,2096005,539,0,CONSULTANTS (ADVICE),SURVEYORS AND INSPECTORS,Invoice,BACS,None,09-Dec-19,2019,10,1056,D5700,BUILDING CONTROL - FEE,D4520,CONSULTANTS (ADVICE)
GUILDFORD BOROUGH COUNCIL,BUILDING CONTROL SUMMARY,JJ SURVEYING LTD,87746,07-Jan-20,2096703,490,0,CONSULTANTS (ADVICE),SURVEYORS AND INSPECTORS,Invoice,BACS,None,23-Dec-19,2019,10,1060,D5700,BUILDING CONTROL - FEE,D4520,CONSULTANTS (ADVICE)
GUILDFORD BOROUGH COUNCIL,BUILDING CONTROL SUMMARY,JJ SURVEYING LTD,87746,21-Jan-20,2099397,490,0,AGENCY STAFF,SURVEYORS AND INSPECTORS,Invoice,BACS,None,13-Jan-20,2019,10,1068,D5700,BUILDING CONTROL - FEE,A5191,AGENCY STAFF
GUILDFORD BOROUGH COUNCIL,BUILDING CONTROL SUMMARY,JJ SURVEYING LTD,87746,07-Jan-20,2096705,490,0,CONSULTANTS (ADVICE),SURVEYORS AND INSPECTORS,Invoice,BACS,None,16-Dec-19,2019,10,1057,D5700,BUILDING CONTROL - FEE,D4520,CONSULTANTS (ADVICE)
GUILDFORD BOROUGH COUNCIL,BUILDING CONTROL SUMMARY,JJ SURVEYING LTD,87746,30-Jan-20,2100890,441,0,CONSULTANTS (ADVICE),SURVEYORS AND INSPECTORS,Invoice,BACS,None,20-Jan-20,2019,10,1071,D5700,BUILDING CONTROL - FEE,D4520,CONSULTANTS (ADVICE)
GUILDFORD BOROUGH COUNCIL,BUILDING CONTROL SUMMARY,JJ SURVEYING LTD,87746,07-Jan-20,2095575,245,0,CONSULTANTS (ADVICE),SURVEYORS AND INSPECTORS,Invoice,BACS,None,02-Dec-19,2019,10,1052,D5700,BUILDING CONTROL - FEE,D4520,CONSULTANTS (ADVICE)
GUILDFORD BOROUGH COUNCIL,BUILDING CONTROL SUMMARY,JJ SURVEYING LTD,87746,07-Jan-20,2097008,-490,0,CONSULTANTS (ADVICE),SURVEYORS AND INSPECTORS,Credit Note,,None,16-Dec-19,2019,10,1064,D5700,BUILDING CONTROL - FEE,D4520,CONSULTANTS (ADVICE)
GUILDFORD BOROUGH COUNCIL,GYPSY AND TRAVELLER SITES,J T S CIVIL ENGINEERS LTD,64855,16-Jan-20,2099702,172.94,0,MECHANICAL/ELECTRICAL MNTCE AG,SEWERAGE AND DRAINAGE SERVICE PROVIDERS,Invoice,BACS,None,02-Dec-19,2019,10,154728,C1521,COBBETTS CLOSE,B1221,MECHANICAL/ELECTRICAL MNTCE AG
GUILDFORD BOROUGH COUNCIL,PARKS & COUNTRYSIDE,JC ELECTRICS (GUILDFORD) LTD,74836,16-Jan-20,2099708,702.2,0,MECHANICAL/ELECTRICAL MNTCE AG,ELECTRICAL WIRING AND PARTS SUPPLIERS,Invoice,BACS,None,16-Oct-19,2019,10,S500,A1290,KINGSTON MEADOWS,B1221,MECHANICAL/ELECTRICAL MNTCE AG
GUILDFORD BOROUGH COUNCIL,INDUSTRIAL ESTATES,GUILDFORD LOCK AND SAFE LIMITED,2294,09-Jan-20,2095758,74.6,0,PS-R&M REACTIVE REPAIRS,KEYS AND LOCKSMITHS,Invoice,BACS,None,06-Dec-19,2019,10,26777,B5341,MIDLETON INDUSTRIAL ESTATE,B1627,PS-R&M REACTIVE REPAIRS
GUILDFORD BOROUGH COUNCIL,CORPORATE PROPERTY SERVICES,J&G TRAFFIC LTD,94758,14-Jan-20,2096768,3995,0,CONSULTANTS (ADVICE),,Invoice,BACS,None,30-Nov-19,2019,10,314/19,G4575,CORPORATE PROPERTY SERVICES,D4520,CONSULTANTS (ADVICE)
GUILDFORD BOROUGH COUNCIL,RESPONSIVE & PLANNED MAINTENAN,J T S CIVIL ENGINEERS LTD,64855,16-Jan-20,2099703,1500,0,PLUMBING EXCL CENTRAL HEATING,SEWERAGE AND DRAINAGE SERVICE PROVIDERS,Invoice,BACS,None,16-Dec-19,2019,10,154797,M5113,REPAIRS-RESPONSIVE (BHS),B1371,PLUMBING EXCL CENTRAL HEATING
GUILDFORD BOROUGH COUNCIL,RESPONSIVE & PLANNED MAINTENAN,GUILDFORD FENCING CO,78890,30-Jan-20,2102158,220,0,GENERAL CARPENTRY,FENCING CONTRACTORS,Invoice,BACS,None,19-Dec-19,2019,10,13328,M5113,REPAIRS-RESPONSIVE (BHS),B1344,GENERAL CARPENTRY
GUILDFORD BOROUGH COUNCIL,GYPSY AND TRAVELLER SITES,J T S CIVIL ENGINEERS LTD,64855,16-Jan-20,2099702,600,0,MECHANICAL/ELECTRICAL MNTCE AG,SEWERAGE AND DRAINAGE SERVICE PROVIDERS,Invoice,BACS,None,02-Dec-19,2019,10,154728,C1521,COBBETTS CLOSE,B1221,MECHANICAL/ELECTRICAL MNTCE AG
GUILDFORD BOROUGH COUNCIL,TOURIST INFORMATION CENTRE,REDACTED,0,14-Jan-20,2098689,-3.2,0,BOX OFFICE COMMISSION,PERFORMING ARTISTS,Invoice,BACS,None,08-Jan-20,2019,10,REDACTED,F5541,TOURIST INFORMATION CENTRE,K5919,BOX OFFICE COMMISSION
GUILDFORD BOROUGH COUNCIL,TOURIST INFORMATION CENTRE,REDACTED,0,14-Jan-20,2098689,32,0,TICKET SALES FOR PROMOTERS,PERFORMING ARTISTS,Invoice,BACS,None,08-Jan-20,2019,10,REDACTED,F5541,TOURIST INFORMATION CENTRE,K5994,TICKET SALES FOR PROMOTERS
GUILDFORD BOROUGH COUNCIL,TOURIST INFORMATION CENTRE,REDACTED,0,28-Jan-20,2101473,48,0,TICKET SALES FOR PROMOTERS,PERFORMING ARTISTS,Invoice,BACS,None,22-Jan-20,2019,10,REDACTED,F5541,TOURIST INFORMATION CENTRE,K5994,TICKET SALES FOR PROMOTERS
GUILDFORD BOROUGH COUNCIL,COMMUNITY DEVELOPMENT,GUILDFORD JAZZ CIC,36521,23-Jan-20,2099476,500,0,PUBLICITY,PERFORMING ARTISTS,Invoice,BACS,None,05-Jan-20,2019,10,GJ-082,F1129,GUILDFORD COMMUNITY LOTTERY,D9410,PUBLICITY
GUILDFORD BOROUGH COUNCIL,MUSEUM,JC ELECTRICS (GUILDFORD) LTD,74836,23-Jan-20,2100974,5898.4,0,PS - R&M PLANNED WORKS,ELECTRICAL WIRING AND PARTS SUPPLIERS,Invoice,BACS,None,26-Nov-19,2019,10,S559,A5561,CASTLE STREET 39.5 (SALTERS),B1610,PS - R&M PLANNED WORKS
GUILDFORD BOROUGH COUNCIL,OFFICE SERVICES TEAM,HARPERS DOOR SPECIALISTS,75911,21-Jan-20,2098907,110,0,PS-R&M REACTIVE REPAIRS,"SECURITY SHUTTER, DOOR AND GATE CONTRACTORS",Invoice,BACS,None,10-Jan-20,2019,10,3446,G7511,MILLMEAD HOUSE,B1627,PS-R&M REACTIVE REPAIRS
GUILDFORD BOROUGH COUNCIL,RESPONSIVE & PLANNED MAINTENAN,GUILDFORD LOCK AND SAFE LIMITED,2294,16-Jan-20,2099690,75,0,GENERAL CARPENTRY,KEYS AND LOCKSMITHS,Invoice,BACS,None,27-Nov-19,2019,10,26764,M5113,REPAIRS-RESPONSIVE (BHS),B1344,GENERAL CARPENTRY
GUILDFORD BOROUGH COUNCIL,PROPERTY,HANNAFORD UPRIGHT LTD,2368,07-Jan-20,2094923,3078,0,CONSULTANTS FEES - ADVICE,OTHER CONSTRUCTION CONSULTANTS,Invoice,BACS,None,29-Nov-19,2019,10,3362/10009,P74071,STRUCTURAL WORKS 48 QUARRY ST,1227,CONSULTANTS FEES - ADVICE
GUILDFORD BOROUGH COUNCIL,PROPERTY,HANNAFORD UPRIGHT LTD,2368,14-Jan-20,2097012,1836,0,CONSULTANTS FEES - ADVICE,OTHER CONSTRUCTION CONSULTANTS,Invoice,BACS,None,31-Dec-19,2019,10,3362/10022,P74071,STRUCTURAL WORKS 48 QUARRY ST,1227,CONSULTANTS FEES - ADVICE
GUILDFORD BOROUGH COUNCIL,TOURIST INFORMATION CENTRE,REDACTED,0,14-Jan-20,2098664,2457,0,TICKET SALES FOR PROMOTERS,PERFORMING ARTISTS,Invoice,BACS,None,08-Jan-19,2019,10,REDACTED,F5541,TOURIST INFORMATION CENTRE,K5994,TICKET SALES FOR PROMOTERS
GUILDFORD BOROUGH COUNCIL,TOURIST INFORMATION CENTRE,REDACTED,0,21-Jan-20,2100225,-75,0,BOX OFFICE COMMISSION,PERFORMING ARTISTS,Invoice,BACS,None,16-Jan-20,2019,10,REDACTED,F5541,TOURIST INFORMATION CENTRE,K5919,BOX OFFICE COMMISSION
GUILDFORD BOROUGH COUNCIL,TOURIST INFORMATION CENTRE,REDACTED,0,14-Jan-20,2098664,-245.7,0,BOX OFFICE COMMISSION,PERFORMING ARTISTS,Invoice,BACS,None,08-Jan-19,2019,10,REDACTED,F5541,TOURIST INFORMATION CENTRE,K5919,BOX OFFICE COMMISSION
GUILDFORD BOROUGH COUNCIL,TOURIST INFORMATION CENTRE,REDACTED,0,21-Jan-20,2100225,750,0,TICKET SALES FOR PROMOTERS,PERFORMING ARTISTS,Invoice,BACS,None,16-Jan-20,2019,10,REDACTED,F5541,TOURIST INFORMATION CENTRE,K5994,TICKET SALES FOR PROMOTERS
GUILDFORD BOROUGH COUNCIL,Investment Property,HARPERS DOOR SPECIALISTS,75911,21-Jan-20,2095540,200,0,PS-R&M REACTIVE REPAIRS,"SECURITY SHUTTER, DOOR AND GATE CONTRACTORS",Invoice,BACS,None,04-Dec-19,2019,10,3424,B6157,RODBORO BLDGS - EDUCATION CTRE,B1627,PS-R&M REACTIVE REPAIRS
GUILDFORD BOROUGH COUNCIL,VEHICLE MAINTENANCE,HANDSFREE GROUP LIMITED,94525,21-Jan-20,2095737,1295,0,VEHICLE TRACKING,THIRD PARTY SUPPLIER,Invoice,BACS,None,29-Nov-19,2019,10,1073727,K5551,VEHICLE MAINTENANCE,D9535,VEHICLE TRACKING
GUILDFORD BOROUGH COUNCIL,OFFICE SERVICES TEAM,HARPERS DOOR SPECIALISTS,75911,30-Jan-20,2100869,420,0,PS-R&M REACTIVE REPAIRS,"SECURITY SHUTTER, DOOR AND GATE CONTRACTORS",Invoice,BACS,None,21-Jan-20,2019,10,3459,G7511,MILLMEAD HOUSE,B1627,PS-R&M REACTIVE REPAIRS
GUILDFORD BOROUGH COUNCIL,PARKS & COUNTRYSIDE,HANDSFREE GROUP LIMITED,94525,28-Jan-20,2096112,1295,0,VEHICLE TRACKING,THIRD PARTY SUPPLIER,Invoice,BACS,None,11-Dec-19,2019,10,1073842,A1000,HOUSING,D9535,VEHICLE TRACKING
GUILDFORD BOROUGH COUNCIL,GUILDHALL,HARPERS DOOR SPECIALISTS,75911,14-Jan-20,2095728,226,0,PS-R&M REACTIVE REPAIRS,"SECURITY SHUTTER, DOOR AND GATE CONTRACTORS",Invoice,BACS,None,29-Nov-19,2019,10,3422,F3311,GUILDHALL,B1627,PS-R&M REACTIVE REPAIRS
GUILDFORD BOROUGH COUNCIL,LEISURE COMMUNITY CENTRES,HARPERS DOOR SPECIALISTS,75911,21-Jan-20,2099345,840,0,PS-R&M REACTIVE REPAIRS,"SECURITY SHUTTER, DOOR AND GATE CONTRACTORS",Invoice,BACS,None,13-Jan-20,2019,10,3449,A8121,BELLFIELDS YOUTH & COMMUNITY C,B1627,PS-R&M REACTIVE REPAIRS
GUILDFORD BOROUGH COUNCIL,GUILDHALL,HARPERS DOOR SPECIALISTS,75911,14-Jan-20,2095728,2111,0,PS-R&M REACTIVE REPAIRS,"SECURITY SHUTTER, DOOR AND GATE CONTRACTORS",Invoice,BACS,None,29-Nov-19,2019,10,3422,F3311,GUILDHALL,B1627,PS-R&M REACTIVE REPAIRS
GUILDFORD BOROUGH COUNCIL,Investment Property,HARPERS DOOR SPECIALISTS,75911,21-Jan-20,2095540,440,0,PS-R&M REACTIVE REPAIRS,"SECURITY SHUTTER, DOOR AND GATE CONTRACTORS",Invoice,BACS,None,04-Dec-19,2019,10,3424,B6157,RODBORO BLDGS - EDUCATION CTRE,B1627,PS-R&M REACTIVE REPAIRS
GUILDFORD BOROUGH COUNCIL,PROPERTY,HARPERS DOOR SPECIALISTS,75911,14-Jan-20,2096441,230,0,CONTRACT PYTS-MINOR CONTRACTOR,"SECURITY SHUTTER, DOOR AND GATE CONTRACTORS",Invoice,BACS,None,18-Dec-19,2019,10,3435,P74058,ENERGY EFFICIENCY COMPLIANCE,1234,CONTRACT PYTS-MINOR CONTRACTOR
GUILDFORD BOROUGH COUNCIL,PROPERTY,HARPERS DOOR SPECIALISTS,75911,14-Jan-20,2096441,270,0,CONTRACT PYTS-MINOR CONTRACTOR,"SECURITY SHUTTER, DOOR AND GATE CONTRACTORS",Invoice,BACS,None,18-Dec-19,2019,10,3435,P74058,ENERGY EFFICIENCY COMPLIANCE,1234,CONTRACT PYTS-MINOR CONTRACTOR
GUILDFORD BOROUGH COUNCIL,WOKING ROAD DEPOT,HARPERS DOOR SPECIALISTS,75911,14-Jan-20,2096397,100,0,PS-R&M REACTIVE REPAIRS,"SECURITY SHUTTER, DOOR AND GATE CONTRACTORS",Invoice,BACS,None,17-Dec-19,2019,10,3432,B4452,WOKING ROAD DEPOT,B1627,PS-R&M REACTIVE REPAIRS
GUILDFORD BOROUGH COUNCIL,OFFICE SERVICES TEAM,HARPERS DOOR SPECIALISTS,75911,30-Jan-20,2100869,120,0,PS-R&M REACTIVE REPAIRS,"SECURITY SHUTTER, DOOR AND GATE CONTRACTORS",Invoice,BACS,None,21-Jan-20,2019,10,3459,G7511,MILLMEAD HOUSE,B1627,PS-R&M REACTIVE REPAIRS
GUILDFORD BOROUGH COUNCIL,WOKING ROAD DEPOT,HARPERS DOOR SPECIALISTS,75911,14-Jan-20,2096397,80,0,PS-R&M REACTIVE REPAIRS,"SECURITY SHUTTER, DOOR AND GATE CONTRACTORS",Invoice,BACS,None,17-Dec-19,2019,10,3432,B4452,WOKING ROAD DEPOT,B1627,PS-R&M REACTIVE REPAIRS
GUILDFORD BOROUGH COUNCIL,PROJECT ASPIRE,GUILDFORD TOWN EAST HQ,98462,28-Jan-20,2100756,600,0,GENERAL GRANTS,,Invoice,BACS,None,08-Dec-19,2019,10,ASP2019,F1126,PROJECT ASPIRE,D7441,GENERAL GRANTS
GUILDFORD BOROUGH COUNCIL,INDUSTRIAL ESTATES,GUILDFORD LOCK AND SAFE LIMITED,2294,09-Jan-20,2095293,48.64,0,PS-R&M REACTIVE REPAIRS,KEYS AND LOCKSMITHS,Invoice,BACS,None,27-Nov-19,2019,10,26763,B5311,INDUSTRIAL ESTATES ADMIN.,B1627,PS-R&M REACTIVE REPAIRS
GUILDFORD BOROUGH COUNCIL,CREMATORIUM,GUILDFORD LOCK AND SAFE LIMITED,2294,21-Jan-20,2097651,63,0,SECURITY SERVICES,KEYS AND LOCKSMITHS,Invoice,BACS,None,06-Jan-20,2019,10,26816,A1500,GUILDFORD CREMATORIUM,D4477,SECURITY SERVICES
GUILDFORD BOROUGH COUNCIL,OFF STREET PARKING,GUILDFORD LOCK AND SAFE LIMITED,2294,07-Jan-20,2096739,129.21,0,PARKING GENERAL MTCE,KEYS AND LOCKSMITHS,Invoice,BACS,None,13-Dec-19,2019,10,SHOP33484,B2216,GENERAL UPKEEP- URBAN CAR PKS,B1218,PARKING GENERAL MTCE
GUILDFORD BOROUGH COUNCIL,Other Property,GUILDFORD LOCK AND SAFE LIMITED,2294,23-Jan-20,2100410,12.4,0,PS-R&M REACTIVE REPAIRS,KEYS AND LOCKSMITHS,Invoice,BACS,None,20-Jan-20,2019,10,33667,B6201,TUNSGATE ARCH,B1627,PS-R&M REACTIVE REPAIRS
GUILDFORD BOROUGH COUNCIL,TOURIST INFORMATION CENTRE,REDACTED,0,28-Jan-20,2101470,60,0,TICKET SALES FOR PROMOTERS,,Invoice,BACS,None,22-Jan-20,2019,10,REDACTED,F5541,TOURIST INFORMATION CENTRE,K5994,TICKET SALES FOR PROMOTERS
GUILDFORD BOROUGH COUNCIL,TOURIST INFORMATION CENTRE,REDACTED,0,28-Jan-20,2101470,-6,0,BOX OFFICE COMMISSION,,Invoice,BACS,None,22-Jan-20,2019,10,REDACTED,F5541,TOURIST INFORMATION CENTRE,K5919,BOX OFFICE COMMISSION
GUILDFORD BOROUGH COUNCIL,GOVERNMENT ST DEBTORS,GUILDFORD PARK CHURCH TRUST,72341,09-Jan-20,2097740,100,0,POLLING STATION COSTS,COMMUNITY CENTRES,Invoice,BACS,None,20-Dec-19,2019,10,HALL HIRE,J02002,PARLIAMENTARY ELECTIONS,2445,POLLING STATION COSTS
GUILDFORD BOROUGH COUNCIL,LEISURE SPORT DEVELOPMENT,GUILDFORD SAINTS  F.C.,18416,07-Jan-20,2095963,570,0,INITIATIVES,THIRD PARTY SUPPLIER,Invoice,BACS,None,09-Dec-19,2019,10,DEC2019,A7311,SPORTS DEVELOPMENT OFFICER,D9478,INITIATIVES
GUILDFORD BOROUGH COUNCIL,VEHICLE MAINTENANCE,HANDSFREE GROUP LIMITED,94525,09-Jan-20,2088209,160,0,VEHICLE TRACKING,THIRD PARTY SUPPLIER,Invoice,BACS,None,19-Sep-19,2019,10,1071691,K5551,VEHICLE MAINTENANCE,D9535,VEHICLE TRACKING
GUILDFORD BOROUGH COUNCIL,OTHER ST CREDITORS,GUILDFORD SHAKESPEARE COMPANY TRUST LTD,65370,23-Jan-20,2100841,53,0,CURRENT YEARS EXPENDITURE,THEATRES,Invoice,BACS,None,14-Jan-20,2019,10,DONATION,L02138,DEPUTY MAYORS ALLOWANCE,2239,CURRENT YEARS EXPENDITURE
GUILDFORD BOROUGH COUNCIL,RESPONSIVE & PLANNED MAINTENAN,GUILDFORD FENCING CO,78890,30-Jan-20,2102156,374,0,GENERAL CARPENTRY,FENCING CONTRACTORS,Invoice,BACS,None,09-Dec-19,2019,10,13311,M5106,REPAIRS-SHELT-RESPONSIVE (BHS),B1344,GENERAL CARPENTRY
GUILDFORD BOROUGH COUNCIL,GOVERNMENT ST DEBTORS,GUILDFORD UNITED REFORMED CHURCH,2313,09-Jan-20,2097739,265,0,POLLING STATION COSTS,RELIGIOUS ORGANISATIONS,Invoice,BACS,None,20-Dec-19,2019,10,HALL HIRE,J02002,PARLIAMENTARY ELECTIONS,2445,POLLING STATION COSTS
GUILDFORD BOROUGH COUNCIL,INDUSTRIAL ESTATES,GVA GRIMLEY LIMITED,88025,03-Feb-20,2096334,5000,0,CONSULTANTS FEES - ADVICE,,Invoice,,None,28-Jun-19,2019,10,2123278,P72045,UNITS 1 & 2 THORNBERRY WAY,1227,CONSULTANTS FEES - ADVICE
GUILDFORD BOROUGH COUNCIL,CREMATORIUM,H C SLINGSBY PLC,2330,07-Jan-20,2096456,65.67,0,MATERIALS,BUILDERS MERCHANTS,Invoice,BACS,None,17-Dec-19,2019,10,SI1385461,A1500,GUILDFORD CREMATORIUM,D1545,MATERIALS
GUILDFORD BOROUGH COUNCIL,CORP SERVICES,HALLMARK VENDING LTD,46145,30-Jan-20,2099554,124,0,CONTRACT CATERING,OTHER VENDING SERVICES SUPPLIERS,Invoice,BACS,None,09-Jan-20,2019,10,1819538,F1111,CORPORATE SERVICES,D1822,CONTRACT CATERING
GUILDFORD BOROUGH COUNCIL,CORP SERVICES,HALLMARK VENDING LTD,46145,30-Jan-20,2100880,98,0,CONTRACT CATERING,OTHER VENDING SERVICES SUPPLIERS,Invoice,BACS,None,16-Jan-20,2019,10,1819663,F1111,CORPORATE SERVICES,D1822,CONTRACT CATERING
GUILDFORD BOROUGH COUNCIL,CORP SERVICES,HALLMARK VENDING LTD,46145,30-Jan-20,2097089,-174,0,CONTRACT CATERING,OTHER VENDING SERVICES SUPPLIERS,Credit Note,,None,31-Dec-19,2019,10,1815754-C,F1111,CORPORATE SERVICES,D1822,CONTRACT CATERING
GUILDFORD BOROUGH COUNCIL,GRANTS TO VOLUNTARY ORGS: H&C,HALOW PROJECT,61315,16-Jan-20,2098394,2500,0,GENERAL GRANTS,"YOUTH CLUBS, HOSTELS AND ASSOCIATIONS",Invoice,BACS,None,07-Jan-20,2019,10,2086,C3111,COMMUNITY GRANT SCHEME,D7441,GENERAL GRANTS
GUILDFORD BOROUGH COUNCIL,OFFICE SERVICES TEAM,HAMPSHIRE FLAG COMPANY,2363,21-Jan-20,2099423,229,0,EQUIP. & TOOLS REPAIRS,,Invoice,BACS,None,13-Jan-20,2019,10,0000155527,G7511,MILLMEAD HOUSE,D1429,EQUIP. & TOOLS REPAIRS
GUILDFORD BOROUGH COUNCIL,LEISURE SPORT DEVELOPMENT,GUILDFORD SAINTS  F.C.,18416,07-Jan-20,2088147,220,0,INITIATIVES,THIRD PARTY SUPPLIER,Invoice,BACS,None,28-Oct-19,2019,10,OCT2019,A7311,SPORTS DEVELOPMENT OFFICER,D9478,INITIATIVES
GUILDFORD BOROUGH COUNCIL,TENANTS' SERVICES,GREEN NETWORK ENERGY LIMITED,97562,14-Jan-20,2098686,260.79,0,ELECTRICITY,MAINS ELECTRICITY SUPPLIERS,Invoice,BACS,None,10-Dec-19,2019,10,GNE200490083,M1151,TENANTS SERVICES (BHS),B2215,ELECTRICITY
GUILDFORD BOROUGH COUNCIL,RESPONSIVE & PLANNED MAINTENAN,GUILDFORD FENCING CO,78890,30-Jan-20,2102159,627,0,GENERAL CARPENTRY,FENCING CONTRACTORS,Invoice,BACS,None,31-Dec-19,2019,10,13337,M5113,REPAIRS-RESPONSIVE (BHS),B1344,GENERAL CARPENTRY
GUILDFORD BOROUGH COUNCIL,RESPONSIVE & PLANNED MAINTENAN,K&T HEATING SERVICES LTD,93000,16-Jan-20,2099717,55.22,0,HEATING; SERVICE WATER/CENTRAL,PROPERTY MAINTENANCE CONTRACTORS,Invoice,BACS,None,17-Dec-19,2019,10,SI29883,M5113,REPAIRS-RESPONSIVE (BHS),B1354,HEATING; SERVICE WATER/CENTRAL
GUILDFORD BOROUGH COUNCIL,RESPONSIVE & PLANNED MAINTENAN,K&T HEATING SERVICES LTD,93000,30-Jan-20,2102173,55.22,0,HEATING; REPAIRS WATER/CENTRAL,PROPERTY MAINTENANCE CONTRACTORS,Invoice,BACS,None,30-Nov-19,2019,10,SI29572,M5113,REPAIRS-RESPONSIVE (BHS),B1351,HEATING; REPAIRS WATER/CENTRAL
GUILDFORD BOROUGH COUNCIL,RESPONSIVE & PLANNED MAINTENAN,K&T HEATING SERVICES LTD,93000,30-Jan-20,2102173,37.01,0,HEATING; REPAIRS WATER/CENTRAL,PROPERTY MAINTENANCE CONTRACTORS,Invoice,BACS,None,30-Nov-19,2019,10,SI29572,M5113,REPAIRS-RESPONSIVE (BHS),B1351,HEATING; REPAIRS WATER/CENTRAL
GUILDFORD BOROUGH COUNCIL,HOUSING BENEFITS,GRANT THORNTON UK LLP,72635,09-Jan-20,2096554,28000,0,AUDIT FEE,MULTI-DISCIPLINE MANAGEMENT CONSULTANTS,Invoice,BACS,None,06-Dec-19,2019,10,9011237,C4511,HOUSING BENEFITS ADMIN.,D4416,AUDIT FEE
GUILDFORD BOROUGH COUNCIL,CORP SERVICES,GRANT THORNTON UK LLP,72635,09-Jan-20,2097049,11075,0,AUDIT FEE,MULTI-DISCIPLINE MANAGEMENT CONSULTANTS,Invoice,BACS,None,16-Dec-19,2019,10,9016547,F1111,CORPORATE SERVICES,D4416,AUDIT FEE
GUILDFORD BOROUGH COUNCIL,RESPONSIVE & PLANNED MAINTENAN,K&T HEATING SERVICES LTD,93000,30-Jan-20,2102173,55.22,0,HEATING; SERVICE WATER/CENTRAL,PROPERTY MAINTENANCE CONTRACTORS,Invoice,BACS,None,30-Nov-19,2019,10,SI29572,M5113,REPAIRS-RESPONSIVE (BHS),B1354,HEATING; SERVICE WATER/CENTRAL
GUILDFORD BOROUGH COUNCIL,RESPONSIVE & PLANNED MAINTENAN,K&T HEATING SERVICES LTD,93000,16-Jan-20,2099717,55.22,0,HEATING; SERVICE WATER/CENTRAL,PROPERTY MAINTENANCE CONTRACTORS,Invoice,BACS,None,17-Dec-19,2019,10,SI29883,M5113,REPAIRS-RESPONSIVE (BHS),B1354,HEATING; SERVICE WATER/CENTRAL
GUILDFORD BOROUGH COUNCIL,PUBLIC RELATIONS,GRANT PRITCHARD PHOTOGRAPHY LTD,2209,07-Jan-20,2095760,250,0,PHOTOGRAPHY,PHOTOGRAPHY SERVICE PROVIDERS,Invoice,BACS,None,06-Dec-19,2019,10,1906,F5551,PUBLIC RELATIONS & MARKETING,D1561,PHOTOGRAPHY
GUILDFORD BOROUGH COUNCIL,HEATING,K&T HEATING SERVICES LTD,93000,30-Jan-20,2102173,37.01,0,CONTRACT PYTS-MAIN CONTRACTOR,PROPERTY MAINTENANCE CONTRACTORS,Invoice,BACS,None,30-Nov-19,2019,10,SI29572,N44069,CENTRAL HEATING/BOILER 2019-20,1233,CONTRACT PYTS-MAIN CONTRACTOR
GUILDFORD BOROUGH COUNCIL,PUBLIC RELATIONS,GRANT PRITCHARD PHOTOGRAPHY LTD,2209,07-Jan-20,2095761,180,0,PHOTOGRAPHY,PHOTOGRAPHY SERVICE PROVIDERS,Invoice,BACS,None,06-Dec-19,2019,10,1908,F5551,PUBLIC RELATIONS & MARKETING,D1561,PHOTOGRAPHY
GUILDFORD BOROUGH COUNCIL,TENANTS' SERVICES,GREEN NETWORK ENERGY LIMITED,97562,14-Jan-20,2098686,103.3,0,ELECTRICITY,MAINS ELECTRICITY SUPPLIERS,Invoice,BACS,None,10-Dec-19,2019,10,GNE200490083,M1151,TENANTS SERVICES (BHS),B2215,ELECTRICITY
GUILDFORD BOROUGH COUNCIL,RESPONSIVE & PLANNED MAINTENAN,K&T HEATING SERVICES LTD,93000,30-Jan-20,2102173,55.22,0,HEATING; SERVICE WATER/CENTRAL,PROPERTY MAINTENANCE CONTRACTORS,Invoice,BACS,None,30-Nov-19,2019,10,SI29572,M5113,REPAIRS-RESPONSIVE (BHS),B1354,HEATING; SERVICE WATER/CENTRAL
GUILDFORD BOROUGH COUNCIL,RESPONSIVE & PLANNED MAINTENAN,K&T HEATING SERVICES LTD,93000,30-Jan-20,2102173,55.22,0,HEATING; SERVICE WATER/CENTRAL,PROPERTY MAINTENANCE CONTRACTORS,Invoice,BACS,None,30-Nov-19,2019,10,SI29572,M5113,REPAIRS-RESPONSIVE (BHS),B1354,HEATING; SERVICE WATER/CENTRAL
GUILDFORD BOROUGH COUNCIL,RESPONSIVE & PLANNED MAINTENAN,K&T HEATING SERVICES LTD,93000,16-Jan-20,2099717,55.22,0,HEATING; SERVICE WATER/CENTRAL,PROPERTY MAINTENANCE CONTRACTORS,Invoice,BACS,None,17-Dec-19,2019,10,SI29883,M5114,REPAIRS-CYCLICAL (BHS),B1354,HEATING; SERVICE WATER/CENTRAL
GUILDFORD BOROUGH COUNCIL,RESPONSIVE & PLANNED MAINTENAN,K&T HEATING SERVICES LTD,93000,16-Jan-20,2099717,55.22,0,HEATING; SERVICE WATER/CENTRAL,PROPERTY MAINTENANCE CONTRACTORS,Invoice,BACS,None,17-Dec-19,2019,10,SI29883,M5113,REPAIRS-RESPONSIVE (BHS),B1354,HEATING; SERVICE WATER/CENTRAL
GUILDFORD BOROUGH COUNCIL,RESPONSIVE & PLANNED MAINTENAN,K&T HEATING SERVICES LTD,93000,30-Jan-20,2102172,-55.22,0,HEATING; REPAIRS WATER/CENTRAL,PROPERTY MAINTENANCE CONTRACTORS,Credit Note,,None,16-Jan-20,2019,10,SCR1806,M5113,REPAIRS-RESPONSIVE (BHS),B1351,HEATING; REPAIRS WATER/CENTRAL
GUILDFORD BOROUGH COUNCIL,RESPONSIVE & PLANNED MAINTENAN,K&T HEATING SERVICES LTD,93000,30-Jan-20,2102173,55.22,0,HEATING; SERVICE WATER/CENTRAL,PROPERTY MAINTENANCE CONTRACTORS,Invoice,BACS,None,30-Nov-19,2019,10,SI29572,M5113,REPAIRS-RESPONSIVE (BHS),B1354,HEATING; SERVICE WATER/CENTRAL
GUILDFORD BOROUGH COUNCIL,RESPONSIVE & PLANNED MAINTENAN,K&T HEATING SERVICES LTD,93000,30-Jan-20,2102173,55.22,0,HEATING; REPAIRS WATER/CENTRAL,PROPERTY MAINTENANCE CONTRACTORS,Invoice,BACS,None,30-Nov-19,2019,10,SI29572,M5113,REPAIRS-RESPONSIVE (BHS),B1351,HEATING; REPAIRS WATER/CENTRAL
GUILDFORD BOROUGH COUNCIL,CORP SERVICES,GRANT THORNTON UK LLP,72635,09-Jan-20,2097052,8500,0,AUDIT FEE,MULTI-DISCIPLINE MANAGEMENT CONSULTANTS,Invoice,BACS,None,17-Dec-19,2019,10,9017649,F1111,CORPORATE SERVICES,D4416,AUDIT FEE
GUILDFORD BOROUGH COUNCIL,HEATING,K&T HEATING SERVICES LTD,93000,30-Jan-20,2102173,37.01,0,CONTRACT PYTS-MAIN CONTRACTOR,PROPERTY MAINTENANCE CONTRACTORS,Invoice,BACS,None,30-Nov-19,2019,10,SI29572,N44069,CENTRAL HEATING/BOILER 2019-20,1233,CONTRACT PYTS-MAIN CONTRACTOR
GUILDFORD BOROUGH COUNCIL,FUTURE GUILDFORD,GOSS INTERACTIVE LTD,57732,30-Jan-20,2098317,5500,0,COMPUTER HARDWARE,DIGITAL MARKETING SERVICE PROVIDERS,Invoice,BACS,None,07-Jan-20,2019,10,19093,G3531,FUTURE GUILDFORD,D5427,COMPUTER HARDWARE
GUILDFORD BOROUGH COUNCIL,FUTURE GUILDFORD,GOSS INTERACTIVE LTD,57732,30-Jan-20,2096664,3750,0,COMPUTER HARDWARE,DIGITAL MARKETING SERVICE PROVIDERS,Invoice,BACS,None,19-Dec-19,2019,10,19065,G3531,FUTURE GUILDFORD,D5427,COMPUTER HARDWARE
GUILDFORD BOROUGH COUNCIL,FUTURE GUILDFORD,GOSS INTERACTIVE LTD,57732,30-Jan-20,2096678,1500,0,COMPUTER HARDWARE,DIGITAL MARKETING SERVICE PROVIDERS,Invoice,BACS,None,19-Dec-19,2019,10,19064,G3531,FUTURE GUILDFORD,D5427,COMPUTER HARDWARE
GUILDFORD BOROUGH COUNCIL,BUSINESS & TOURISM,GOVERNMENT EVENTS,95255,30-Jan-20,2098633,350.1,0,CONFERENCES,OTHER PUBLIC SECTOR BODIES,Invoice,BACS,None,24-Dec-19,2019,10,61121,F5547,BUSINESS,D6411,CONFERENCES
GUILDFORD BOROUGH COUNCIL,RESPONSIVE & PLANNED MAINTENAN,K&T HEATING SERVICES LTD,93000,16-Jan-20,2099717,55.22,0,HEATING; SERVICE WATER/CENTRAL,PROPERTY MAINTENANCE CONTRACTORS,Invoice,BACS,None,17-Dec-19,2019,10,SI29883,M5114,REPAIRS-CYCLICAL (BHS),B1354,HEATING; SERVICE WATER/CENTRAL
GUILDFORD BOROUGH COUNCIL,RESPONSIVE & PLANNED MAINTENAN,K&T HEATING SERVICES LTD,93000,30-Jan-20,2102172,-55.22,0,HEATING; REPAIRS WATER/CENTRAL,PROPERTY MAINTENANCE CONTRACTORS,Credit Note,,None,16-Jan-20,2019,10,SCR1806,M5113,REPAIRS-RESPONSIVE (BHS),B1351,HEATING; REPAIRS WATER/CENTRAL
GUILDFORD BOROUGH COUNCIL,RESPONSIVE & PLANNED MAINTENAN,K&T HEATING SERVICES LTD,93000,16-Jan-20,2099716,9559.33,0,HEATING; REPAIRS WATER/CENTRAL,PROPERTY MAINTENANCE CONTRACTORS,Invoice,BACS,None,31-Dec-19,2019,10,SI30294,M5114,REPAIRS-CYCLICAL (BHS),B1351,HEATING; REPAIRS WATER/CENTRAL
GUILDFORD BOROUGH COUNCIL,HEATING,K&T HEATING SERVICES LTD,93000,30-Jan-20,2102173,37.01,0,CONTRACT PYTS-MAIN CONTRACTOR,PROPERTY MAINTENANCE CONTRACTORS,Invoice,BACS,None,30-Nov-19,2019,10,SI29572,N44069,CENTRAL HEATING/BOILER 2019-20,1233,CONTRACT PYTS-MAIN CONTRACTOR
GUILDFORD BOROUGH COUNCIL,HEATING,K&T HEATING SERVICES LTD,93000,30-Jan-20,2102173,37.01,0,CONTRACT PYTS-MAIN CONTRACTOR,PROPERTY MAINTENANCE CONTRACTORS,Invoice,BACS,None,30-Nov-19,2019,10,SI29572,N44069,CENTRAL HEATING/BOILER 2019-20,1233,CONTRACT PYTS-MAIN CONTRACTOR
GUILDFORD BOROUGH COUNCIL,PUBLIC RELATIONS,GRANT PRITCHARD PHOTOGRAPHY LTD,2209,07-Jan-20,2096165,180,0,PHOTOGRAPHY,PHOTOGRAPHY SERVICE PROVIDERS,Invoice,BACS,None,12-Dec-19,2019,10,INVOICE1918,F5551,PUBLIC RELATIONS & MARKETING,D1561,PHOTOGRAPHY
GUILDFORD BOROUGH COUNCIL,RESPONSIVE & PLANNED MAINTENAN,K&T HEATING SERVICES LTD,93000,16-Jan-20,2099717,55.22,0,HEATING; SERVICE WATER/CENTRAL,PROPERTY MAINTENANCE CONTRACTORS,Invoice,BACS,None,17-Dec-19,2019,10,SI29883,M5113,REPAIRS-RESPONSIVE (BHS),B1354,HEATING; SERVICE WATER/CENTRAL
GUILDFORD BOROUGH COUNCIL,RESPONSIVE & PLANNED MAINTENAN,K&T HEATING SERVICES LTD,93000,30-Jan-20,2102173,55.22,0,HEATING; SERVICE WATER/CENTRAL,PROPERTY MAINTENANCE CONTRACTORS,Invoice,BACS,None,30-Nov-19,2019,10,SI29572,M5113,REPAIRS-RESPONSIVE (BHS),B1354,HEATING; SERVICE WATER/CENTRAL
GUILDFORD BOROUGH COUNCIL,RESPONSIVE & PLANNED MAINTENAN,K&T HEATING SERVICES LTD,93000,30-Jan-20,2102172,-55.22,0,HEATING; SERVICE WATER/CENTRAL,PROPERTY MAINTENANCE CONTRACTORS,Credit Note,,None,16-Jan-20,2019,10,SCR1806,M5113,REPAIRS-RESPONSIVE (BHS),B1354,HEATING; SERVICE WATER/CENTRAL
GUILDFORD BOROUGH COUNCIL,RESPONSIVE & PLANNED MAINTENAN,K&T HEATING SERVICES LTD,93000,30-Jan-20,2102171,-55.22,0,HEATING; REPAIRS WATER/CENTRAL,PROPERTY MAINTENANCE CONTRACTORS,Credit Note,,None,16-Jan-20,2019,10,SCR1799,M5113,REPAIRS-RESPONSIVE (BHS),B1351,HEATING; REPAIRS WATER/CENTRAL
GUILDFORD BOROUGH COUNCIL,PUBLIC RELATIONS,GRANT PRITCHARD PHOTOGRAPHY LTD,2209,14-Jan-20,2096756,220,0,PHOTOGRAPHY,PHOTOGRAPHY SERVICE PROVIDERS,Invoice,BACS,None,06-Dec-19,2019,10,1905,F5551,PUBLIC RELATIONS & MARKETING,D1561,PHOTOGRAPHY
GUILDFORD BOROUGH COUNCIL,RESPONSIVE & PLANNED MAINTENAN,K&T HEATING SERVICES LTD,93000,16-Jan-20,2099717,55.22,0,HEATING; SERVICE WATER/CENTRAL,PROPERTY MAINTENANCE CONTRACTORS,Invoice,BACS,None,17-Dec-19,2019,10,SI29883,M5113,REPAIRS-RESPONSIVE (BHS),B1354,HEATING; SERVICE WATER/CENTRAL
GUILDFORD BOROUGH COUNCIL,RESPONSIVE & PLANNED MAINTENAN,K&T HEATING SERVICES LTD,93000,16-Jan-20,2099717,55.22,0,HEATING; SERVICE WATER/CENTRAL,PROPERTY MAINTENANCE CONTRACTORS,Invoice,BACS,None,17-Dec-19,2019,10,SI29883,M5113,REPAIRS-RESPONSIVE (BHS),B1354,HEATING; SERVICE WATER/CENTRAL
GUILDFORD BOROUGH COUNCIL,PUBLIC RELATIONS,GRANT PRITCHARD PHOTOGRAPHY LTD,2209,07-Jan-20,2095762,180,0,PHOTOGRAPHY,PHOTOGRAPHY SERVICE PROVIDERS,Invoice,BACS,None,06-Dec-19,2019,10,1909,F5551,PUBLIC RELATIONS & MARKETING,D1561,PHOTOGRAPHY
GUILDFORD BOROUGH COUNCIL,PUBLIC RELATIONS,GRANT PRITCHARD PHOTOGRAPHY LTD,2209,07-Jan-20,2095763,180,0,PHOTOGRAPHY,PHOTOGRAPHY SERVICE PROVIDERS,Invoice,BACS,None,06-Dec-19,2019,10,1910,F5551,PUBLIC RELATIONS & MARKETING,D1561,PHOTOGRAPHY
GUILDFORD BOROUGH COUNCIL,RESPONSIVE & PLANNED MAINTENAN,K&T HEATING SERVICES LTD,93000,16-Jan-20,2099717,55.22,0,HEATING; SERVICE WATER/CENTRAL,PROPERTY MAINTENANCE CONTRACTORS,Invoice,BACS,None,17-Dec-19,2019,10,SI29883,M5113,REPAIRS-RESPONSIVE (BHS),B1354,HEATING; SERVICE WATER/CENTRAL
GUILDFORD BOROUGH COUNCIL,LAND DRAINAGE,JOHN BRITTEN LIMITED,2736,14-Jan-20,2096520,12095.6,0,WATER COURSE MAINTENANCE,PAVING AND DRIVEWAY SERVICE CONTRACTORS,Invoice,BACS,None,09-Dec-19,2019,10,3607,B5511,LAND DRAINAGE,B1298,WATER COURSE MAINTENANCE
GUILDFORD BOROUGH COUNCIL,FUTURE GUILDFORD,HAYS SPECIALIST RECRUITMENT LIMITED,15625,07-Jan-20,2094724,1500,0,AGENCY STAFF,OTHER RECRUITMENT AGENCIES AND SERVICE PROVIDERS,Invoice,BACS,None,27-Nov-19,2019,10,1010206886,G3531,FUTURE GUILDFORD,A5191,AGENCY STAFF
GUILDFORD BOROUGH COUNCIL,RESPONSIVE & PLANNED MAINTENAN,GUILDFORD FENCING CO,78890,23-Jan-20,2100975,110,0,GENERAL CARPENTRY,FENCING CONTRACTORS,Invoice,BACS,None,31-Dec-19,2019,10,13336.,M5113,REPAIRS-RESPONSIVE (BHS),B1344,GENERAL CARPENTRY
GUILDFORD BOROUGH COUNCIL,RESPONSIVE & PLANNED MAINTENAN,GUILDFORD FENCING CO,78890,30-Jan-20,2102157,330,0,GENERAL CARPENTRY,FENCING CONTRACTORS,Invoice,BACS,None,19-Dec-19,2019,10,13329,M5113,REPAIRS-RESPONSIVE (BHS),B1344,GENERAL CARPENTRY
GUILDFORD BOROUGH COUNCIL,PARK & RIDE SERVICES,JOHN F HUNT POWER LTD,80306,07-Jan-20,2095578,982.8,0,HIRE OF PLANT,OTHER CONSTRUCTION CONTRACTORS,Invoice,BACS,None,30-Nov-19,2019,10,178023,B5206,ONSLOW PARK AND RIDE,D1426,HIRE OF PLANT
GUILDFORD BOROUGH COUNCIL,RESPONSIVE & PLANNED MAINTENAN,GUILDFORD FENCING CO,78890,30-Jan-20,2102157,543,0,GENERAL CARPENTRY,FENCING CONTRACTORS,Invoice,BACS,None,19-Dec-19,2019,10,13329,M5113,REPAIRS-RESPONSIVE (BHS),B1344,GENERAL CARPENTRY
GUILDFORD BOROUGH COUNCIL,RESPONSIVE & PLANNED MAINTENAN,GUILDFORD FENCING CO,78890,21-Jan-20,2100303,146,0,GENERAL CARPENTRY,FENCING CONTRACTORS,Invoice,BACS,None,05-Dec-19,2019,10,13304,M5113,REPAIRS-RESPONSIVE (BHS),B1344,GENERAL CARPENTRY
GUILDFORD BOROUGH COUNCIL,SNOW & ICE PLAN,JOHN BRITTEN LIMITED,2736,07-Jan-20,2095288,1860,0,SALT,PAVING AND DRIVEWAY SERVICE CONTRACTORS,Invoice,BACS,None,27-Nov-19,2019,10,3604,K1555,SNOW & ICE PLAN - HOLDING ACCO,B1296,SALT
GUILDFORD BOROUGH COUNCIL,RESPONSIVE & PLANNED MAINTENAN,GUILDFORD FENCING CO,78890,23-Jan-20,2100976,150,0,GENERAL CARPENTRY,FENCING CONTRACTORS,Invoice,BACS,None,05-Dec-19,2019,10,13303,M5113,REPAIRS-RESPONSIVE (BHS),B1344,GENERAL CARPENTRY
GUILDFORD BOROUGH COUNCIL,RESPONSIVE & PLANNED MAINTENAN,K&T HEATING SERVICES LTD,93000,30-Jan-20,2102173,55.22,0,HEATING; SERVICE WATER/CENTRAL,PROPERTY MAINTENANCE CONTRACTORS,Invoice,BACS,None,30-Nov-19,2019,10,SI29572,M5113,REPAIRS-RESPONSIVE (BHS),B1354,HEATING; SERVICE WATER/CENTRAL
GUILDFORD BOROUGH COUNCIL,LAND DRAINAGE,JOHN BRITTEN LIMITED,2736,28-Jan-20,2099284,16867.5,0,WATER COURSE MAINTENANCE,PAVING AND DRIVEWAY SERVICE CONTRACTORS,Invoice,BACS,None,02-Jan-20,2019,10,3610,B5511,LAND DRAINAGE,B1298,WATER COURSE MAINTENANCE
GUILDFORD BOROUGH COUNCIL,STREET CLEANSING,JOHNSTON SWEEPERS LTD,15089,09-Jan-20,2094660,1515.54,0,MAINTENANCE AGREEMENTS,CAR AND VAN DEALERS,Invoice,BACS,None,26-Nov-19,2019,10,65319340,K4551,STREET CLEANSING,D1431,MAINTENANCE AGREEMENTS
GUILDFORD BOROUGH COUNCIL,RESPONSIVE & PLANNED MAINTENAN,GUILDFORD FENCING CO,78890,30-Jan-20,2102158,433,0,GENERAL CARPENTRY,FENCING CONTRACTORS,Invoice,BACS,None,19-Dec-19,2019,10,13328,M5113,REPAIRS-RESPONSIVE (BHS),B1344,GENERAL CARPENTRY
GUILDFORD BOROUGH COUNCIL,GUILDFORD HOUSE,REDACTED,0,14-Jan-20,2098309,-36.75,0,COMMISSION ON CRAFTWORK SALES,,Invoice,BACS,None,03-Dec-19,2019,10,REDACTED,A4511,GUILDFORD HOUSE ADMINISTRATION,K5918,COMMISSION ON CRAFTWORK SALES
GUILDFORD BOROUGH COUNCIL,GUILDFORD HOUSE,REDACTED,0,14-Jan-20,2098418,-74.2,0,COMMISSION ON CRAFTWORK SALES,,Invoice,BACS,None,31-Dec-19,2019,10,REDACTED,A4511,GUILDFORD HOUSE ADMINISTRATION,K5918,COMMISSION ON CRAFTWORK SALES
GUILDFORD BOROUGH COUNCIL,GUILDFORD HOUSE,REDACTED,0,14-Jan-20,2098309,105,0,CRAFTWORK - SALE OR RETURN,,Invoice,BACS,None,03-Dec-19,2019,10,REDACTED,A4511,GUILDFORD HOUSE ADMINISTRATION,K3931,CRAFTWORK - SALE OR RETURN
GUILDFORD BOROUGH COUNCIL,GUILDFORD HOUSE,REDACTED,0,14-Jan-20,2098418,212,0,CRAFTWORK - SALE OR RETURN,,Invoice,BACS,None,31-Dec-19,2019,10,REDACTED,A4511,GUILDFORD HOUSE ADMINISTRATION,K3931,CRAFTWORK - SALE OR RETURN
GUILDFORD BOROUGH COUNCIL,MAJOR PROJECTS,JOANNA WILTCHER,95785,30-Jan-20,2101618,2000,0,CONSULTANTS (ADVICE),INTERIM MANAGEMENT AGENCIES,Invoice,BACS,None,08-Jan-20,2019,10,JW/GBC13,F5620,GUILDFORD MUSEUM REDEVELOPMENT,D4520,CONSULTANTS (ADVICE)
GUILDFORD BOROUGH COUNCIL,MAJOR PROJECTS,JOANNA WILTCHER,95785,07-Jan-20,2096156,3800,0,CONSULTANTS (ADVICE),INTERIM MANAGEMENT AGENCIES,Invoice,BACS,None,08-Dec-19,2019,10,JW/GBC12,F5620,GUILDFORD MUSEUM REDEVELOPMENT,D4520,CONSULTANTS (ADVICE)
GUILDFORD BOROUGH COUNCIL,GOVERNMENT ST DEBTORS,HARPERS GROUP (WOKING) LTD,2373,07-Jan-20,2096364,340,0,COUNT COSTS,PHOTOGRAPHIC EQUIPMENT SUPPLIERS,Invoice,BACS,None,13-Dec-19,2019,10,1339,J02002,PARLIAMENTARY ELECTIONS,2245,COUNT COSTS
GUILDFORD BOROUGH COUNCIL,LAND DRAINAGE,JOHN BRITTEN LIMITED,2736,14-Jan-20,2096512,1667.5,0,GRILLE REPAIR AND MAINTENANCE,PAVING AND DRIVEWAY SERVICE CONTRACTORS,Invoice,BACS,None,09-Dec-19,2019,10,3606,B5511,LAND DRAINAGE,B1266,GRILLE REPAIR AND MAINTENANCE
GUILDFORD BOROUGH COUNCIL,RESPONSIVE & PLANNED MAINTENAN,GUILDFORD FENCING CO,78890,21-Jan-20,2100303,75,0,GENERAL CARPENTRY,FENCING CONTRACTORS,Invoice,BACS,None,05-Dec-19,2019,10,13304,M5113,REPAIRS-RESPONSIVE (BHS),B1344,GENERAL CARPENTRY
GUILDFORD BOROUGH COUNCIL,BUILDING CONTROL SUMMARY,JJ SURVEYING LTD,87746,07-Jan-20,2095576,338.13,0,CONSULTANTS (ADVICE),SURVEYORS AND INSPECTORS,Invoice,BACS,None,02-Dec-19,2019,10,1053,D5700,BUILDING CONTROL - FEE,D4520,CONSULTANTS (ADVICE)
GUILDFORD BOROUGH COUNCIL,RESPONSIVE & PLANNED MAINTENAN,K&T HEATING SERVICES LTD,93000,30-Jan-20,2102172,-55.22,0,HEATING; REPAIRS WATER/CENTRAL,PROPERTY MAINTENANCE CONTRACTORS,Credit Note,,None,16-Jan-20,2019,10,SCR1806,M5113,REPAIRS-RESPONSIVE (BHS),B1351,HEATING; REPAIRS WATER/CENTRAL
GUILDFORD BOROUGH COUNCIL,HEATING,K&T HEATING SERVICES LTD,93000,30-Jan-20,2102173,55.22,0,CONTRACT PYTS-MAIN CONTRACTOR,PROPERTY MAINTENANCE CONTRACTORS,Invoice,BACS,None,30-Nov-19,2019,10,SI29572,N44069,CENTRAL HEATING/BOILER 2019-20,1233,CONTRACT PYTS-MAIN CONTRACTOR
GUILDFORD BOROUGH COUNCIL,RESPONSIVE & PLANNED MAINTENAN,K&T HEATING SERVICES LTD,93000,23-Jan-20,2100988,796.46,0,PLUMBING - LEGIONELLA WORKS,PROPERTY MAINTENANCE CONTRACTORS,Invoice,BACS,None,11-Dec-19,2019,10,SI29862,M5114,REPAIRS-CYCLICAL (BHS),B1372,PLUMBING - LEGIONELLA WORKS
GUILDFORD BOROUGH COUNCIL,RESPONSIVE & PLANNED MAINTENAN,K&T HEATING SERVICES LTD,93000,30-Jan-20,2102173,55.22,0,HEATING; SERVICE WATER/CENTRAL,PROPERTY MAINTENANCE CONTRACTORS,Invoice,BACS,None,30-Nov-19,2019,10,SI29572,M5113,REPAIRS-RESPONSIVE (BHS),B1354,HEATING; SERVICE WATER/CENTRAL
GUILDFORD BOROUGH COUNCIL,RESPONSIVE & PLANNED MAINTENAN,K&T HEATING SERVICES LTD,93000,30-Jan-20,2102173,55.22,0,HEATING; SERVICE WATER/CENTRAL,PROPERTY MAINTENANCE CONTRACTORS,Invoice,BACS,None,30-Nov-19,2019,10,SI29572,M5113,REPAIRS-RESPONSIVE (BHS),B1354,HEATING; SERVICE WATER/CENTRAL
GUILDFORD BOROUGH COUNCIL,RESPONSIVE & PLANNED MAINTENAN,K&T HEATING SERVICES LTD,93000,16-Jan-20,2099717,55.22,0,HEATING; SERVICE WATER/CENTRAL,PROPERTY MAINTENANCE CONTRACTORS,Invoice,BACS,None,17-Dec-19,2019,10,SI29883,M5113,REPAIRS-RESPONSIVE (BHS),B1354,HEATING; SERVICE WATER/CENTRAL
GUILDFORD BOROUGH COUNCIL,RESPONSIVE & PLANNED MAINTENAN,K&T HEATING SERVICES LTD,93000,30-Jan-20,2102172,-55.22,0,HEATING; SERVICE WATER/CENTRAL,PROPERTY MAINTENANCE CONTRACTORS,Credit Note,,None,16-Jan-20,2019,10,SCR1806,M5113,REPAIRS-RESPONSIVE (BHS),B1354,HEATING; SERVICE WATER/CENTRAL
GUILDFORD BOROUGH COUNCIL,RESPONSIVE & PLANNED MAINTENAN,GUILDFORD FENCING CO,78890,30-Jan-20,2102159,330,0,GENERAL CARPENTRY,FENCING CONTRACTORS,Invoice,BACS,None,31-Dec-19,2019,10,13337,M5113,REPAIRS-RESPONSIVE (BHS),B1344,GENERAL CARPENTRY
GUILDFORD BOROUGH COUNCIL,RESPONSIVE & PLANNED MAINTENAN,K&T HEATING SERVICES LTD,93000,30-Jan-20,2102173,102.79,0,HEATING; REPAIRS WATER/CENTRAL,PROPERTY MAINTENANCE CONTRACTORS,Invoice,BACS,None,30-Nov-19,2019,10,SI29572,M5113,REPAIRS-RESPONSIVE (BHS),B1351,HEATING; REPAIRS WATER/CENTRAL
GUILDFORD BOROUGH COUNCIL,STREET CLEANSING,JOHNSTON SWEEPERS LTD,15089,07-Jan-20,2094661,91.03,0,EXTERNAL VEHICLE REPAIR,CAR AND VAN DEALERS,Invoice,BACS,None,26-Nov-19,2019,10,61807216,K4551,STREET CLEANSING,D1593,EXTERNAL VEHICLE REPAIR
GUILDFORD BOROUGH COUNCIL,GUILDFORD HOUSE,REDACTED,0,14-Jan-20,2098325,201.75,0,CRAFTWORK - SALE OR RETURN,,Invoice,BACS,None,03-Dec-19,2019,10,REDACTED,A4511,GUILDFORD HOUSE ADMINISTRATION,K3931,CRAFTWORK - SALE OR RETURN
GUILDFORD BOROUGH COUNCIL,GUILDFORD HOUSE,REDACTED,0,14-Jan-20,2098325,-70.61,0,COMMISSION ON CRAFTWORK SALES,,Invoice,BACS,None,03-Dec-19,2019,10,REDACTED,A4511,GUILDFORD HOUSE ADMINISTRATION,K5918,COMMISSION ON CRAFTWORK SALES
GUILDFORD BOROUGH COUNCIL,RESPONSIVE & PLANNED MAINTENAN,GUILDFORD FENCING CO,78890,23-Jan-20,2100976,244,0,GENERAL CARPENTRY,FENCING CONTRACTORS,Invoice,BACS,None,05-Dec-19,2019,10,13303,M5113,REPAIRS-RESPONSIVE (BHS),B1344,GENERAL CARPENTRY
GUILDFORD BOROUGH COUNCIL,GUILDFORD HOUSE,REDACTED,0,14-Jan-20,2098425,-119.53,0,COMMISSION ON CRAFTWORK SALES,,Invoice,BACS,None,31-Dec-19,2019,10,REDACTED,A4511,GUILDFORD HOUSE ADMINISTRATION,K5918,COMMISSION ON CRAFTWORK SALES
GUILDFORD BOROUGH COUNCIL,GUILDFORD HOUSE,REDACTED,0,14-Jan-20,2098425,341.5,0,CRAFTWORK - SALE OR RETURN,,Invoice,BACS,None,31-Dec-19,2019,10,REDACTED,A4511,GUILDFORD HOUSE ADMINISTRATION,K3931,CRAFTWORK - SALE OR RETURN
GUILDFORD BOROUGH COUNCIL,MAJOR PROJECTS,JULIA HOLBERRY ASSOCIATES LTD,80063,07-Jan-20,2096155,1600,0,CONSULTANTS (ADVICE),SOCIAL RESEARCH AGENCIES AND CONSULTANTS,Invoice,BACS,None,29-Nov-19,2019,10,INV-0028,F5620,GUILDFORD MUSEUM REDEVELOPMENT,D4520,CONSULTANTS (ADVICE)
GUILDFORD BOROUGH COUNCIL,RESPONSIVE & PLANNED MAINTENAN,GUILDFORD FENCING CO,78890,30-Jan-20,2102156,150,0,GENERAL CARPENTRY,FENCING CONTRACTORS,Invoice,BACS,None,09-Dec-19,2019,10,13311,M5106,REPAIRS-SHELT-RESPONSIVE (BHS),B1344,GENERAL CARPENTRY
GUILDFORD BOROUGH COUNCIL,STREET CLEANSING,JOHNSTON SWEEPERS LTD,15089,14-Jan-20,2095644,1515.54,0,MAINTENANCE AGREEMENTS,CAR AND VAN DEALERS,Invoice,BACS,None,02-Dec-19,2019,10,65319980,K4551,STREET CLEANSING,D1431,MAINTENANCE AGREEMENTS
GUILDFORD BOROUGH COUNCIL,RESPONSIVE & PLANNED MAINTENAN,K&T HEATING SERVICES LTD,93000,23-Jan-20,2100989,979.09,0,PLUMBING - LEGIONELLA WORKS,PROPERTY MAINTENANCE CONTRACTORS,Invoice,BACS,None,11-Dec-19,2019,10,SI29863,M5114,REPAIRS-CYCLICAL (BHS),B1372,PLUMBING - LEGIONELLA WORKS
GUILDFORD BOROUGH COUNCIL,PARKS & COUNTRYSIDE,GRISTMAN TREE SURGERY LIMITED,34264,14-Jan-20,2096780,884,0,AMENITY MANAGEMENT TREE WORKS,TREE WORK CONTRACTORS,Invoice,BACS,None,20-Dec-19,2019,10,01959,A1300,TREES & COUNTRYSIDE,B1378,AMENITY MANAGEMENT TREE WORKS
GUILDFORD BOROUGH COUNCIL,VEHICLE MAINTENANCE,HENDY GROUP LTD,89391,14-Jan-20,2095656,145.49,0,SPARES FOR VEHICLES,CAR AND VAN DEALERS,Invoice,BACS,None,02-Dec-19,2019,10,66428611,K5551,VEHICLE MAINTENANCE,D1589,SPARES FOR VEHICLES
GUILDFORD BOROUGH COUNCIL,BUILDING CONTROL SUMMARY,HAYS SPECIALIST RECRUITMENT LIMITED,15625,09-Jan-20,2090292,13.92,0,AGENCY STAFF,OTHER RECRUITMENT AGENCIES AND SERVICE PROVIDERS,Invoice,BACS,None,01-Nov-19,2019,10,1010140445,D5700,BUILDING CONTROL - FEE,A5191,AGENCY STAFF
GUILDFORD BOROUGH COUNCIL,BUILDING CONTROL SUMMARY,HAYS SPECIALIST RECRUITMENT LIMITED,15625,07-Jan-20,2095131,2932.35,0,AGENCY STAFF,OTHER RECRUITMENT AGENCIES AND SERVICE PROVIDERS,Invoice,BACS,None,13-Nov-19,2019,10,1010164116,D5700,BUILDING CONTROL - FEE,A5191,AGENCY STAFF
GUILDFORD BOROUGH COUNCIL,BUILDING CONTROL SUMMARY,HAYS SPECIALIST RECRUITMENT LIMITED,15625,07-Jan-20,2095922,2993.18,0,AGENCY STAFF,OTHER RECRUITMENT AGENCIES AND SERVICE PROVIDERS,Invoice,BACS,None,15-Nov-19,2019,10,1010177454,D5700,BUILDING CONTROL - FEE,A5191,AGENCY STAFF
GUILDFORD BOROUGH COUNCIL,EXECUTIVE - MISCELLANEOUS,HICKTON CONSULTANTS LIMITED,93350,30-Jan-20,2099395,2112,0,CONSULTANTS FEES - PROJECTS,CONSTRUCTION PROJECT MANAGEMENT CONSULTANTS,Invoice,BACS,None,31-Dec-19,2019,10,20556,P79026,INTERNAL ESTATE ROAD -CLLR PH1,1221,CONSULTANTS FEES - PROJECTS
GUILDFORD BOROUGH COUNCIL,OTHER ST DEBTORS,REDACTED,0,10-Jan-20,2098451,1153.84,0,CASH PAID,,Invoice,BACS,None,14-Nov-19,2019,10,REDACTED,J01064,HOUSING H4U SCHEME,2175,CASH PAID
GUILDFORD BOROUGH COUNCIL,OPERATIONS TECHNICAL SERVICES,HERSHEY SYSTEMS,41044,23-Jan-20,2101001,2550,0,COMPUTER SOFTWARE LICENCE COST,SOFTWARE DEVELOPERS,Invoice,BACS,None,06-Jan-20,2019,10,541/2020,G3548,ICT TECHNICAL & INFRASTRUCTURE,D5445,COMPUTER SOFTWARE LICENCE COST
GUILDFORD BOROUGH COUNCIL,VEHICLE MAINTENANCE,HENDY GROUP LTD,89391,30-Jan-20,2096828,17.5,0,SPARES FOR VEHICLES,CAR AND VAN DEALERS,Invoice,BACS,None,14-Dec-19,2019,10,66429591,K5551,VEHICLE MAINTENANCE,D1589,SPARES FOR VEHICLES
GUILDFORD BOROUGH COUNCIL,VEHICLE MAINTENANCE,HENDY GROUP LTD,89391,14-Jan-20,2095531,124.21,0,SPARES FOR VEHICLES,CAR AND VAN DEALERS,Invoice,BACS,None,28-Nov-19,2019,10,66428337,K5551,VEHICLE MAINTENANCE,D1589,SPARES FOR VEHICLES
GUILDFORD BOROUGH COUNCIL,EXECUTIVE - MISCELLANEOUS,HICKTON CONSULTANTS LIMITED,93350,14-Jan-20,2095985,3344,0,CONSULTANTS FEES - PROJECTS,CONSTRUCTION PROJECT MANAGEMENT CONSULTANTS,Invoice,BACS,None,30-Nov-19,2019,10,20456,P79026,INTERNAL ESTATE ROAD -CLLR PH1,1221,CONSULTANTS FEES - PROJECTS
GUILDFORD BOROUGH COUNCIL,VEHICLE MAINTENANCE,HENDY GROUP LTD,89391,30-Jan-20,2096598,43.46,0,SPARES FOR VEHICLES,CAR AND VAN DEALERS,Invoice,BACS,None,17-Dec-19,2019,10,66429819,K5551,VEHICLE MAINTENANCE,D1589,SPARES FOR VEHICLES
GUILDFORD BOROUGH COUNCIL,ACCOUNTANCY,HAYS SPECIALIST RECRUITMENT LIMITED,15625,30-Jan-20,2101369,833.63,0,AGENCY STAFF,OTHER RECRUITMENT AGENCIES AND SERVICE PROVIDERS,Invoice,BACS,None,22-Jan-20,2019,10,1010341703,G3565,ACCOUNTANCY SERVICES,A5191,AGENCY STAFF
GUILDFORD BOROUGH COUNCIL,VEHICLE MAINTENANCE,HENDY GROUP LTD,89391,07-Jan-20,2094719,25.65,0,SPARES FOR VEHICLES,CAR AND VAN DEALERS,Invoice,BACS,None,27-Nov-19,2019,10,66428149,K5551,VEHICLE MAINTENANCE,D1589,SPARES FOR VEHICLES
GUILDFORD BOROUGH COUNCIL,VEHICLE MAINTENANCE,HENDY GROUP LTD,89391,09-Jan-20,2094718,953.32,0,SPARES FOR VEHICLES,CAR AND VAN DEALERS,Invoice,BACS,None,28-Nov-19,2019,10,66428252,K5551,VEHICLE MAINTENANCE,D1589,SPARES FOR VEHICLES
GUILDFORD BOROUGH COUNCIL,CORP SERVICES,HEMMING GROUP LTD,2416,30-Jan-20,2100278,140,0,GENERAL SUBSCRIPTIONS,OTHER INFORMATION SERVICE PROVIDERS,Invoice,BACS,None,17-Jan-20,2019,10,178566/256788,F1111,CORPORATE SERVICES,D7497,GENERAL SUBSCRIPTIONS
GUILDFORD BOROUGH COUNCIL,SPA SITES,HELPFUL HIRINGS LTD,87069,09-Jan-20,2095606,1500,0,SPA ENDOWMENT EXP.,THIRD PARTY SUPPLIER,Invoice,BACS,None,30-Nov-19,2019,10,391619,A1010,SPA - CHANTRY WOOD,E5000,SPA ENDOWMENT EXP.
GUILDFORD BOROUGH COUNCIL,GUILDFORD HOUSE,REDACTED,0,14-Jan-20,2098404,-13.65,0,COMMISSION ON CRAFTWORK SALES,,Invoice,BACS,None,31-Dec-19,2019,10,REDACTED,A4511,GUILDFORD HOUSE ADMINISTRATION,K5918,COMMISSION ON CRAFTWORK SALES
GUILDFORD BOROUGH COUNCIL,GUILDFORD HOUSE,REDACTED,0,14-Jan-20,2098404,39,0,CRAFTWORK - SALE OR RETURN,,Invoice,BACS,None,31-Dec-19,2019,10,REDACTED,A4511,GUILDFORD HOUSE ADMINISTRATION,K3931,CRAFTWORK - SALE OR RETURN
GUILDFORD BOROUGH COUNCIL,FUTURE GUILDFORD,HAYS SPECIALIST RECRUITMENT LIMITED,15625,07-Jan-20,2096714,1000,0,AGENCY STAFF,OTHER RECRUITMENT AGENCIES AND SERVICE PROVIDERS,Invoice,BACS,None,19-Dec-19,2019,10,1010265554,G3531,FUTURE GUILDFORD,A5191,AGENCY STAFF
GUILDFORD BOROUGH COUNCIL,CORPORATE PROPERTY SERVICES,HB EDITORIAL SERVICES LTD,79770,07-Jan-20,2096163,650,0,ADVERTISING STAFF VACANCIES,ADVERTISING AGENCIES,Invoice,BACS,None,12-Dec-19,2019,10,2554,G4575,CORPORATE PROPERTY SERVICES,A7111,ADVERTISING STAFF VACANCIES
GUILDFORD BOROUGH COUNCIL,VEHICLE MAINTENANCE,HENDY GROUP LTD,89391,09-Jan-20,2094221,1095,0,FUEL & OIL,CAR AND VAN DEALERS,Invoice,BACS,None,22-Nov-19,2019,10,66427819,K5551,VEHICLE MAINTENANCE,C1321,FUEL & OIL
GUILDFORD BOROUGH COUNCIL,BUILDING CONTROL SUMMARY,HAYS SPECIALIST RECRUITMENT LIMITED,15625,28-Jan-20,2100170,2967.9,0,AGENCY STAFF,OTHER RECRUITMENT AGENCIES AND SERVICE PROVIDERS,Invoice,BACS,None,17-Jan-20,2019,10,1010330740,D5700,BUILDING CONTROL - FEE,A5191,AGENCY STAFF
GUILDFORD BOROUGH COUNCIL,LEISURE COMMUNITY CENTRES,HARPERS DOOR SPECIALISTS,75911,21-Jan-20,2099345,350,0,PS-R&M REACTIVE REPAIRS,"SECURITY SHUTTER, DOOR AND GATE CONTRACTORS",Invoice,BACS,None,13-Jan-20,2019,10,3449,A8121,BELLFIELDS YOUTH & COMMUNITY C,B1627,PS-R&M REACTIVE REPAIRS
GUILDFORD BOROUGH COUNCIL,PARKS & COUNTRYSIDE,HONEY BROTHERS LIMITED,2462,30-Jan-20,2100247,116.8,0,CLOTHING & UNIFORM,POWER AND HAND TOOL SUPPLIERS,Invoice,BACS,None,16-Jan-20,2019,10,IN227550,A1209,PARKS AND OPEN SPACES GENERAL,D2421,CLOTHING & UNIFORM
GUILDFORD BOROUGH COUNCIL,PARKS & COUNTRYSIDE,HONEY BROTHERS LIMITED,2462,30-Jan-20,2100247,37.5,0,NEW / REPLACE EQUIP. & TOOLS;,POWER AND HAND TOOL SUPPLIERS,Invoice,BACS,None,16-Jan-20,2019,10,IN227550,A1209,PARKS AND OPEN SPACES GENERAL,D1428,NEW / REPLACE EQUIP. & TOOLS;
GUILDFORD BOROUGH COUNCIL,PARKS & COUNTRYSIDE,HONEY BROTHERS LIMITED,2462,30-Jan-20,2100247,38.85,0,NEW / REPLACE EQUIP. & TOOLS;,POWER AND HAND TOOL SUPPLIERS,Invoice,BACS,None,16-Jan-20,2019,10,IN227550,A1209,PARKS AND OPEN SPACES GENERAL,D1428,NEW / REPLACE EQUIP. & TOOLS;
GUILDFORD BOROUGH COUNCIL,TENANT SELECTION,HOMELESS LINK,17837,14-Jan-20,2096505,199,0,TRAINING,,Invoice,BACS,None,09-Dec-19,2019,10,000000425,M1131,"ADVICE,REGS,TENANT SELECT(SHS)",A7161,TRAINING
GUILDFORD BOROUGH COUNCIL,CIVIC EXPENSES,HOLY TRINITY&ST MARY GUILDFORD PCC,75592,21-Jan-20,2096268,468,0,BOROUGH PROMOTIONAL EXPENSES,"YOUTH CLUBS, HOSTELS AND ASSOCIATIONS",Invoice,BACS,None,10-Dec-19,2019,10,HTC/20191210/GB,F2131,CIVIC EXPENSES,D9421,BOROUGH PROMOTIONAL EXPENSES
GUILDFORD BOROUGH COUNCIL,BUILDING CONTROL SUMMARY,HAYS SPECIALIST RECRUITMENT LIMITED,15625,07-Jan-20,2096210,-8.56,0,AGENCY STAFF,OTHER RECRUITMENT AGENCIES AND SERVICE PROVIDERS,Credit Note,,None,12-Dec-19,2019,10,1010240400,D5700,BUILDING CONTROL - FEE,A5191,AGENCY STAFF
GUILDFORD BOROUGH COUNCIL,GOVERNMENT ST DEBTORS,HOLMBURY ST MARY VILLAGE HALL TRUST,55396,09-Jan-20,2097785,216,0,POLLING STATION COSTS,COMMUNITY CENTRES,Invoice,BACS,None,20-Dec-19,2019,10,HALL HIRE,J02002,PARLIAMENTARY ELECTIONS,2445,POLLING STATION COSTS
GUILDFORD BOROUGH COUNCIL,CREMATORIUM,HICKTON CONSULTANTS LIMITED,93350,09-Jan-20,2095533,3872,0,CONSULTANTS FEES - PROJECTS,CONSTRUCTION PROJECT MANAGEMENT CONSULTANTS,Invoice,BACS,None,30-Nov-19,2019,10,20412,P05009,REFURBISH/REBUILD CREMATORIUM,1221,CONSULTANTS FEES - PROJECTS
GUILDFORD BOROUGH COUNCIL,TAXI LICENSING,HML INDEPENDENT MEDICAL ADVICE LTD,37284,07-Jan-20,2095817,250,0,CONSULTANTS (PROJECTS),OTHER MEDICAL PROFESSIONALS,Invoice,BACS,None,30-Nov-19,2019,10,GUDL/3490/19,H1104,HC PH DRIVERS,D4511,CONSULTANTS (PROJECTS)
GUILDFORD BOROUGH COUNCIL,BUILDING CONTROL SUMMARY,HAYS SPECIALIST RECRUITMENT LIMITED,15625,09-Jan-20,2090298,10.96,0,AGENCY STAFF,OTHER RECRUITMENT AGENCIES AND SERVICE PROVIDERS,Invoice,BACS,None,01-Nov-19,2019,10,1010140439,D5700,BUILDING CONTROL - FEE,A5191,AGENCY STAFF
GUILDFORD BOROUGH COUNCIL,TAXI LICENSING,HML INDEPENDENT MEDICAL ADVICE LTD,37284,21-Jan-20,2097892,250,0,CONSULTANTS (PROJECTS),OTHER MEDICAL PROFESSIONALS,Invoice,BACS,None,30-Dec-19,2019,10,GUDL/3517/19,H1104,HC PH DRIVERS,D4511,CONSULTANTS (PROJECTS)
GUILDFORD BOROUGH COUNCIL,TENANT SELECTION,HML INDEPENDENT MEDICAL ADVICE LTD,37284,07-Jan-20,2095671,332.37,0,MEDICAL REFEREES FEES,OTHER MEDICAL PROFESSIONALS,Invoice,BACS,None,30-Nov-19,2019,10,GU/3477/19,M1131,"ADVICE,REGS,TENANT SELECT(SHS)",D4461,MEDICAL REFEREES FEES
GUILDFORD BOROUGH COUNCIL,PARKS & COUNTRYSIDE,HIRE SERVICES (SOUTHERN) LTD,2443,09-Jan-20,2096469,136,0,HIRE OF MOVEABLE PLANT,POWER AND HAND TOOL SUPPLIERS,Invoice,BACS,None,18-Dec-19,2019,10,393788,A1209,PARKS AND OPEN SPACES GENERAL,C4331,HIRE OF MOVEABLE PLANT
GUILDFORD BOROUGH COUNCIL,PARKS & COUNTRYSIDE,HIRE SERVICES (SOUTHERN) LTD,2443,09-Jan-20,2095727,240,0,HIRE OF MOVEABLE PLANT,POWER AND HAND TOOL SUPPLIERS,Invoice,BACS,None,30-Nov-19,2019,10,392067,A1209,PARKS AND OPEN SPACES GENERAL,C4331,HIRE OF MOVEABLE PLANT
GUILDFORD BOROUGH COUNCIL,PRIVATE SECTOR HOUSING,HIRE DECKS LIMITED T/A THE METAL STORE,95506,07-Jan-20,2095723,152.47,0,MATERIALS,OTHER LEASING COMPANIES,Invoice,BACS,None,20-Nov-19,2019,10,443816,C5136,HANDYPERSON SERVICE,D1545,MATERIALS
GUILDFORD BOROUGH COUNCIL,PRIVATE SECTOR HOUSING,HIRE DECKS LIMITED T/A THE METAL STORE,95506,07-Jan-20,2095705,88.62,0,MATERIALS,OTHER LEASING COMPANIES,Invoice,BACS,None,22-Nov-19,2019,10,444267,C5136,HANDYPERSON SERVICE,D1545,MATERIALS
GUILDFORD BOROUGH COUNCIL,PROCUREMENT,HAYS SPECIALIST RECRUITMENT LIMITED,15625,21-Jan-20,2096508,2439.5,0,AGENCY STAFF,OTHER RECRUITMENT AGENCIES AND SERVICE PROVIDERS,Invoice,BACS,None,16-Dec-19,2019,10,1010262047,G3593,PROCUREMENT SERVICES,A5191,AGENCY STAFF
GUILDFORD BOROUGH COUNCIL,ACCOUNTANCY,HAYS SPECIALIST RECRUITMENT LIMITED,15625,30-Jan-20,2100842,2336.15,0,AGENCY STAFF,OTHER RECRUITMENT AGENCIES AND SERVICE PROVIDERS,Invoice,BACS,None,20-Jan-20,2019,10,1010335656,G3565,ACCOUNTANCY SERVICES,A5191,AGENCY STAFF
GUILDFORD BOROUGH COUNCIL,BUILDING CONTROL SUMMARY,HAYS SPECIALIST RECRUITMENT LIMITED,15625,07-Jan-20,2095921,3720.6,0,AGENCY STAFF,OTHER RECRUITMENT AGENCIES AND SERVICE PROVIDERS,Invoice,BACS,None,22-Nov-19,2019,10,1010196988,D5700,BUILDING CONTROL - FEE,A5191,AGENCY STAFF
GUILDFORD BOROUGH COUNCIL,BUILDING CONTROL SUMMARY,HAYS SPECIALIST RECRUITMENT LIMITED,15625,07-Jan-20,2096205,-2.87,0,AGENCY STAFF,OTHER RECRUITMENT AGENCIES AND SERVICE PROVIDERS,Credit Note,,None,12-Dec-19,2019,10,1010240396,D5700,BUILDING CONTROL - FEE,A5191,AGENCY STAFF
GUILDFORD BOROUGH COUNCIL,BUILDING CONTROL SUMMARY,HAYS SPECIALIST RECRUITMENT LIMITED,15625,07-Jan-20,2095133,2926.95,0,AGENCY STAFF,OTHER RECRUITMENT AGENCIES AND SERVICE PROVIDERS,Invoice,BACS,None,13-Nov-19,2019,10,1010164112,D5700,BUILDING CONTROL - FEE,A5191,AGENCY STAFF
GUILDFORD BOROUGH COUNCIL,BUILDING CONTROL SUMMARY,HAYS SPECIALIST RECRUITMENT LIMITED,15625,07-Jan-20,2095412,2371.21,0,AGENCY STAFF,OTHER RECRUITMENT AGENCIES AND SERVICE PROVIDERS,Invoice,BACS,None,03-Dec-19,2019,10,1010221586,D5700,BUILDING CONTROL - FEE,A5191,AGENCY STAFF
